Workbook

Sheet Содержание
D1: ЗАВОД «ОПК» Тел.: +7 (495) 987-4388 e-mail: info@cryspi.ru сайт: cryspi.ru
B2: Ваша скидка | C2: - | D2: 0
B3: НДС | C3: -
B4: Холодильное оборудование (встроенное холодоснабжение)
B5: Холодильные витрины Cryspi | D5: Морозильные и холодильные лари Italfrost
B6: Витрины со статической системой охлаждения:
B7: Витрины OCTAVA | D7: Морозильные лари с гнутыми раздвижными стеклами
B8: Витрины OCTAVA Quadro | D8: Морозильные лари с прямыми раздвижными стеклами
B9: Витрины OCTAVA XL | D9: Морозильные лари с глухой крышкой
B10: Витрины GAMMA-2 | D10: Морозильные лари с глухой крышкой (крышка из нерж. стали)
B11: Витрины GAMMA-2 Quadro | D11: Морозильные лари с гнутыми раздвижными стеклами (4+)
B12: Витрины GAMMA Quadro Fish | D12: Морозильные лари с прямыми раздвижными стеклами (4+)
B13: Витрины Sonata Quadro
B14: Витрины настольные Vivo 1000
B15: Витрины с динамической системой охлаждения:
B16: Витрины Magnum | D16: Лари для мягкого мороженного
B17: Витрины Magnum ECO
B18: Витрины Magnum Quadro | D18: Морозильные и холодильные лари-бонеты Italfrost
D19: Двухрежимный ЛВН Italfrost
B20: Витрины Cryspi без агрегата (под выносное хладоснабжение) | D20: Двухрежимный ЛВН Italfrost PUSH
B21: Опции и аксессуары для витрин Cryspi | D21: Двухрежимный ЛВН Rondo
B22: Опции и аксессуары для витрин и стеллажей Cryspi
B23: Таблица для расчета нестандартного цвета и исполнений | D23: Низкотемпературные решения Italfrost для предприятий торговли
B24: Кондитерские витрины | D24: Verona. Низкотемпературная надстройка для ларей 400л. NEW
B25: Adagio | D25: CORSA. Низкотемпературная надстройка для ларей-бонет
B26: Elegia | D26: ANZIO. Низкотемпературный шкаф (стеллаж)
B27: Горки | D27: Нестандартные цвета оборудования со встроенным холодоснабжением
B28: Solo L7/L9
B29: Solo L9 Light | D29: Нестандартные цвета оборудования
B30: Solo SML | D30: Нестандартные цвета окраски ларей-бонет и ларей Italfrost
B31: Unit | D31: Брендирование оборудования
B32: Технологическое оборудование
D33: Холодильные столы
D34: Охлаждаемые столы Italfrost (с боковым расположением агрегата)
D35: Охлаждаемые столы Italfrost (с нижним расположением агрегата)

Sheet Витрины
H1: ЗАВОД «ОПК» Тел.: +7 (495) 987-4388 e-mail: info@cryspi.ru сайт: cryspi.ru | K1: На главную
C3: Ваша скидка: | E3: =Содержание!D2 -> 0
C4: НДС: | E4: =IF(Лист2!A1=TRUE,"С НДС","БЕЗ НДС") -> С НДС
A7: Витрины Cryspi со встроенным агрегатом. Статическая система охлаждения
A9: - Статическая система охлаждения, компрессор Embraco, R-290; - Электронный контроллер CAREL; - Оттайка для версий ВПС - естественная, для версий ВПСН и ВПН - ТЭН (по умолчанию); - Общее освещение для версий с высоким стеклом - нейтральное (4000К); - Товарный накопитель для линейных модулей (кроме НТ); | F9: - Внутренний объем - оцинкованный металл, внутренний объем в зоне выкладки - нерж.сталь; - Ночные шторки для витрин с высоким стеклом; - Фронтальное стекло закаленное, не открывается; - Емкость для сбора талой воды, опционально возможно применение выпаривателя; - Деревянная усиленная упаковка;
A10: № | B10: Комплектация | C10: Изображение | D10: Наименование | F10: Температурный режим,°C | G10: Площадь экспозиции, кв.м. | H10: Габариты, (LxWxH) мм | I10: Базовая цена, руб. (с НДС) | J10: =[5]Лист2!$A$5 -> Ваша цена, руб.
A12: 1 | B12: Витрины серии OCTAVA, глубина выкладки 660 мм, стандартный Ral 3002. | I12: Опции Octava
D13: =D37 -> Среднетемпературные, ВПС | K13: *нажмите чтобы перейти в список опций
D14: Octava 1200 | F14: 0…+7 | G14: 0.72 | H14: 1180х955х1265 | I14: 62935.36 | J14: =ROUND(I14*(1-$E$3)/Лист2!$A$6,0) -> 62935
D15: Octava 1500 | F15: 0…+7 | G15: 0.92 | H15: 1480х955х1265 | I15: 68270.44 | J15: =ROUND(I15*(1-$E$3)/Лист2!$A$6,0) -> 68270
D16: Octava 1800 | F16: 0…+7 | G16: 1.12 | H16: 1780х955х1265 | I16: 75868.72 | J16: =ROUND(I16*(1-$E$3)/Лист2!$A$6,0) -> 75869
D17: =D41 -> Средне-низкотемпературные, ВПСН
D18: Octava SN 1200 | F18: -6…+6 | G18: 0.72 | H18: 1180х955х1265 | I18: 69968.76 | J18: =ROUND(I18*(1-$E$3)/Лист2!$A$6,0) -> 69969
D19: Octava SN 1500 | F19: -6…+6 | G19: 0.92 | H19: 1480х955х1265 | I19: 78893.68 | J19: =ROUND(I19*(1-$E$3)/Лист2!$A$6,0) -> 78894
D20: Octava SN 1800 | F20: -6…+6 | G20: 1.12 | H20: 1780х955х1265 | I20: 87620.8 | J20: =ROUND(I20*(1-$E$3)/Лист2!$A$6,0) -> 87621
D21: =D45 -> Низкотемпературные, ВПН
D22: Octava M 1200 | F22: -13…-15 | G22: 0.69 | H22: 1180х955х1265 | I22: 74715.96 | J22: =ROUND(I22*(1-$E$3)/Лист2!$A$6,0) -> 74716
D23: Octava M 1500 | F23: -13…-15 | G23: 0.89 | H23: 1480х955х1265 | I23: 85463.4 | J23: =ROUND(I23*(1-$E$3)/Лист2!$A$6,0) -> 85463
D24: Octava M 1800 | F24: -13…-15 | G24: 1.08 | H24: 1780х955х1265 | I24: 94428.8 | J24: =ROUND(I24*(1-$E$3)/Лист2!$A$6,0) -> 94429
D25: Угловые витрины и кассовые прилавки
D26: Octava OC (угол внеш.) | F26: 0…+7 | G26: 0.79 | H26: 1180х1180х1265 | I26: 106823.96 | J26: =ROUND(I26*(1-$E$3)/Лист2!$A$6,0) -> 106824
D27: Octava IC (угол внутр.) | F27: 0…+7 | G27: 0.61 | H27: 1354х1354х1265 | I27: 97290 | J27: =ROUND(I27*(1-$E$3)/Лист2!$A$6,0) -> 97290
D28: Octava КНП 620 ББ | F28: - | G28: - | H28: 620х917х900 | I28: 18561.92 | J28: =ROUND(I28*(1-$E$3)/Лист2!$A$6,0) -> 18562
D29: Octava КНП 700 с боковинами | F29: - | G29: - | H29: 700х924х900 | I29: 26095.8 | J29: =ROUND(I29*(1-$E$3)/Лист2!$A$6,0) -> 26096
D30: Octava КНП 1200 | F30: - | G30: - | H30: 1200х924х900 | I30: 37740.24 | J30: =ROUND(I30*(1-$E$3)/Лист2!$A$6,0) -> 37740
D31: Octava КНП 980 | F31: - | G31: - | H31: 980х924х900 | I31: 33292.04 | J31: =ROUND(I31*(1-$E$3)/Лист2!$A$6,0) -> 33292
D32: Octava КНП OC 90 ББ | F32: - | G32: - | H32: 1592х850х900 | I32: 25089.32 | J32: =ROUND(I32*(1-$E$3)/Лист2!$A$6,0) -> 25089
D33: Octava КНП OC 90 | F33: - | G33: - | H33: 1632х871х900 | I33: 32627.8 | J33: =ROUND(I33*(1-$E$3)/Лист2!$A$6,0) -> 32628
D34: Octava КНП IC 90 ББ | F34: - | G34: - | H34: 1592х850х900 | I34: 24594.36 | J34: =ROUND(I34*(1-$E$3)/Лист2!$A$6,0) -> 24594
D35: Octava КНП IC 90 | F35: - | G35: - | H35: 1632х871х900 | I35: 32133.76 | J35: =ROUND(I35*(1-$E$3)/Лист2!$A$6,0) -> 32134
A36: 2 | B36: Витрины серии OCTAVA Q, глубина выкладки 660 мм, стандартный RAL 7016
D37: Среднетемпературные, ВПС
D38: Octava Q 1200 | F38: 0…+7 | G38: 0.72 | H38: 1180х925х1200 | I38: 66490.24 | J38: =ROUND(I38*(1-$E$3)/Лист2!$A$6,0) -> 66490
D39: Octava Q 1500 | F39: 0…+7 | G39: 0.92 | H39: 1480х925х1200 | I39: 74917.44 | J39: =ROUND(I39*(1-$E$3)/Лист2!$A$6,0) -> 74917
D40: Octava Q 1800 | F40: 0…+7 | G40: 1.12 | H40: 1780х925х1200 | I40: 85674.08 | J40: =ROUND(I40*(1-$E$3)/Лист2!$A$6,0) -> 85674
D41: Средне-низкотемпературные, ВПСН
D42: Octava Q SN 1200 | F42: -6…+6 | G42: 0.72 | H42: 1180х925х1200 | I42: 73076.52 | J42: =ROUND(I42*(1-$E$3)/Лист2!$A$6,0) -> 73077
D43: Octava Q SN 1500 | F43: -6…+6 | G43: 0.92 | H43: 1480х925х1200 | I43: 83697.92 | J43: =ROUND(I43*(1-$E$3)/Лист2!$A$6,0) -> 83698
D44: Octava Q SN 1800 | F44: -6…+6 | G44: 1.12 | H44: 1780х925х1200 | I44: 94235.6 | J44: =ROUND(I44*(1-$E$3)/Лист2!$A$6,0) -> 94236
D45: Низкотемпературные, ВПН
D46: Octava Q M 1200 | F46: -15…-18 | G46: 0.69 | H46: 1180х925х1200 | I46: 82061.24 | J46: =ROUND(I46*(1-$E$3)/Лист2!$A$6,0) -> 82061
D47: Octava Q M 1500 | F47: -15…-18 | G47: 0.89 | H47: 1480х925х1200 | I47: 90481.08 | J47: =ROUND(I47*(1-$E$3)/Лист2!$A$6,0) -> 90481
D48: Octava Q M 1800 | F48: -15…-18 | G48: 1.08 | H48: 1780х925х1200 | I48: 102389.56 | J48: =ROUND(I48*(1-$E$3)/Лист2!$A$6,0) -> 102390
A49: 3 | B49: Витрины серии OCTAVA XL, глубина выкладки 780 мм, стандартный Ral 7016.
B50: Стандартная комплектация: | D50: Среднетемпературные, ВПС
B51: - агрегат | D51: Octava XL 1200 | F51: 0…+7 | G51: 0.93 | H51: 1218х1069х1214 | I51: 66679.76 | J51: =ROUND(I51*(1-$E$3)/Лист2!$A$6,0) -> 66680
B52: - испаритель | D52: Octava XL 1500 | F52: 0…+7 | G52: 1.15 | H52: 1518х1069х1214 | I52: 73806.08 | J52: =ROUND(I52*(1-$E$3)/Лист2!$A$6,0) -> 73806
B53: - шторки из оргстекла | D53: Octava XL 1800 | F53: 0…+7 | G53: 1.4 | H53: 1818х1069х1214 | I53: 83688.72 | J53: =ROUND(I53*(1-$E$3)/Лист2!$A$6,0) -> 83689
B54: - комплект боковин и боковых стекол | D54: Средне-низкотемпературные, ВПСН
B55: - комплект фронтальных стекол | D55: Octava XL SN 1200 | F55: -6…+6 | G55: 0.93 | H55: 1218х1069х1214 | I55: 78538.56 | J55: =ROUND(I55*(1-$E$3)/Лист2!$A$6,0) -> 78539
B56: - полка навесная стеклянная на прямых витринах | D56: Octava XL SN 1500 | F56: -6…+6 | G56: 1.15 | H56: 1518х1069х1214 | I56: 83031.84 | J56: =ROUND(I56*(1-$E$3)/Лист2!$A$6,0) -> 83032
B57: - ёмкость для сбора талой воды | D57: Octava XL SN 1800 | F57: -6…+6 | G57: 1.4 | H57: 1818х1069х1214 | I57: 96767.44 | J57: =ROUND(I57*(1-$E$3)/Лист2!$A$6,0) -> 96767
D58: Низкотемпературные, ВПН
D59: Octava XL М 1200 | F59: -15…-18 | G59: 0.85 | H59: 1218х1093х1300 | I59: 96773.88 | J59: =ROUND(I59*(1-$E$3)/Лист2!$A$6,0) -> 96774
D60: Octava XL М 1500 | F60: -15…-18 | G60: 1.1 | H60: 1518х1093х1300 | I60: 111961.24 | J60: =ROUND(I60*(1-$E$3)/Лист2!$A$6,0) -> 111961
D61: Octava XL М 1800 | F61: -15…-18 | G61: 1.3 | H61: 1818х1093х1300 | I61: 122876.12 | J61: =ROUND(I61*(1-$E$3)/Лист2!$A$6,0) -> 122876
D62: Кассовые прилавки
D63: Octava XL КНП 620 ББ | F63: - | G63: - | H63: 600х1069х940 | I63: 20871.12 | J63: =ROUND(I63*(1-$E$3)/Лист2!$A$6,0) -> 20871
A64: 4 | B64: Витрины серии GAMMA-2, глубина выкладки 760 мм, стандартный Ral 3004. | I64: Опции Gamma-2
B65: Стандартная комплектация: | D65: Среднетемпературные, ВПС | K65: *нажмите чтобы перейти в список опций
B66: - агрегат | D66: Gamma-2 1200 | E66: с боковинами | F66: 0…+7 | G66: 0.85 | H66: 1218х1093х1300 | I66: 71507.92 | J66: =ROUND(I66*(1-$E$3)/Лист2!$A$6,0) -> 71508
B67: - испаритель | E67: без боковин | H67: 1118х1093х1300 | I67: 61579.28 | J67: =ROUND(I67*(1-$E$3)/Лист2!$A$6,0) -> 61579
B68: - шторки из оргстекла | D68: Gamma-2 1500 | E68: с боковинами | F68: 0…+7 | G68: 1.1 | H68: 1518х1093х1300 | I68: 76203.6 | J68: =ROUND(I68*(1-$E$3)/Лист2!$A$6,0) -> 76204
B69: - комплект боковин и боковых стекол | E69: без боковин | H69: 1418х1093х1300 | I69: 66275.88 | J69: =ROUND(I69*(1-$E$3)/Лист2!$A$6,0) -> 66276
B70: - комплект фронтальных стекол | D70: Gamma-2 1800 | E70: с боковинами | F70: 0…+7 | G70: 1.3 | H70: 1818х1093х1300 | I70: 89493 | J70: =ROUND(I70*(1-$E$3)/Лист2!$A$6,0) -> 89493
B71: - экспозиционные полки из шлифованной стали | E71: без боковин | H71: 1718х1093х1300 | I71: 79267.2 | J71: =ROUND(I71*(1-$E$3)/Лист2!$A$6,0) -> 79267
B72: - ёмкость для сбора талой воды | D72: Средне-низкотемпературные, ВПСН
B73: - светильник с люминесцентной лампой | D73: Gamma-2 SN 1200 | E73: с боковинами | F73: -6…+6 | G73: 0.85 | H73: 1218х1093х1300 | I73: 80556.12 | J73: =ROUND(I73*(1-$E$3)/Лист2!$A$6,0) -> 80556
B74: - электронный пульт управления | E74: без боковин | H74: 1118х1093х1300 | I74: 70330.32 | J74: =ROUND(I74*(1-$E$3)/Лист2!$A$6,0) -> 70330
B75: - деревянная тара | D75: Gamma-2 SN 1500 | E75: с боковинами | F75: -6…+6 | G75: 1.1 | H75: 1518х1093х1300 | I75: 90199.56 | J75: =ROUND(I75*(1-$E$3)/Лист2!$A$6,0) -> 90200
E76: без боковин | H76: 1418х1093х1300 | I76: 79973.76 | J76: =ROUND(I76*(1-$E$3)/Лист2!$A$6,0) -> 79974
D77: Gamma-2 SN 1800 | E77: с боковинами | F77: -6…+6 | G77: 1.3 | H77: 1818х1093х1300 | I77: 102764 | J77: =ROUND(I77*(1-$E$3)/Лист2!$A$6,0) -> 102764
E78: без боковин | H78: 1718х1093х1300 | I78: 92537.28 | J78: =ROUND(I78*(1-$E$3)/Лист2!$A$6,0) -> 92537
D79: Низкотемпературные, ВПН
D80: Gamma-2 М 1200 | E80: с боковинами | F80: от -18 | G80: 0.85 | H80: 1218х1093х1300 | I80: 99440.96 | J80: =ROUND(I80*(1-$E$3)/Лист2!$A$6,0) -> 99441
E81: без боковин | H81: 1118х1093х1300 | I81: 89057.84 | J81: =ROUND(I81*(1-$E$3)/Лист2!$A$6,0) -> 89058
D82: Gamma-2 М 1500 | E82: с боковинами | F82: от -18 | G82: 1.1 | H82: 1518х1093х1300 | I82: 113694.52 | J82: =ROUND(I82*(1-$E$3)/Лист2!$A$6,0) -> 113695
E83: без боковин | H83: 1418х1093х1300 | I83: 103311.4 | J83: =ROUND(I83*(1-$E$3)/Лист2!$A$6,0) -> 103311
D84: Gamma-2 М 1800 | E84: с боковинами | F84: от -18 | G84: 1.3 | H84: 1818х1093х1300 | I84: 125186.24 | J84: =ROUND(I84*(1-$E$3)/Лист2!$A$6,0) -> 125186
E85: без боковин | H85: 1718х1093х1300 | I85: 114803.12 | J85: =ROUND(I85*(1-$E$3)/Лист2!$A$6,0) -> 114803
D86: Угловые витрины (ВПС) и кассовые прилавки
D87: Gamma-2 OC 90 (угол внеш.) | E87: с боковинами | F87: 0…+7 | G87: 0.92 | H87: 1180х1180х1300 | I87: 104475.2 | J87: =ROUND(I87*(1-$E$3)/Лист2!$A$6,0) -> 104475
E88: без боковин | H88: 1130х1130х1300 | I88: 94248.48 | J88: =ROUND(I88*(1-$E$3)/Лист2!$A$6,0) -> 94248
D89: Gamma-2 IC 90 (угол внутр.) | E89: с боковинами | F89: 0…+7 | G89: 0.74 | H89: 1355х1355х1300 | I89: 115578.68 | J89: =ROUND(I89*(1-$E$3)/Лист2!$A$6,0) -> 115579
E90: без боковин | H90: 1305х1305х1300 | I90: 105352.88 | J90: =ROUND(I90*(1-$E$3)/Лист2!$A$6,0) -> 105353
D91: Gamma-2 КНП 1020 | E91: с боковинами | F91: - | G91: - | H91: 1000х1100х940 | I91: 28515.4 | J91: =ROUND(I91*(1-$E$3)/Лист2!$A$6,0) -> 28515
D92: Gamma-2 КНП 920 ББ | E92: без боковин | F92: - | G92: - | H92: 920х1100х940 | I92: 23213.44 | J92: =ROUND(I92*(1-$E$3)/Лист2!$A$6,0) -> 23213
D93: Gamma-2 КНП 800 | E93: с боковинами | F93: - | G93: - | H93: 800х1100х940 | I93: 26965.2 | J93: =ROUND(I93*(1-$E$3)/Лист2!$A$6,0) -> 26965
D94: Gamma-2 КНП 700 ББ | E94: без боковин | F94: - | G94: - | H94: 700х1100х940 | I94: 20122.24 | J94: =ROUND(I94*(1-$E$3)/Лист2!$A$6,0) -> 20122
D95: Gamma-2 КНП 600 | E95: с боковинами | F95: - | G95: - | H95: 600х1100х940 | I95: 25224.56 | J95: =ROUND(I95*(1-$E$3)/Лист2!$A$6,0) -> 25225
D96: Gamma-2 КНП 600 ББ | E96: без боковин | F96: - | G96: - | H96: 600х1100х940 | I96: 18964.88 | J96: =ROUND(I96*(1-$E$3)/Лист2!$A$6,0) -> 18965
D97: Gamma-2 КНП 500 ББ | E97: без боковин | F97: - | G97: - | H97: 500х1100х940 | I97: 16511.24 | J97: =ROUND(I97*(1-$E$3)/Лист2!$A$6,0) -> 16511
D98: Gamma-2 ОС КНП (угол внеш.) | E98: с боковинами | F98: - | G98: - | H98: 1145х1145х930 | I98: 37887.44 | J98: =ROUND(I98*(1-$E$3)/Лист2!$A$6,0) -> 37887
E99: без боковин | H99: 1095х1095х930 | I99: 29175.96 | J99: =ROUND(I99*(1-$E$3)/Лист2!$A$6,0) -> 29176
D100: Gamma-2 IC КНП (угол внутр.) | E100: с боковинами | F100: - | G100: - | H100: 1275х1275х930 | I100: 37225.04 | J100: =ROUND(I100*(1-$E$3)/Лист2!$A$6,0) -> 37225
E101: без боковин | H101: 1225х1225х930 | I101: 28514.48 | J101: =ROUND(I101*(1-$E$3)/Лист2!$A$6,0) -> 28514
A102: 5 | B102: Витрины серии GAMMA-2 LED, глубина выкладки 760 мм, стандартный Ral 3004.
B103: Стандартная комплектация: | D103: Среднетемпературные
B104: - агрегат | D104: Gamma-2 1200 LED | E104: с боковинами | F104: 0…+7 | G104: 0.85 | H104: 1218х1093х1300 | I104: 79279 | J104: =ROUND(I104*(1-$E$3)/Лист2!$A$6,0) -> 79279
B105: - испаритель | E105: без боковин | H105: 1118х1093х1300 | I105: 68488 | J105: =ROUND(I105*(1-$E$3)/Лист2!$A$6,0) -> 68488
B106: - шторки из оргстекла | D106: Gamma-2 1500 LED | E106: с боковинами | F106: 0…+7 | G106: 1.1 | H106: 1518х1093х1300 | I106: 84487 | J106: =ROUND(I106*(1-$E$3)/Лист2!$A$6,0) -> 84487
B107: - комплект боковин и боковых стекол | E107: без боковин | H107: 1418х1093х1300 | I107: 73696 | J107: =ROUND(I107*(1-$E$3)/Лист2!$A$6,0) -> 73696
B108: - комплект фронтальных стекол | D108: Gamma-2 1800 LED | E108: с боковинами | F108: 0…+7 | G108: 1.3 | H108: 1818х1093х1300 | I108: 99221 | J108: =ROUND(I108*(1-$E$3)/Лист2!$A$6,0) -> 99221
B109: - экспозиционные полки из шлифованной стали | E109: без боковин | H109: 1718х1093х1300 | I109: 88105 | J109: =ROUND(I109*(1-$E$3)/Лист2!$A$6,0) -> 88105
B110: - ёмкость для сбора талой воды | D110: Средне-низкотемпературные
B111: - светодиодная подсветка | D111: Gamma-2 SN 1200 LED | E111: с боковинами | F111: -6…+6 | G111: 0.85 | H111: 1218х1093х1300 | I111: 89313 | J111: =ROUND(I111*(1-$E$3)/Лист2!$A$6,0) -> 89313
B112: - электронный пульт управления | E112: без боковин | H112: 1118х1093х1300 | I112: 78198 | J112: =ROUND(I112*(1-$E$3)/Лист2!$A$6,0) -> 78198
B113: - деревянная тара | D113: Gamma-2 SN 1500 LED | E113: с боковинами | F113: -6…+6 | G113: 1.1 | H113: 1518х1093х1300 | I113: 100002 | J113: =ROUND(I113*(1-$E$3)/Лист2!$A$6,0) -> 100002
E114: без боковин | H114: 1418х1093х1300 | I114: 88888 | J114: =ROUND(I114*(1-$E$3)/Лист2!$A$6,0) -> 88888
D115: Gamma-2 SN 1800 LED | E115: с боковинами | F115: -6…+6 | G115: 1.3 | H115: 1818х1093х1300 | I115: 113934 | J115: =ROUND(I115*(1-$E$3)/Лист2!$A$6,0) -> 113934
E116: без боковин | H116: 1718х1093х1300 | I116: 102818 | J116: =ROUND(I116*(1-$E$3)/Лист2!$A$6,0) -> 102818
D117: Низкотемпературные
D118: Gamma-2 М 1200 LED | E118: с боковинами | F118: от -18 | G118: 0.85 | H118: 1218х1093х1300 | I118: 110250 | J118: =ROUND(I118*(1-$E$3)/Лист2!$A$6,0) -> 110250
E119: без боковин | H119: 1118х1093х1300 | I119: 98964 | J119: =ROUND(I119*(1-$E$3)/Лист2!$A$6,0) -> 98964
D120: Gamma-2 М 1500 LED | E120: с боковинами | F120: от -18 | G120: 1.1 | H120: 1518х1093х1300 | I120: 126052 | J120: =ROUND(I120*(1-$E$3)/Лист2!$A$6,0) -> 126052
E121: без боковин | H121: 1418х1093х1300 | I121: 114766 | J121: =ROUND(I121*(1-$E$3)/Лист2!$A$6,0) -> 114766
D122: Gamma-2 М 1800 LED | E122: с боковинами | F122: от -18 | G122: 1.3 | H122: 1818х1093х1300 | I122: 138793 | J122: =ROUND(I122*(1-$E$3)/Лист2!$A$6,0) -> 138793
E123: без боковин | H123: 1718х1093х1300 | I123: 127507 | J123: =ROUND(I123*(1-$E$3)/Лист2!$A$6,0) -> 127507
A124: 6 | B124: Витрины серии GAMMA-2 FISH, глубина выкладки 760 мм, стандартный Ral 3004.
D125: Средне-низкотемпературные
B126: - усиленный поддон для льда и рыбы | D126: Gamma-2 SN FISH 1200 | E126: с боковинами | F126: -6…+6 | G126: 0.85 | H126: 1218х1093х1300 | I126: 97693 | J126: =ROUND(I126*(1-$E$3)/Лист2!$A$6,0) -> 97693
B127: - коррозионностойкая решётка защиты испарителя | E127: без боковин | H127: 1118х1093х1300 | I127: 86578 | J127: =ROUND(I127*(1-$E$3)/Лист2!$A$6,0) -> 86578
B128: - увеличенный слив (Д 40 мм) | D128: Gamma-2 SN FISH 1500 | E128: с боковинами | F128: -6…+6 | G128: 1.1 | H128: 1518х1093х1300 | I128: 112989 | J128: =ROUND(I128*(1-$E$3)/Лист2!$A$6,0) -> 112989
E129: без боковин | H129: 1418х1093х1300 | I129: 101874 | J129: =ROUND(I129*(1-$E$3)/Лист2!$A$6,0) -> 101874
D130: Gamma-2 SN FISH 1800 | E130: с боковинами | F130: -6…+6 | G130: 1.3 | H130: 1818х1093х1300 | I130: 126856 | J130: =ROUND(I130*(1-$E$3)/Лист2!$A$6,0) -> 126856
E131: без боковин | H131: 1718х1093х1300 | I131: 115742 | J131: =ROUND(I131*(1-$E$3)/Лист2!$A$6,0) -> 115742
A132: 5 | B132: Витрины серии GAMMA QUADRO LED, глубина выкладки 760 мм, стандартный Ral 9016/7016. | I132: Опции Gamma Quadro
B133: Стандартная комплектация: | D133: Среднетемпературные, ВПС | K133: *нажмите чтобы перейти в список опций
B134: - агрегат | D134: Gamma Quadro 1200 LED | E134: с боковинами | F134: 0…+7 | G134: 0.85 | H134: 1218х1087х1209 | I134: 86366.84 | J134: =ROUND(I134*(1-$E$3)/Лист2!$A$6,0) -> 86367
B135: - испаритель | E135: без боковин | H135: 1118х1087х1209 | I135: 76155.76 | J135: =ROUND(I135*(1-$E$3)/Лист2!$A$6,0) -> 76156
B136: - шторки из оргстекла | D136: Gamma Quadro 1500 LED | E136: с боковинами | F136: 0…+7 | G136: 1.1 | H136: 1518х1087х1209 | I136: 92320.16 | J136: =ROUND(I136*(1-$E$3)/Лист2!$A$6,0) -> 92320
B137: - комплект боковин и боковых стекол | E137: без боковин | H137: 1418х1087х1209 | I137: 82109.08 | J137: =ROUND(I137*(1-$E$3)/Лист2!$A$6,0) -> 82109
B138: - комплект фронтальных стекол | D138: Gamma Quadro 1800 LED | E138: с боковинами | F138: 0…+7 | G138: 1.3 | H138: 1818х1087х1209 | I138: 111313.56 | J138: =ROUND(I138*(1-$E$3)/Лист2!$A$6,0) -> 111314
B139: - экспозиционные полки из шлифованной стали | E139: без боковин | H139: 1718х1087х1209 | I139: 100591.88 | J139: =ROUND(I139*(1-$E$3)/Лист2!$A$6,0) -> 100592
B140: - ёмкость для сбора талой воды | D140: Средне-низкотемпературные, ВПСН
B141: - светодиодная подсветка | D141: Gamma Quadro SN 1200 LED | E141: с боковинами | F141: -6…+6 | G141: 0.85 | H141: 1218х1087х1209 | I141: 93962.36 | J141: =ROUND(I141*(1-$E$3)/Лист2!$A$6,0) -> 93962
B142: - электронный пульт управления | E142: без боковин | H142: 1118х1087х1209 | I142: 83239.76 | J142: =ROUND(I142*(1-$E$3)/Лист2!$A$6,0) -> 83240
B143: - деревянная тара | D143: Gamma Quadro SN 1500 LED | E143: с боковинами | F143: -6…+6 | G143: 1.1 | H143: 1518х1087х1209 | I143: 108253.64 | J143: =ROUND(I143*(1-$E$3)/Лист2!$A$6,0) -> 108254
E144: без боковин | H144: 1418х1087х1209 | I144: 97531.96 | J144: =ROUND(I144*(1-$E$3)/Лист2!$A$6,0) -> 97532
D145: Gamma Quadro SN 1800 LED | E145: с боковинами | F145: -6…+6 | G145: 1.3 | H145: 1818х1087х1209 | I145: 122912.92 | J145: =ROUND(I145*(1-$E$3)/Лист2!$A$6,0) -> 122913
E146: без боковин | H146: 1718х1087х1209 | I146: 112190.32 | J146: =ROUND(I146*(1-$E$3)/Лист2!$A$6,0) -> 112190
D147: Низкотемпературные, ВПН
D148: Gamma Quadro М 1200 LED | E148: с боковинами | F148: от -18 | G148: 0.85 | H148: 1218х1087х1209 | I148: 107392.52 | J148: =ROUND(I148*(1-$E$3)/Лист2!$A$6,0) -> 107393
E149: без боковин | H149: 1118х1087х1209 | I149: 96505.24 | J149: =ROUND(I149*(1-$E$3)/Лист2!$A$6,0) -> 96505
D150: Gamma Quadro М 1500 LED | E150: с боковинами | F150: от -18 | G150: 1.1 | H150: 1518х1087х1209 | I150: 122558.72 | J150: =ROUND(I150*(1-$E$3)/Лист2!$A$6,0) -> 122559
E151: без боковин | H151: 1418х1087х1209 | I151: 111671.44 | J151: =ROUND(I151*(1-$E$3)/Лист2!$A$6,0) -> 111671
D152: Gamma Quadro М 1800 LED | E152: с боковинами | F152: от -18 | G152: 1.3 | H152: 1818х1087х1209 | I152: 142874.16 | J152: =ROUND(I152*(1-$E$3)/Лист2!$A$6,0) -> 142874
E153: без боковин | H153: 1718х1087х1209 | I153: 131986.88 | J153: =ROUND(I153*(1-$E$3)/Лист2!$A$6,0) -> 131987
D154: Угловые витрины (ВПС) и кассовые прилавки
D155: Gamma Quadro OC 90 LED (угол внеш.) | E155: с боковинами | F155: 0…+7 | G155: 0.92 | H155: 1180х1180х1209 | I155: 129950 | J155: =ROUND(I155*(1-$E$3)/Лист2!$A$6,0) -> 129950
E156: без боковин | H156: 1130х1130х1209 | I156: 119227.4 | J156: =ROUND(I156*(1-$E$3)/Лист2!$A$6,0) -> 119227
D157: Gamma Quadro IC 90 LED (угол внутр.) | E157: с боковинами | F157: 0…+7 | G157: 0.74 | H157: 1355х1355х1209 | I157: 129950 | J157: =ROUND(I157*(1-$E$3)/Лист2!$A$6,0) -> 129950
E158: без боковин | H158: 1305х1305х1209 | I158: 119227.4 | J158: =ROUND(I158*(1-$E$3)/Лист2!$A$6,0) -> 119227
D159: Gamma Quadro КНП 580 | E159: с боковинами | F159: - | G159: - | H159: 580х1087х936 | I159: 29683.8 | J159: =ROUND(I159*(1-$E$3)/Лист2!$A$6,0) -> 29684
D160: Gamma Quadro КНП 500 ББ | E160: без боковин | F160: - | G160: - | H160: 500х1087х936 | I160: 18961.2 | J160: =ROUND(I160*(1-$E$3)/Лист2!$A$6,0) -> 18961
D161: Gamma Quadro ОС КНП (угол внеш.) | E161: с боковинами | F161: - | G161: - | H161: 1145х1145х936 | I161: 43511.4 | J161: =ROUND(I161*(1-$E$3)/Лист2!$A$6,0) -> 43511
E162: без боковин | H162: 1095х1095х936 | I162: 34373.96 | J162: =ROUND(I162*(1-$E$3)/Лист2!$A$6,0) -> 34374
A163: 6 | B163: Витрины серии GAMMA Quadro LED FISH, глубина выкладки 760 мм, стандартный Ral 3004.
D164: Средне-низкотемпературные, ВПСН
B165: - усиленный поддон для льда и рыбы | D165: Gamma Quadro SN FISH 1200 LED | E165: с боковинами | F165: -6…+6 | G165: 0.85 | H165: 1218х1093х1300 | I165: 102573.56 | J165: =ROUND(I165*(1-$E$3)/Лист2!$A$6,0) -> 102574
B166: - коррозионностойкая решётка защиты испарителя | E166: без боковин | H166: 1118х1093х1300 | I166: 91850.96 | J166: =ROUND(I166*(1-$E$3)/Лист2!$A$6,0) -> 91851
B167: - увеличенный слив (Д 40 мм) | D167: Gamma Quadro SN FISH 1500 LED | E167: с боковинами | F167: -6…+6 | G167: 1.1 | H167: 1518х1093х1300 | I167: 119182.32 | J167: =ROUND(I167*(1-$E$3)/Лист2!$A$6,0) -> 119182
E168: без боковин | H168: 1418х1093х1300 | I168: 108459.72 | J168: =ROUND(I168*(1-$E$3)/Лист2!$A$6,0) -> 108460
D169: Gamma Quadro SN FISH 1800 LED | E169: с боковинами | F169: -6…+6 | G169: 1.3 | H169: 1818х1093х1300 | I169: 134288.72 | J169: =ROUND(I169*(1-$E$3)/Лист2!$A$6,0) -> 134289
E170: без боковин | H170: 1718х1093х1300 | I170: 123566.12 | J170: =ROUND(I170*(1-$E$3)/Лист2!$A$6,0) -> 123566
D171: Gamma Quadro Self 1200 (динамический холод) | E171: с боковинами | F171: 0…+7 | G171: 0.85 | H171: 1204х1096х934 | I171: 94928.36 | J171: =ROUND(I171*(1-$E$3)/Лист2!$A$6,0) -> 94928
A177: 7 | B177: Витрины серии Sonata Quadro, глубина выкладки 760 мм, стандартный Ral 7016
D178: Среднетемпературные, ВПС
B179: Стандартная комплектация: | D179: Sonata Quadro 1200 LED | E179: с боковинами | F179: 0…+7 | G179: 0.85 | H179: 1218х1087х1209 | I179: 77659.96 | J179: =ROUND(I179*(1-$E$3)/Лист2!$A$6,0) -> 77660
B180: - агрегат | D180: Sonata Quadro 1500 LED | E180: с боковинами | F180: 0…+7 | G180: 1.1 | H180: 1518х1087х1209 | I180: 89664.12 | J180: =ROUND(I180*(1-$E$3)/Лист2!$A$6,0) -> 89664
B181: - испаритель | D181: Sonata Quadro 1800 LED | E181: с боковинами | F181: 0…+7 | G181: 1.3 | H181: 1818х1087х1209 | I181: 100461.24 | J181: =ROUND(I181*(1-$E$3)/Лист2!$A$6,0) -> 100461
B182: - шторки из оргстекла | D182: Средне-низкотемпературные, ВПСН
B183: - комплект боковин и боковых стекол | D183: Sonata Quadro SN 1200 LED | E183: с боковинами | F183: -6…+6 | G183: 0.85 | H183: 1218х1087х1209 | I183: 79342.64 | J183: =ROUND(I183*(1-$E$3)/Лист2!$A$6,0) -> 79343
B184: - комплект фронтальных стекол | D184: Sonata Quadro SN 1500 LED | E184: с боковинами | F184: -6…+6 | G184: 1.1 | H184: 1518х1087х1209 | I184: 94471.12 | J184: =ROUND(I184*(1-$E$3)/Лист2!$A$6,0) -> 94471
B185: - экспозиционные полки из шлифованной стали | D185: Sonata Quadro SN 1800 LED | E185: с боковинами | F185: -6…+6 | G185: 1.3 | H185: 1818х1087х1209 | I185: 105367.6 | J185: =ROUND(I185*(1-$E$3)/Лист2!$A$6,0) -> 105368
B186: - ёмкость для сбора талой воды | D186: Низкотемпературные, ВПН
D187: Sonata Quadro М 1200 LED | E187: с боковинами | F187: от -18 | G187: 0.85 | H187: 1218х1087х1209 | I187: 94456.4 | J187: =ROUND(I187*(1-$E$3)/Лист2!$A$6,0) -> 94456
D188: Sonata Quadro М 1500 LED | E188: с боковинами | F188: от -18 | G188: 1.1 | H188: 1518х1087х1209 | I188: 113327.44 | J188: =ROUND(I188*(1-$E$3)/Лист2!$A$6,0) -> 113327
D189: Sonata Quadro М 1800 LED | E189: с боковинами | F189: от -18 | G189: 1.3 | H189: 1818х1087х1209 | I189: 127624.24 | J189: =ROUND(I189*(1-$E$3)/Лист2!$A$6,0) -> 127624
A190: 8 | B190: Витрины настольные Vivo 1000 (статическое охлаждение, освещение нейтральное)
D191: Витрина холодильная ВПС Vivo 1000 (0..+5°С) | E191: с боковинами | F191: 0…+5 | H191: 1000x866x450 | I191: 52171 | J191: =ROUND(I191*(1-$E$3)/Лист2!$A$6,0) -> 52171
D192: Витрина холодильная ВПСН Vivo 1000 (-5..+5°С) | E192: с боковинами | F192: -5…+5 | I192: 58664 | J192: =ROUND(I192*(1-$E$3)/Лист2!$A$6,0) -> 58664
D193: Витрина тепловая ВПТ Vivo 1000 | E193: с боковинами | F193: до +65 | I193: 54450 | J193: =ROUND(I193*(1-$E$3)/Лист2!$A$6,0) -> 54450
A195: Витрины Cryspi со встроенным агрегатом. Динамическая система охлаждения
A196: - Динамическая система охлаждения, компрессор Embraco, R-290; - Электронный контроллер CAREL; - Оттайка для версий ВПС - естественная, для версий ВПСН и ВПН - ТЭН (по умолчанию); - Общее освещение для версий с высоким стеклом - нейтральное (4000К); - Товарный накопитель для линейных модулей (кроме НТ); | E196: - Внутренний объем - оцинкованный металл, внутренний объем в зоне выкладки - нерж.сталь; - Ночные шторки для витрин с высоким стеклом; - Фронтальное стекло закаленное (Magnum Eco – стекло не открывается, Magnum Quadro – стекло открывается сверху-вниз без гидролифта; Magnum – стекло открывается снизу-вверх, опционально возможно применение гидролифта;) - Емкость для сбора талой воды, опционально возможно применение выпаривателя; - Деревянная усиленная упаковка;
A197: 9 | B197: Витрины серии MAGNUM ECO, глубина выкладки 860 мм, стандартный Ral 7016
B198: Стандартная комплектация: | D198: Среднетемпературные, ВПС
B199: - агрегат | D199: Magnum Eco 1250 Д | E199: с боковинами | F199: 0…+7 | G199: 1.075 | H199: 1330х1100х1225 | I199: 104543.28 | J199: =ROUND(I199*(1-$E$3)/Лист2!$A$6,0) -> 104543
B200: - боковая панель со стеклом правая/левая | E200: без боковин | H200: 1250х1100х1225 | I200: 91446.16 | J200: =ROUND(I200*(1-$E$3)/Лист2!$A$6,0) -> 91446
B201: - электронный пульт управления | D201: Magnum Eco 1880 Д | E201: с боковинами | F201: 0…+7 | G201: 1.62 | H201: 1960х1100х1225 | I201: 132569.24 | J201: =ROUND(I201*(1-$E$3)/Лист2!$A$6,0) -> 132569
B202: - испаритель | E202: без боковин | H202: 1880х1100х1225 | I202: 119472.12 | J202: =ROUND(I202*(1-$E$3)/Лист2!$A$6,0) -> 119472
B203: - электрооттайка испарителя (SN/F) | D203: Magnum Eco 2500 Д | E203: с боковинами | F203: 0…+7 | G203: 2.15 | H203: 2580х1100х1225 | I203: 164888.84 | J203: =ROUND(I203*(1-$E$3)/Лист2!$A$6,0) -> 164889
B204: - экспозиционные полки (нерж. сталь) | E204: без боковин | H204: 2500х1100х1225 | I204: 151791.72 | J204: =ROUND(I204*(1-$E$3)/Лист2!$A$6,0) -> 151792
B205: - светильник с люминисцентной лампой (кроме SG) | D205: Magnum Eco 3750 Д | E205: с боковинами | F205: 0…+7 | G205: 3.22 | H205: 3830х1100х1225 | I205: 206158.2 | J205: =ROUND(I205*(1-$E$3)/Лист2!$A$6,0) -> 206158
B206: - ночные шторки (оргстекло) | E206: без боковин | H206: 3750х1100х1225 | I206: 193062 | J206: =ROUND(I206*(1-$E$3)/Лист2!$A$6,0) -> 193062
B207: - защитный экран фронтальных стекол | D207: Средне-низкотемпературные, ВПСН
B208: - ТЭНы обогрева ванны (F) | D208: Magnum Eco SN 1250 Д | E208: с боковинами | F208: -6…+6 | G208: 1.075 | H208: 1330х1100х1225 | I208: 112391.8 | J208: =ROUND(I208*(1-$E$3)/Лист2!$A$6,0) -> 112392
B209: - лотки (в ванне тепловой) 2шт. (H) | E209: без боковин | H209: 1250х1100х1225 | I209: 99294.68 | J209: =ROUND(I209*(1-$E$3)/Лист2!$A$6,0) -> 99295
B210: - бампер-отбойник из нержавеющей стали | D210: Magnum Eco SN 1880 Д | E210: с боковинами | F210: -6…+6 | G210: 1.62 | H210: 1960х1100х1225 | I210: 139992.72 | J210: =ROUND(I210*(1-$E$3)/Лист2!$A$6,0) -> 139993
B211: - деревянная упаковка | E211: без боковин | H211: 1880х1100х1225 | I211: 126895.6 | J211: =ROUND(I211*(1-$E$3)/Лист2!$A$6,0) -> 126896
... 105 more rows

Sheet Охлаждаемые стеллажи
G1: ЗАВОД «ОПК» Тел.: +7 (495) 987-4388 e-mail: info@cryspi.ru сайт: cryspi.ru | J1: На главную
B3: Ваша скидка: | D3: =Содержание!D2 -> 0
B4: НДС: | D4: =IF(Лист2!A1=TRUE,"С НДС","БЕЗ НДС") -> С НДС
A6: Охлаждаемые стеллажи Cryspi со встроенным агрегатом
A9: № | B9: Изображение | C9: Наименование | E9: Температурный режим,°C | F9: Площадь экспозиции, кв.м. | G9: Габариты, (LxWxH) мм | H9: Базовая цена, руб. (с НДС) | I9: =[5]Лист2!$A$5 -> Ваша цена, руб.
A11: 1 | B11: Solo L7 | H11: Опции SOLO L7 | K11: СЕЧЕНИЯ
K12: Solo L7 | O12: Solo L7 Фруктовая | S12: Solo L7 DG
A13: Стандартная комплектация стеллажа: - внутренний объем - оцинкованный металл - внутренняя поверхность ванны из оцинкованного пластификата (двойная защита от коррозии) - стандартные электродвигатели - электронный контроллер CAREL | E13: - общее освещение - нейтральное (4000К) - цифровой термометр - 5 ярусов оцинкованных полок c кронштейнами и ценникодержателями глубиной 400 мм. - компрессор Embraco R-290, оттайка горячим газом для версий с остеклением - комплект панорамных боковин - система выпаривания конденсата (выпариватель) - деревянная усиленная упаковка
C14: Solo L7 Открытое исполнение (ночные шторки)
C15: Стеллаж холодильный ВПВ С (SOLO L7 1250) R290 | D15: с боковинами | E15: +1…+7 С | F15: 2.8 | G15: 1330х700х2090 | H15: 157993 | I15: =ROUND(H15*(1-$D$3)/Лист2!$A$6,0) -> 157993
D16: без боковин | G16: 1250х700х2090 | H16: =H15-'Опции для горок'!F57-'Опции для горок'!F58 -> 136580.92 | I16: =ROUND(H16*(1-$D$3)/Лист2!$A$6,0) -> 136581
C17: Стеллаж холодильный ВПВ С (SOLO L7 1500) R290 | D17: с боковинами | E17: +1…+7 С | F17: 3.36 | G17: 1580х700х2090 | H17: 182577 | I17: =ROUND(H17*(1-$D$3)/Лист2!$A$6,0) -> 182577
D18: без боковин | G18: 1500х700х2090 | H18: =H17-'Опции для горок'!F57-'Опции для горок'!F58 -> 161164.92 | I18: =ROUND(H18*(1-$D$3)/Лист2!$A$6,0) -> 161165
C19: Стеллаж холодильный ВПВ С (SOLO L7 1875) R290 | D19: с боковинами | E19: +1…+7 С | F19: 4.2 | G19: 1955х700х2090 | H19: 196523 | I19: =ROUND(H19*(1-$D$3)/Лист2!$A$6,0) -> 196523
D20: без боковин | G20: 1875х700х2090 | H20: =H19-'Опции для горок'!F57-'Опции для горок'!F58 -> 175110.92 | I20: =ROUND(H20*(1-$D$3)/Лист2!$A$6,0) -> 175111
C21: Solo L7 DG. Фронтальный блок остекления - стеклопакет (DG - Double Glass)
C22: Стеллаж холодильный ВПВ С (SOLO L7 DG 1250) R290 | D22: с боковинами | E22: -1…+5 С | F22: 2.8 | G22: 1330х700х2090 | H22: 175139 | I22: =ROUND(H22*(1-$D$3)/Лист2!$A$6,0) -> 175139
D23: без боковин | G23: 1250х700х2090 | H23: =H22-'Опции для горок'!F57-'Опции для горок'!F58 -> 153726.92 | I23: =ROUND(H23*(1-$D$3)/Лист2!$A$6,0) -> 153727
C24: Стеллаж холодильный ВПВ С (SOLO L7 DG 1500) R290 | D24: с боковинами | E24: -1…+5 С | F24: 3.36 | G24: 1580х700х2090 | H24: 190512 | I24: =ROUND(H24*(1-$D$3)/Лист2!$A$6,0) -> 190512
D25: без боковин | G25: 1500х700х2090 | H25: =H24-'Опции для горок'!F57-'Опции для горок'!F58 -> 169099.92 | I25: =ROUND(H25*(1-$D$3)/Лист2!$A$6,0) -> 169100
C26: Стеллаж холодильный ВПВ С (SOLO L7 DG 1875) R290 | D26: с боковинами | E26: -1…+5 С | F26: 4.2 | G26: 1955х700х2090 | H26: 211500 | I26: =ROUND(H26*(1-$D$3)/Лист2!$A$6,0) -> 211500
D27: без боковин | G27: 1875х700х2090 | H27: =H26-'Опции для горок'!F57-'Опции для горок'!F58 -> 190087.92 | I27: =ROUND(H27*(1-$D$3)/Лист2!$A$6,0) -> 190088
C28: Стеллаж холодильный ВПВ С (SOLO L7 DG 2500) R290 | D28: с боковинами | E28: -1…+5 С | F28: 5.6 | G28: 2580х700х2090 | H28: 302107 | I28: =ROUND(H28*(1-$D$3)/Лист2!$A$6,0) -> 302107
D29: без боковин | G29: 2500х700х2090 | H29: =H28-'Опции для горок'!F57-'Опции для горок'!F58 -> 280694.92 | I29: =ROUND(H29*(1-$D$3)/Лист2!$A$6,0) -> 280695
C30: (Модуль 1250 мм. - 1 дверной блок (2 двери); 1875 мм. - 1 дверной блок (3 двери); 2500 мм. - 2 дверных блока по 2 двери)
A31: 2 | B31: Solo L9 | H31: Опции SOLO L9
K32: Solo L9 | O32: Solo L9 Фруктовая | S32: Solo L9 DG
A33: Стандартная комплектация стеллажа: - внутренний объем - оцинкованный металл - внутренняя поверхность ванны из оцинкованного пластификата (двойная защита от коррозии) - стандартные вентиляторы - электронный контроллер CAREL | E33: - общее освещение - нейтральное (4000К) - цифровой термометр - 5 ярусов оцинкованных полок c кронштейнами и ценникодержателями глубиной 500 мм. - компрессор Embraco R-290, оттайка горячим газом для версий с остеклением - комплект панорамных боковин - система выпаривания конденсата (выпариватель) - деревянная усиленная упаковка
C34: Solo L9 Открытое исполнение (ночные шторки)
C35: Стеллаж холодильный ВПВ С (SOLO L9 1250) R290 | D35: с боковинами | E35: +1…+7 С | F35: 3.76 | G35: 1330х910х2090 | H35: 169480 | I35: =ROUND(H35*(1-$D$3)/Лист2!$A$6,0) -> 169480
D36: без боковин | G36: 1250х910х2090 | H36: =H35-'Опции для горок'!F55-'Опции для горок'!F56 -> 146140.8328 | I36: =ROUND(H36*(1-$D$3)/Лист2!$A$6,0) -> 146141
C37: Стеллаж холодильный ВПВ С (SOLO L9 1500) R290 | D37: с боковинами | E37: +1…+7 С | F37: 4.51 | G37: 1580х910х2090 | H37: 190145 | I37: =ROUND(H37*(1-$D$3)/Лист2!$A$6,0) -> 190145
D38: без боковин | G38: 1500х910х2090 | H38: =H37-'Опции для горок'!F55-'Опции для горок'!F56 -> 166805.8328 | I38: =ROUND(H38*(1-$D$3)/Лист2!$A$6,0) -> 166806
C39: Стеллаж холодильный ВПВ С (SOLO L9 1875) R290 | D39: с боковинами | E39: +1…+7 С | F39: 5.63 | G39: 1955х910х2090 | H39: 210708 | I39: =ROUND(H39*(1-$D$3)/Лист2!$A$6,0) -> 210708
D40: без боковин | G40: 1875х910х2090 | H40: =H39-'Опции для горок'!F55-'Опции для горок'!F56 -> 187368.8328 | I40: =ROUND(H40*(1-$D$3)/Лист2!$A$6,0) -> 187369
C41: Solo L9 DG. Фронтальный блок остекления - стеклопакет (DG - Double Glass)
C42: Стеллаж холодильный ВПВ С (SOLO L9 DG 1250) R290 | D42: с боковинами | E42: -1…+5 С | F42: 3.76 | G42: 1330х910х2090 | H42: 189364 | I42: =ROUND(H42*(1-$D$3)/Лист2!$A$6,0) -> 189364
D43: без боковин | G43: 1250х910х2090 | H43: =H42-'Опции для горок'!F55-'Опции для горок'!F56 -> 166024.8328 | I43: =ROUND(H43*(1-$D$3)/Лист2!$A$6,0) -> 166025
C44: Стеллаж холодильный ВПВ С (SOLO L9 DG 1500) R290 | D44: с боковинами | E44: -1…+5 С | F44: 4.51 | G44: 1580х910х2090 | H44: 205967 | I44: =ROUND(H44*(1-$D$3)/Лист2!$A$6,0) -> 205967
D45: без боковин | G45: 1500х910х2090 | H45: =H44-'Опции для горок'!F55-'Опции для горок'!F56 -> 182627.8328 | I45: =ROUND(H45*(1-$D$3)/Лист2!$A$6,0) -> 182628
C46: Стеллаж холодильный ВПВ С (SOLO L9 DG 1875) R290 | D46: с боковинами | E46: -1…+5 С | F46: 5.63 | G46: 1955х910х2090 | H46: 228731 | I46: =ROUND(H46*(1-$D$3)/Лист2!$A$6,0) -> 228731
D47: без боковин | G47: 1875х910х2090 | H47: =H46-'Опции для горок'!F55-'Опции для горок'!F56 -> 205391.8328 | I47: =ROUND(H47*(1-$D$3)/Лист2!$A$6,0) -> 205392
C48: Стеллаж холодильный ВПВ С (SOLO L9 DG 2500) R290 | D48: с боковинами | E48: -1…+5 С | F48: 7.51 | G48: 2580х910х2090 | H48: 334911 | I48: =ROUND(H48*(1-$D$3)/Лист2!$A$6,0) -> 334911
D49: без боковин | G49: 2500х910х2090 | H49: =H48-'Опции для горок'!F55-'Опции для горок'!F56 -> 311571.8328 | I49: =ROUND(H49*(1-$D$3)/Лист2!$A$6,0) -> 311572
C50: (Модуль 1250 мм. - 1 дверной блок (2 двери); 1875 мм. - 1 дверной блок (3 двери); 2500 мм. - 2 дверных блока по 2 двери)
A51: 3 | B51: Solo L9 Light | H51: Опции Solo L9 Light | K51: Solo L9 Light
C53: Стандартная комплектация стеллажа: - внутренний объем - черный крашенный металл - внутренняя поверхность ванны из оцинкованного пластификата (двойная защита от коррозии) - стандартные вентиляторы - электронный контроллер CAREL - общее освещение - нейтральное (4000К) | F53: - общее освещение - нейтральное (4000К) - цифровой термометр - 4 ярусов полок c кронштейнами и ценникодержателями глубиной 500 мм. - компрессор Embraco R-290 - комплект боковин глухих - емкость для сбора талой воды (выпариватель доступен опционально); - деревянная усиленная упаковка
C54: Стеллаж холодильный ВПВ С (SOLO L9 LIGHT 1250) R290 | D54: с боковинами | E54: +1…+7 С | F54: 3.12 | G54: 1330х910х2090 | H54: 129195.7544 | I54: =ROUND(H54*(1-$D$3)/Лист2!$A$6,0) -> 129196
D55: без боковин | G55: 1250х910х2090 | H55: =H54-'Опции для горок'!F150-'Опции для горок'!F151 -> 113693 | I55: =ROUND(H55*(1-$D$3)/Лист2!$A$6,0) -> 113693
C56: Стеллаж холодильный ВПВ С (SOLO L9 LIGHT 1500) R290 | D56: с боковинами | E56: +1…+7 С | F56: 3.74 | G56: 1580х910х2090 | H56: 144439.7544 | I56: =ROUND(H56*(1-$D$3)/Лист2!$A$6,0) -> 144440
D57: без боковин | G57: 1500х910х2090 | H57: =H56-'Опции для горок'!F150-'Опции для горок'!F151 -> 128937 | I57: =ROUND(H57*(1-$D$3)/Лист2!$A$6,0) -> 128937
C58: Стеллаж холодильный ВПВ С (SOLO L9 LIGHT 1875) R290 | D58: с боковинами | E58: +1…+7 С | F58: 4.67 | G58: 1955х910х2090 | H58: 159923.7544 | I58: =ROUND(H58*(1-$D$3)/Лист2!$A$6,0) -> 159924
D59: без боковин | G59: 1875х910х2090 | H59: =H58-'Опции для горок'!F150-'Опции для горок'!F151 -> 144421 | I59: =ROUND(H59*(1-$D$3)/Лист2!$A$6,0) -> 144421
A60: 4 | B60: Solo SML | H60: Опции Solo SML | K60: Solo SML
C62: Стандартная комплектация стеллажа: - Внутренняя поверхность ванны из оцинкованного пластификата (двойная защита от коррозии) - стандартные вентиляторы - контроллер Carel - общее освещение - нейтральное (4500К) - 3 яруса оцинкованных полок c кронштейнами и ценникодержателями (300, 400, 500 мм) | F62: - с автоматической системой выпаривания конденсата - Комплект ночных шторок - Компрессор Embraco, хладагент R-290, оттайка горячим газом - Электронный контроллер CAREL - Цифровой термометр - Без противоударного бампера - Деревянная упаковка
C63: Стеллаж холодильный ВПВ С (SOLO SML 1250 Д) R290 | D63: с боковинами | E63: +1...+10 С | F63: 2.43 | G63: 1300х854х1600 | H63: 163208 | I63: =ROUND(H63*(1-$D$3)/Лист2!$A$6,0) -> 163208
C65: Стеллаж холодильный ВПВ С (SOLO SML 1250 Д) R290 ББ | D65: без боковин | E65: +1...+10 С | F65: 2.43 | G65: 1250х854х1600 | H65: =H63-'Опции для горок'!F224-'Опции для горок'!F225 -> 138428.72 | I65: =ROUND(H65*(1-$D$3)/Лист2!$A$6,0) -> 138429
C67: Стеллаж холодильный ВПВ С (SOLO SML 1875 Д) R290 | D67: с боковинами | E67: +1...+10 С | F67: 3.64 | G67: 1925х854х1600 | H67: 212170 | I67: =ROUND(H67*(1-$D$3)/Лист2!$A$6,0) -> 212170
C69: Стеллаж холодильный ВПВ С (SOLO SML 1875 Д) R290 ББ | D69: без боковин | E69: +1...+10 С | F69: 3.64 | G69: 1875х854х1600 | H69: =H67-'Опции для горок'!F224-'Опции для горок'!F225 -> 187390.72 | I69: =ROUND(H69*(1-$D$3)/Лист2!$A$6,0) -> 187391
A71: 5 | B71: UNIT L9 | H71: Опции UNIT | K71: UNIT L9
C73: Стандартная комплектация: - LED подсветка в стойках и верхняя (4000К) - Кассетный компресссорный блок EMBRACO R-290 - Дверной блок со стеклопакетом - Оцинкованные элементы внутреннего объёма - 5 ярусов оцинкованных полок с кронштейнами и ценникодержателями
C81: Стеллаж холодильный ВПВ C (Cryspi Unit L91250 Д) | D81: с боковинами | E81: 0...+2, +2...+4, +4...+6 | F81: 3.76 | G81: 1330x880x2310 | H81: По запросу
D82: без боковин | G82: 1250x880x2310
G84: НАВЕРХ

Sheet Кондитерские витрины
G1: ЗАВОД «ОПК» Тел.: +7 (495) 987-4388 e-mail: info@cryspi.ru сайт: cryspi.ru | J1: На главную
B3: Ваша скидка: | D3: =Содержание!D2 -> 0
B4: НДС: | D4: =IF(Лист2!A1=TRUE,"С НДС","БЕЗ НДС") -> С НДС
A6: Кондитерские витрины Cryspi со встроенным агрегатом
A9: № | B9: Изображение | C9: Наименование | E9: Температурный режим,°C | F9: Площадь экспозиции, кв.м. | G9: Габариты, (LxWxH) мм | H9: Базовая цена, руб. (с НДС) | I9: =[5]Лист2!$A$5 -> Ваша цена, руб.
A11: 1 | B11: ADAGIO | H11: Опции Adagio | K11: СЕЧЕНИЯ
K12: ADAGIO | P12: ADAGIO CUBE | U12: ELEGIA
A13: Стандартная комплектация: - 3 уровня навесных полок, 230, 320, 380 мм (Adagio/Adagio LX), 380 мм (Adagio Cube/Adagio LX Cube); - подсветка всех полок (нейтральный или теплый спектр) - фронтальная металическая панель - Возможно применение фронтальной панели из ЛДСП с наценкой в 4%. - Компрессор Embraco, хладагент R-290 - Электронный контроллер Carel - Цифровой термометр на фронтальной части столешницы | E13: - Оттайка испарителя естественным способом; Автоматическое выпаривание конденсата - Задняя дверца - оргстекло (Adagio), закаленный стеклопакет (Adagio LX); - Вентилируемое (динамическое) охлаждение - Внутренний объем - сталь оцинкованная - зона выкладки - сталь оцинкованна с покраской - шелкография стекол черного цвета (Ral 9005) - Деревянная упаковка
C14: Витрины охлаждаемые, кондитерские, закаленное стекло
C15: Витрина холодильная ВПВ (ADAGIO 900 Д) | E15: +6..+12°С | F15: 1.27 | G15: 900х620х1330 | H15: 79147.508 | I15: =ROUND(H15*(1-$D$3)/Лист2!$A$6,0) -> 79148
C16: Витрина холодильная ВПВ (ADAGIO 1300 Д) | E16: +6..+12°С | F16: 1.58 | G16: 1300Х620Х1330 | H16: 85325.768 | I16: =ROUND(H16*(1-$D$3)/Лист2!$A$6,0) -> 85326
C17: Витрина холодильная ВПВ (ADAGIO Cube 900 Д) | E17: +6..+12°С | F17: 1.46 | G17: 900х620х1330 | H17: 79147.508 | I17: =ROUND(H17*(1-$D$3)/Лист2!$A$6,0) -> 79148
C18: Витрина холодильная ВПВ (ADAGIO Cube 1300 Д) | E18: +6..+12°С | F18: 1.83 | G18: 1300Х620Х1330 | H18: 85325.768 | I18: =ROUND(H18*(1-$D$3)/Лист2!$A$6,0) -> 85326
C19: Витрины охлаждаемые, кондитерские, закаленный стеклопакет
C20: Витрина холодильная ВПС (ADAGIO LX 900 Д) | E20: 0..+7°С | F20: 1.27 | G20: 900х620х1330 | H20: 104076.104 | I20: =ROUND(H20*(1-$D$3)/Лист2!$A$6,0) -> 104076
C21: Витрина холодильная ВПС (ADAGIO LX 1300 Д) | E21: 0..+7°С | F21: 1.58 | G21: 1300Х620Х1330 | H21: 123228.204 | I21: =ROUND(H21*(1-$D$3)/Лист2!$A$6,0) -> 123228
C22: Витрина холодильная ВПС (ADAGIO LX Cube 900 Д) | E22: 0..+7°С | F22: 1.46 | G22: 900х620х1330 | H22: 104076.104 | I22: =ROUND(H22*(1-$D$3)/Лист2!$A$6,0) -> 104076
C23: Витрина холодильная ВПС (ADAGIO LX Cube 1300 Д) | E23: 0..+7°С | F23: 1.83 | G23: 1300Х620Х1330 | H23: 123228.204 | I23: =ROUND(H23*(1-$D$3)/Лист2!$A$6,0) -> 123228
C24: Витрины для самообслуживания охлаждаемые, кондитерские
C25: Витрина холодильная ВПВ (ADAGIO Self 900 Д) | E25: +1..+10°С | F25: 1.27 | G25: 900х620х1330 | H25: 116489.296 | I25: =ROUND(H25*(1-$D$3)/Лист2!$A$6,0) -> 116489
C26: Витрина холодильная ВПВ (ADAGIO Self 1300 Д) | E26: +1..+10°С | F26: 1.58 | G26: 1300Х620Х1330 | H26: 137677.54 | I26: =ROUND(H26*(1-$D$3)/Лист2!$A$6,0) -> 137678
C27: Витрина холодильная ВПВ (ADAGIO Self Cube 900 Д) | E27: +1..+10°С | F27: 1.46 | G27: 900х620х1330 | H27: 118107.484 | I27: =ROUND(H27*(1-$D$3)/Лист2!$A$6,0) -> 118107
C28: Витрина холодильная ВПВ (ADAGIO Self Cube 1300 Д) | E28: +1..+10°С | F28: 1.83 | G28: 1300Х620Х1330 | H28: 139561.884 | I28: =ROUND(H28*(1-$D$3)/Лист2!$A$6,0) -> 139562
C29: Витрины нейтральные, кондитерские без охлаждения для самообслуживания
C30: Витрина нейтральная ВП (ADAGIO N Self 900) | E30: - | F30: 1.27 | G30: 900х620х1330 | H30: 61348.452 | I30: =ROUND(H30*(1-$D$3)/Лист2!$A$6,0) -> 61348
C31: Витрина нейтральная ВП (ADAGIO N Self 1300) | E31: - | F31: 1.58 | G31: 1300Х620Х1330 | H31: 68197.668 | I31: =ROUND(H31*(1-$D$3)/Лист2!$A$6,0) -> 68198
C32: Витрина холодильная ВПВ (ADAGIO N Self Cube 900 Д) | E32: - | F32: 1.46 | G32: 900х620х1330 | H32: 63041.528 | I32: =ROUND(H32*(1-$D$3)/Лист2!$A$6,0) -> 63042
C33: Витрина холодильная ВПВ (ADAGIO N Self Cube 1300 Д) | E33: - | F33: 1.83 | G33: 1300Х620Х1330 | H33: 66401.368 | I33: =ROUND(H33*(1-$D$3)/Лист2!$A$6,0) -> 66401
C34: Витрины нейтральные, кондитерские без охлаждения для самообслуживания. Хлебная модификация
C35: Витрина холодильная ВПВ (ADAGIO N Self Cube 900 Д) | E35: - | F35: 1.46 | G35: 900х620х1330 | H35: 59985.288 | I35: =ROUND(H35*(1-$D$3)/Лист2!$A$6,0) -> 59985
C36: Витрина холодильная ВПВ (ADAGIO N Self Cube 1300 Д) | E36: - | F36: 1.83 | G36: 1300Х620Х1330 | H36: 64583.816 | I36: =ROUND(H36*(1-$D$3)/Лист2!$A$6,0) -> 64584
C37: Кассовый нейтральный прилавок (КНП)
C38: Прилавок КНП ADAGIO 600 (фронтальные панели металл) | E38: - | F38: - | G38: 600х650х906 | H38: 19924.256 | I38: =ROUND(H38*(1-$D$3)/Лист2!$A$6,0) -> 19924
C39: Прилавок КНП ADAGIO 900 (фронтальные панели металл) | E39: - | F39: - | G39: 900Х650Х906 | H39: 24227.28 | I39: =ROUND(H39*(1-$D$3)/Лист2!$A$6,0) -> 24227
C40: Прилавок КНП ADAGIO 600 (фронтальные панели ЛДСП) | E40: - | F40: - | G40: 600х650х906 | H40: 21899.9836 | I40: =ROUND(H40*(1-$D$3)/Лист2!$A$6,0) -> 21900
C41: Прилавок КНП ADAGIO 900 (фронтальные панели ЛДСП) | E41: - | F41: - | G41: 900Х650Х906 | H41: 25356.672 | I41: =ROUND(H41*(1-$D$3)/Лист2!$A$6,0) -> 25357
A42: 2 | B42: ELEGIA QUADRO
C44: Стандартная комплектация: - Компрессор Embraco, хладагент R-290 - стеклопакеты по периметру; | F44: - фронтальное стекло (кроме версии SELF); - выпариватель; - LED подсветка в стойках и полках - ТЭНы оттайки испарителей - Деревянная упаковка
C46: Elegia Quadro К 850 | E46: +1...+10 | F46: 1.23 | G46: 850х764х1312 | H46: 130489.12 | I46: =ROUND(H46*(1-$D$3)/Лист2!$A$6,0) -> 130489
C47: Elegia Quadro К 1000 | E47: +1...+10 | F47: 1.46 | G47: 1 000×764×1 312 | H47: 143897.2 | I47: =ROUND(H47*(1-$D$3)/Лист2!$A$6,0) -> 143897
C48: Elegia Quadro K 1250 | E48: +1...+10 | F48: 1.85 | G48: 1 250×764×1 312 | H48: 157415.68 | I48: =ROUND(H48*(1-$D$3)/Лист2!$A$6,0) -> 157416
C49: Elegia Quadro SELF 1000 (для самообслуживания) | E49: +1...+10 | F49: 1.39 | G49: 1 000×764×1 312 | H49: 143897.2 | I49: =ROUND(H49*(1-$D$3)/Лист2!$A$6,0) -> 143897
C50: Elegia Quadro SELF 1250 (для самообслуживания) | E50: +1...+10 | F50: 1.72 | G50: 1 254×764×1 312 | H50: 144555 | I50: =ROUND(H50*(1-$D$3)/Лист2!$A$6,0) -> 144555
C51: Прилавок КНП Elegia Quadro 600 | E51: - | F51: - | G51: 600х764х870 | H51: 23230.92 | I51: =ROUND(H51*(1-$D$3)/Лист2!$A$6,0) -> 23231
G53: НАВЕРХ

Sheet Gamma в линию (hidden)
A1: Примечания: | AY1: В содержание
A2: 1. Витрины с различными температурными режимами желательно разделять боковинами
A3: 2. В комплект герметичного разделителя входит комплект соединительный
A5: 1. Линия витрин GAMMA-2
C7: боковина | E7: GAMMA-2 ББ | P7: GAMMA-2 ББ | AA7: GAMMA-2 ББ | AL7: боковина
C12: Вариант спецификации
C13: Наименование | AT13: Кол-во
C14: Gamma-2 1200 | AA14: без боковин | AT14: 1
C15: Gamma-2 1500 | AA15: без боковин | AT15: 1
C16: Gamma-2 1800 | AA16: без боковин | AT16: 1
C17: Комплект соединительный 337.50.00.00 для ВПС/ВПСН/ВПН Gamma-2 | AT17: 2
C18: Комплект боковин 337.40.00.00 для ВПС/ВПСН Gamma 2 | AT18: 1
A21: 2. Линия витрин GAMMA-2 через герметичный разделитель
C23: боковина | E23: GAMMA-2 ББ | P23: герм.разд. | R23: GAMMA-2 ББ | AC23: герм.разд. | AE23: GAMMA-2 ББ | AP23: боковина
C28: Вариант спецификации
C29: Наименование | AT29: Кол-во
C30: Gamma-2 1200 | AA30: без боковин | AT30: 1
C31: Gamma-2 1500 | AA31: без боковин | AT31: 1
C32: Gamma-2 1800 | AA32: без боковин | AT32: 1
C33: Комплект герметичного разделителя 337.83.00.00 для ВПС/ВПСН/ВПН Gamma-2 | AT33: 2
C34: Комплект боковин 337.40.00.00 для ВПС/ВПСН Gamma 2 | AT34: 1

Sheet Низкотемпературные шкафы
G1: ЗАВОД «ОПК» Тел.: +7 (495) 987-4388 e-mail: info@cryspi.ru сайт: cryspi.ru | J1: На главную
B3: Ваша скидка: | D3: =Содержание!D2 -> 0
B4: НДС: | D4: =IF(Лист2!A1=TRUE,"С НДС","БЕЗ НДС") -> С НДС
A6: Низкотемпературные шкафы Cryspi со встроенным агрегатом
A9: № | B9: Изображение | C9: Наименование | E9: Температурный режим,°C | F9: Площадь экспозиции, кв.м. | G9: Габариты, (LxWxH) мм | H9: Базовая цена, руб. (с НДС) | I9: =[5]Лист2!$A$5 -> Ваша цена, руб.
A11: 1 | B11: Шкаф-надстройка Verona | K11: СЕЧЕНИЯ
K12: VERONA | O12: CORSA | U12: ANZIO
C13: Стандартная комплектация: - подставка с комплектом крепежа - светодиодная подсветка внутреннего объема (4500К, 6500К) без изменения цены - автоматическая оттайка горячим газом - автоматическое выпаривание конденсата - 4 уровня решетчатых полок | F13: Тип охлаждения - динамический - Климатический класс - 3 - Температура окружающей среды, С° - max +25 - Относительная влажность воздуха, % - max 60 - Хладагент - R290 - Напряжение, В - 220
C15: Шкаф низкотемпературный ШН Verona 1220 | E15: -23…-18 | F15: 1.076 | G15: 1217х750х2210 | H15: 156293.28 | I15: =ROUND(H15*(1-$D$3)/Лист2!$A$6,0) -> 156293
C19: Надстройка для ларя 400 л.
A20: 2 | B20: CORSA
C22: Стандартная комплектация: - подставка с комплектом крепежа - светодиодная подсветка внутреннего объема - автоматическая оттайка горячим газом - автоматическое выпаривание конденсата - 2 уровня решетчатых полок | F22: - Тип охлаждения - динамический - Климатический класс - 3 - Температура окружающей среды, С° max - +25 - Относительная влажность воздуха,% max - 60 - Хладагент - R404a - Напряжение, В - 220
C24: Шкаф низкотемпературный ШН 0,73-2,8 CORSA LT 2500 | E24: -23…-18 | F24: 2.71 | G24: 2500х1020х2480 | H24: 468122.68 | I24: =ROUND(H24*(1-$D$3)/Лист2!$A$6,0) -> 468123
A28: 3 | B28: ANZIO
C30: Опции: Система выпаривания конденсата + 1,5% к цене шкафа Стандартная комплектация: - светодиодная подсветка внутреннего объема (4000/6000К) верхняя и вертикальная - автоматическая оттайка горячим газом - сифон для подключения к канализации - 4 уровня решетчатых полок - базовые полки-решетки | F30: - Тип охлаждения - динамический - Климатический класс - 3 - Температура окружающей среды, С° max - +25 - Относительная влажность воздуха,% max - 60 - Хладагент - R 290 - Напряжение, В - 220
C31: Шкаф низкотемпературный ШН-1.20-4.0 ANZIO LT 2D 1562R290 | E31: -22…-18 | F31: 4 | G31: 1684х885х2210 | H31: 296679.75 | I31: =ROUND(H31*(1-$D$3)/Лист2!$A$6,0) -> 296680
C33: Шкаф низкотемпературный ШН 1.80-6.0 ANZIO LT 3D 2343R290 | E33: -22…-18 | F33: 6.02 | G33: 2465х885х2210 | H33: 479150.1 | I33: =ROUND(H33*(1-$D$3)/Лист2!$A$6,0) -> 479150
C35: Полка сетчатая навесная с кронштейнами 780x513 мм для Anzio/Milan с ограничителем (775.58.00.00) | E35: - | F35: - | G35: - | H35: 1880 | I35: =ROUND(H35*(1-$D$3)/Лист2!$A$6,0) -> 1880
C37: Ценникодержатель съемный, L=1000 мм, прозрачный, откидной (на полки, рёшётку) (845.00.00.11) | E37: - | F37: - | G37: - | H37: 144 | I37: =ROUND(H37*(1-$D$3)/Лист2!$A$6,0) -> 144
G40: НАВЕРХ

Sheet Лари ItalFrost
J1: На главную
A3: Ваша скидка: | C3: =Содержание!D2 -> 0
A4: НДС: | C4: =IF(Лист2!A1=TRUE,"С НДС","БЕЗ НДС") -> С НДС
A5: Морозильные и холодильные лари Italfrost
A7: № | B7: Изображение | C7: Наименование | E7: Температур-ный режим, °C | F7: Объем, л | G7: Габариты, (LxWxH) мм | H7: Базовая цена, руб. (с НДС) | I7: =Лист2!$A$5 -> Ваша цена, руб. | J7: Нажмите для расчета стоимости брендирования
A9: 1 | B9: Морозильные лари с гнутыми раздвижными стеклами | K9: Сечение ларей с радиусной стеклянной крышкой | V9: Сечение ларей с радиусной стеклянной крышкой и товарным накопителем
C10: CF200C | D10: без корзин | E10: -18…-25 | F10: 235 | G10: 807х662х925 | H10: 33033 | I10: =ROUND(H10*(1-$C$3)/Лист2!$A$6,0) -> 33033
D11: 3 корзины | H11: 34539 | I11: =ROUND(H11*(1-$C$3)/Лист2!$A$6,0) -> 34539
C12: CF300C | D12: без корзин | E12: -18…-25 | F12: 319 | G12: 1017х662х925 | H12: 36305 | I12: =ROUND(H12*(1-$C$3)/Лист2!$A$6,0) -> 36305
D13: 4 корзины | H13: 38313 | I13: =ROUND(H13*(1-$C$3)/Лист2!$A$6,0) -> 38313
C14: CF400C | D14: без корзин | E14: -18…-25 | F14: 398 | G14: 1217х662х925 | H14: 39363 | I14: =ROUND(H14*(1-$C$3)/Лист2!$A$6,0) -> 39363
D15: 5 корзин | H15: 41873 | I15: =ROUND(H15*(1-$C$3)/Лист2!$A$6,0) -> 41873
C16: CF500C | D16: без корзин | E16: -18…-25 | F16: 485 | G16: 1437х662х925 | H16: 43015 | I16: =ROUND(H16*(1-$C$3)/Лист2!$A$6,0) -> 43015
D17: 6 корзин | H17: 46027 | I17: =ROUND(H17*(1-$C$3)/Лист2!$A$6,0) -> 46027
C18: CF600C | D18: без корзин | E18: -18…-25 | F18: 572 | G18: 1657х662х925 | H18: 46246 | I18: =ROUND(H18*(1-$C$3)/Лист2!$A$6,0) -> 46246
D19: 7 корзин | H19: 49760 | I19: =ROUND(H19*(1-$C$3)/Лист2!$A$6,0) -> 49760
A20: 2 | B20: Морозильные лари с прямыми раздвижными стеклами
C21: CF200F | D21: без корзин | E21: -18…-25 | F21: 235 | G21: 807х662х925 | H21: 32096 | I21: =ROUND(H21*(1-$C$3)/Лист2!$A$6,0) -> 32096
D22: 3 корзины | H22: 33404 | I22: =ROUND(H22*(1-$C$3)/Лист2!$A$6,0) -> 33404
C23: CF300F | D23: без корзин | E23: -18…-25 | F23: 319 | G23: 1017х662х925 | H23: 35643 | I23: =ROUND(H23*(1-$C$3)/Лист2!$A$6,0) -> 35643
D24: 4 корзины | H24: 35387 | I24: =ROUND(H24*(1-$C$3)/Лист2!$A$6,0) -> 35387
C25: CF400F | D25: без корзин | E25: -18…-25 | F25: 398 | G25: 1217х662х925 | H25: 39247 | I25: =ROUND(H25*(1-$C$3)/Лист2!$A$6,0) -> 39247
D26: 5 корзин | H26: 41427 | I26: =ROUND(H26*(1-$C$3)/Лист2!$A$6,0) -> 41427
C27: CF500F | D27: без корзин | E27: -18…-25 | F27: 485 | G27: 1437х662х925 | H27: 43197 | I27: =ROUND(H27*(1-$C$3)/Лист2!$A$6,0) -> 43197
D28: 6 корзин | H28: 45813 | I28: =ROUND(H28*(1-$C$3)/Лист2!$A$6,0) -> 45813
C29: CF600F | D29: без корзин | E29: -18…-25 | F29: 572 | G29: 1657х662х925 | H29: 46517 | I29: =ROUND(H29*(1-$C$3)/Лист2!$A$6,0) -> 46517
D30: 7 корзин | H30: 49569 | I30: =ROUND(H30*(1-$C$3)/Лист2!$A$6,0) -> 49569
A31: К заказу доступны лари с прямой составной короной серого цвета, скидка составит 770,0 рублей с НДС от базовой цены
A32: 3 | B32: Морозильные лари с глухой крышкой
C33: CF200S | D33: без корзин | E33: -18…-25 | F33: 235 | G33: 808х743х904 | H33: =H34-436 -> 32522.88473 | I33: =ROUND(H33*(1-$C$3)/Лист2!$A$6,0) -> 32523
D34: 1 корзина | H34: 32958.88473 | I34: =ROUND(H34*(1-$C$3)/Лист2!$A$6,0) -> 32959 | K34: Сечение ларей с прямой стеклянной крышкой | V34: Сечение ларей с прямой стеклянной крышкой и товарным накопителем
C35: CF300S | D35: без корзин | E35: -18…-25 | F35: 319 | G35: 1018х743х904 | H35: =H36-436 -> 35554.19359 | I35: =ROUND(H35*(1-$C$3)/Лист2!$A$6,0) -> 35554
D36: 1 корзина | H36: 35990.19359 | I36: =ROUND(H36*(1-$C$3)/Лист2!$A$6,0) -> 35990
C37: CF400S | D37: без корзин | E37: -18…-25 | F37: 398 | G37: 1218х743х904 | H37: =H38-436 -> 42328.78008 | I37: =ROUND(H37*(1-$C$3)/Лист2!$A$6,0) -> 42329
D38: 1 корзина | H38: 42764.78008 | I38: =ROUND(H38*(1-$C$3)/Лист2!$A$6,0) -> 42765
C39: CF500S | D39: без корзин | E39: -18…-25 | F39: 485 | G39: 1438х743х904 | H39: =H40-436 -> 43024.25245 | I39: =ROUND(H39*(1-$C$3)/Лист2!$A$6,0) -> 43024
D40: 1 корзина | H40: 43460.25245 | I40: =ROUND(H40*(1-$C$3)/Лист2!$A$6,0) -> 43460
C41: CF600S | D41: без корзин | E41: -18…-25 | F41: 572 | G41: 1658х743х904 | H41: =H42-426 -> 46927.12745 | I41: =ROUND(H41*(1-$C$3)/Лист2!$A$6,0) -> 46927
D42: 1 корзина | H42: 47353.12745 | I42: =ROUND(H42*(1-$C$3)/Лист2!$A$6,0) -> 47353
A43: 4 | B43: Морозильные лари с глухой крышкой (крышка из нержавеющей стали)
C44: CF200S нерж | D44: без корзин | E44: -18…-25 | F44: 235 | G44: 808х743х904 | H44: =H45-436 -> 36865.1689 | I44: =ROUND(H44*(1-$C$3)/Лист2!$A$6,0) -> 36865
D45: 1 корзина | H45: 37301.1689 | I45: =ROUND(H45*(1-$C$3)/Лист2!$A$6,0) -> 37301
C46: CF300S нерж | D46: без корзин | E46: -18…-25 | F46: 319 | G46: 1018х743х904 | H46: =H47-436 -> 40932.67105 | I46: =ROUND(H46*(1-$C$3)/Лист2!$A$6,0) -> 40933
D47: 1 корзина | H47: 41368.67105 | I47: =ROUND(H47*(1-$C$3)/Лист2!$A$6,0) -> 41369
C48: CF400S нерж | D48: без корзин | E48: -18…-25 | F48: 398 | G48: 1218х743х904 | H48: =H49-436 -> 48518.54912 | I48: =ROUND(H48*(1-$C$3)/Лист2!$A$6,0) -> 48519
D49: 1 корзина | H49: 48954.54912 | I49: =ROUND(H49*(1-$C$3)/Лист2!$A$6,0) -> 48955
C50: CF500S нерж | D50: без корзин | E50: -18…-25 | F50: 485 | G50: 1438х743х904 | H50: =H51-436 -> 49392.62502 | I50: =ROUND(H50*(1-$C$3)/Лист2!$A$6,0) -> 49393
D51: 1 корзина | H51: 49828.62502 | I51: =ROUND(H51*(1-$C$3)/Лист2!$A$6,0) -> 49829
C52: CF600S нерж | D52: без корзин | E52: -18…-25 | F52: 572 | G52: 1658х743х904 | H52: =H53-436 -> 53257.83975 | I52: =ROUND(H52*(1-$C$3)/Лист2!$A$6,0) -> 53258
D53: 1 корзина | H53: 53693.83975 | I53: =ROUND(H53*(1-$C$3)/Лист2!$A$6,0) -> 53694
A54: 5 | B54: Морозильные лари с гнутыми раздвижными стеклами (климатический класс 4+)
C55: CFТ200C | D55: без корзин | E55: -18…-25 | F55: 235 | G55: 807х662х925 | H55: 41459.1361 | I55: =ROUND(H55*(1-$C$3)/Лист2!$A$6,0) -> 41459
D56: 3 корзины | H56: =H55+502*3 -> 42965.1361 | I56: =ROUND(H56*(1-$C$3)/Лист2!$A$6,0) -> 42965
C57: CFТ300C | D57: без корзин | E57: -18…-25 | F57: 319 | G57: 1017х662х925 | H57: 43816.29786 | I57: =ROUND(H57*(1-$C$3)/Лист2!$A$6,0) -> 43816
D58: 4 корзины | H58: =H57+502*4 -> 45824.29786 | I58: =ROUND(H58*(1-$C$3)/Лист2!$A$6,0) -> 45824 | K58: Сечение ларей с глухой крышкой | V58: Внешний вид тыльной стороны ларя с запасником
C59: CFT400C | D59: без корзин | E59: -18…-25 | F59: 398 | G59: 1217х662х925 | H59: 47065.66209 | I59: =ROUND(H59*(1-$C$3)/Лист2!$A$6,0) -> 47066
D60: 5 корзин | H60: =H59+502*5 -> 49575.66209 | I60: =ROUND(H60*(1-$C$3)/Лист2!$A$6,0) -> 49576
C61: CFТ500C | D61: без корзин | E61: -18…-25 | F61: 485 | G61: 1437х662х925 | H61: 46855.87321 | I61: =ROUND(H61*(1-$C$3)/Лист2!$A$6,0) -> 46856
D62: 6 корзин | H62: =H61+502*6 -> 49867.87321 | I62: =ROUND(H62*(1-$C$3)/Лист2!$A$6,0) -> 49868
C63: CFТ600C | D63: без корзин | E63: -18…-25 | F63: 572 | G63: 1657х662х925 | H63: 50688.4014 | I63: =ROUND(H63*(1-$C$3)/Лист2!$A$6,0) -> 50688
D64: 7 корзин | H64: =H63+502*7 -> 54202.4014 | I64: =ROUND(H64*(1-$C$3)/Лист2!$A$6,0) -> 54202
A65: 6 | B65: Морозильные лари с прямыми раздвижными стеклами (климатический класс 4+)
C66: CFТ200F | D66: без корзин | E66: -18…-25 | F66: 235 | G66: 807х662х925 | H66: 39533.29278 | I66: =ROUND(H66*(1-$C$3)/Лист2!$A$6,0) -> 39533
D67: 3 корзины | H67: =H66+436*3 -> 40841.29278 | I67: =ROUND(H67*(1-$C$3)/Лист2!$A$6,0) -> 40841
C68: CFТ300F | D68: без корзин | E68: -18…-25 | F68: 319 | G68: 1017х662х925 | H68: 44108.63376 | I68: =ROUND(H68*(1-$C$3)/Лист2!$A$6,0) -> 44109
D69: 4 корзины | H69: =H68+436*4 -> 45852.63376 | I69: =ROUND(H69*(1-$C$3)/Лист2!$A$6,0) -> 45853
C70: CFT400F | D70: без корзин | E70: -18…-25 | F70: 398 | G70: 1217х662х925 | H70: 48021.51105 | I70: =ROUND(H70*(1-$C$3)/Лист2!$A$6,0) -> 48022
D71: 5 корзин | H71: =H70+436*5 -> 50201.51105 | I71: =ROUND(H71*(1-$C$3)/Лист2!$A$6,0) -> 50202
C72: CFТ500F | D72: без корзин | E72: -18…-25 | F72: 485 | G72: 1437х662х925 | H72: 47055.96525 | I72: =ROUND(H72*(1-$C$3)/Лист2!$A$6,0) -> 47056
D73: 6 корзин | H73: =H72+436*6 -> 49671.96525 | I73: =ROUND(H73*(1-$C$3)/Лист2!$A$6,0) -> 49672
C74: CFТ600F | D74: без корзин | E74: -18…-25 | F74: 572 | G74: 1657х662х925 | H74: 51113.32576 | I74: =ROUND(H74*(1-$C$3)/Лист2!$A$6,0) -> 51113
D75: 7 корзин | H75: =H74+436*7 -> 54165.32576 | I75: =ROUND(H75*(1-$C$3)/Лист2!$A$6,0) -> 54165
A76: К заказу доступны лари с прямой составной короной серого цвета, скидка составит 770,0 рублей с НДС от базовой цены
A77: 7 | B77: Морозильные лари для мягкого мороженного (комплектация - стеклянная суперструктура, товарный накопитель, электронный контроллер, полка навесная для установки гастроемкостей
C78: CF300CS | D78: - | E78: -18…-25 | F78: 319 | G78: 1017х662х1310 | H78: 52777 | I78: =ROUND(H78*(1-$C$3)/Лист2!$A$6,0) -> 52777
C79: CF400CS | D79: - | E79: -18…-25 | F79: 398 | G79: 1217х662х1310 | H79: 57061 | I79: =ROUND(H79*(1-$C$3)/Лист2!$A$6,0) -> 57061
C80: CF500CS | D80: - | E80: -18…-25 | F80: 485 | G80: 1437х662х1310 | H80: 63436 | I80: =ROUND(H80*(1-$C$3)/Лист2!$A$6,0) -> 63436
A81: 8 | B81: Опции для ларей
C82: Корзина для ларя с гнут. стек. | D82: 087.42.00.00 | E82: - | F82: - | G82: 214х498х320 | H82: 502 | I82: =ROUND(H82*(1-$C$3)/Лист2!$A$6,0) -> 502
C83: Корзина для ларя с прям. стек. | D83: 086.42.00.00 | E83: - | F83: - | G83: 214х493х250 | H83: 436 | I83: =ROUND(H83*(1-$C$3)/Лист2!$A$6,0) -> 436
C84: Корзина для ларя с глух. крыш. | D84: 086.42.00.00 | E84: - | F84: - | G84: 214х493х250 | H84: 436 | I84: =ROUND(H84*(1-$C$3)/Лист2!$A$6,0) -> 436
C85: Накопитель для ларя | E85: - | F85: - | G85: - | H85: 3850 | I85: 3850
C86: Надстройка стеклянная 1145.12.00.00 для ЛВН 300 Г | H86: 7339.092 | I86: =ROUND(H86*(1-$C$3)/Лист2!$A$6,0) -> 7339
C87: Надстройка стеклянная 1145.12.00.00-01 для ЛВН 400 Г | H87: 7981.596 | I87: =ROUND(H87*(1-$C$3)/Лист2!$A$6,0) -> 7982
C88: Надстройка стеклянная 1145.12.00.00-02 для ЛВН 500 Г | H88: 8937.95625 | I88: =ROUND(H88*(1-$C$3)/Лист2!$A$6,0) -> 8938
C89: Комплект подсветки для ларя CF200C | E89: Спектр 4000К/6000К | H89: =H90*0.98 -> 2055.648 | I89: =ROUND(H89*(1-$C$3)/Лист2!$A$6,0) -> 2056
C90: Комплект подсветки для ларя CF300C | H90: 2097.6 | I90: =ROUND(H90*(1-$C$3)/Лист2!$A$6,0) -> 2098
C91: Комплект подсветки для ларя CF400C | H91: 2280 | I91: =ROUND(H91*(1-$C$3)/Лист2!$A$6,0) -> 2280
C92: Комплект подсветки для ларя CF500C | H92: 2622 | I92: =ROUND(H92*(1-$C$3)/Лист2!$A$6,0) -> 2622
C93: Комплект подсветки для ларя CF600C | H93: =H92*1.15 -> 3015.3 | I93: =ROUND(H93*(1-$C$3)/Лист2!$A$6,0) -> 3015
B95: Стандартный цвет короны ларя - Серый
B96: Опционально доступны иные цвета короны - наличие уточнять у менеджеров, наценка +1,5% к цене ларя
H98: НАВЕРХ

Sheet Лари-бонеты Italfrost
G1: ЗАВОД «ОПК» Тел.: +7 (495) 987-4388 e-mail: info@cryspi.ru сайт: cryspi.ru | J1: На главную
B3: Ваша скидка: | D3: =Содержание!D2 -> 0
B4: НДС: | D4: =IF(Лист2!A1=TRUE,"С НДС","БЕЗ НДС") -> С НДС
A6: Двухрежимные ларь-бонеты ITALFROST
A9: № | B9: Изображение | C9: Наименование | E9: Колличество делителей/корзин | F9: Температурный режим,°C | G9: Габариты, (LxWxH) мм | H9: Базовая цена, руб. (с НДС) | I9: =[5]Лист2!$A$5 -> Ваша цена, руб.
A11: 1 | B11: ЛВН двухрежимный ITALFROST | K11: СЕЧЕНИЕ
A13: - Стандартная комплектация ЛВН Italfrost: - Корпус внешний - оцинкованный металл (RAL 9003); - Охлаждаемый объем - буклированный алюминий, цвет решеток/делителей RAL 9003; - Компрессор Embraco, хладагент R-290, оттайка горячим газом, система выпаривания конденсата; - Электронный контроллер CAREL; | E13: - Комплект верхнего бампера; - Система решеток по периметру охлаждаемого объема (1 разделитель, устанавливаемый возле агрегатного отсека во всю высоту охл.объема); - Цвет пластиковых элеметов RAL 7035 (крышка, окантовка стекла, бампер, ручки); -Деревянная обрешетка;
C15: Ларь-витрина низкотемпературный ЛВН 1850 (ЛБТ2 М 1850) | D15: С комплектом делителей (2 шт.) | F15: Возможен выбор температурного режима (НТ -18..-24 ̊С/ СТ -2..+6 ̊С) | G15: 1850х858х869 | H15: 140679 | I15: =ROUND(H15*(1-$D$3)/Лист2!$A$6,0) -> 140679
D16: С комплектом корзинами (3 шт.) | H16: 144407 | I16: =ROUND(H16*(1-$D$3)/Лист2!$A$6,0) -> 144407
C17: Ларь-витрина низкотемпературный ЛВН 1850 (ЛБ2 М 1850) | D17: С комплектом делителей (2 шт.) | G17: 1850х858х869 | H17: 134417 | I17: =ROUND(H17*(1-$D$3)/Лист2!$A$6,0) -> 134417
D18: С комплектом корзинами (3 шт.) | H18: 138145 | I18: =ROUND(H18*(1-$D$3)/Лист2!$A$6,0) -> 138145
C19: Ларь-витрина низкотемпературный ЛВН 2100 (ЛБ2 М 2100) | D19: С комплектом делителей (3 шт.) | G19: 2100х858х869 | H19: 140966 | I19: =ROUND(H19*(1-$D$3)/Лист2!$A$6,0) -> 140966
D20: С комплектом корзинами (4 шт.) | H20: 145225 | I20: =ROUND(H20*(1-$D$3)/Лист2!$A$6,0) -> 145225
C21: Ларь-витрина низкотемпературный ЛВН 2500 (ЛБ2 М 2500) | D21: С комплектом делителей (4 шт.) | G21: 2500х858х869 | H21: 146157 | I21: =ROUND(H21*(1-$D$3)/Лист2!$A$6,0) -> 146157
D22: С комплектом корзинами (5 шт.) | H22: 150947 | I22: =ROUND(H22*(1-$D$3)/Лист2!$A$6,0) -> 150947
A23: 2 | B23: ЛВН двухрежимный ITALFROST Push
A25: - Стандартная комплектация ЛВН Italfrost: - Корпус внешний - оцинкованный металл (RAL 9003); - Охлаждаемый объем - буклированный алюминий, цвет решеток/делителей RAL 9003; - Компрессор Embraco, хладагент R-290, оттайка горячим газом, система выпаривания конденсата; - Электронный контроллер CAREL; | E25: - Комплект верхнего бампера; - Система решеток по периметру охлаждаемого объема (1 разделитель, устанавливаемый возле агрегатного отсека во всю высоту охл.объема); - Цвет пластиковых элеметов RAL 7035 (крышка, окантовка стекла, бампер, ручки); - Деревянная обрешетка;
C27: Ларь-витрина низкотемпературный ЛВН 1850 (ЛБТ2 М 1850) PUSH | D27: С комплектом делителей (2 шт.) | F27: Возможен выбор температурного режима (НТ -18..-24 ̊С/ СТ -2..+6 ̊С) | G27: 1850х858х869 | H27: 140679 | I27: =ROUND(H27*(1-$D$3)/Лист2!$A$6,0) -> 140679
D28: С комплектом корзинами (3 шт.) | H28: 144407 | I28: =ROUND(H28*(1-$D$3)/Лист2!$A$6,0) -> 144407
C29: Ларь-витрина низкотемпературный ЛВН 1850 (ЛБ2 М 1850) PUSH | D29: С комплектом делителей (2 шт.) | G29: 1850х858х869 | H29: 134417 | I29: =ROUND(H29*(1-$D$3)/Лист2!$A$6,0) -> 134417
D30: С комплектом корзинами (3 шт.) | H30: 138145 | I30: =ROUND(H30*(1-$D$3)/Лист2!$A$6,0) -> 138145
C31: Ларь-витрина низкотемпературный ЛВН 2100 (ЛБ2 М 2100) PUSH | D31: С комплектом делителей (3 шт.) | G31: 2100х858х869 | H31: 140966 | I31: =ROUND(H31*(1-$D$3)/Лист2!$A$6,0) -> 140966
D32: С комплектом корзинами (4 шт.) | H32: 145225 | I32: =ROUND(H32*(1-$D$3)/Лист2!$A$6,0) -> 145225
C33: Ларь-витрина низкотемпературный ЛВН 2500 (ЛБ2 М 2500) PUSH | D33: С комплектом делителей (4 шт.) | G33: 2500х858х869 | H33: 146157 | I33: =ROUND(H33*(1-$D$3)/Лист2!$A$6,0) -> 146157
D34: С комплектом корзинами (5 шт.) | H34: 150947 | I34: =ROUND(H34*(1-$D$3)/Лист2!$A$6,0) -> 150947
A35: 3 | B35: ЛВН двухрежимный RONDO с термостатом
A37: - Стандартная комплектация ЛВН Italfrost: - Корпус внешний - оцинкованный металл (RAL 9003); - Охлаждаемый объем - буклированный алюминий, цвет решеток/делителей RAL 9003; - Компрессор Embraco, хладагент R-290, - БЕЗ оттайки горячим газом, БЕЗ системы выпаривания конденсата; - Термостат (управление температурой в объеме); | E37: - БЕЗ верхнего бампера; - Система решеток по периметру охлаждаемого объема (1 разделитель, устанавливаемый возле агрегатного отсека во всю высоту охл.объема); - Возможен выбор температурного режима НТ/СТ (НТ -18..-24 ̊С/ СТ -2..+6 ̊С); - Цвет пластиковых элеметов RAL 7035 (крышка, окантовка стекла, бампер, ручки); - Деревянная обрешетка;
C39: Ларь-витрина низкотемпературный ЛВНР 1850 (ЛБТР М 1850) | D39: С комплектом делителей (2 шт.) | F39: -18..-24 ̊С | G39: 1850х858х869 | H39: 99472.4 | I39: =ROUND(H39*(1-$D$3)/Лист2!$A$6,0) -> 99472
D40: С комплектом корзинами (3 шт.) | H40: 103200.4 | I40: =ROUND(H40*(1-$D$3)/Лист2!$A$6,0) -> 103200
C41: Ларь-витрина низкотемпературный ЛВНР 1850 (ЛБР М 1850) | D41: С комплектом делителей (2 шт.) | G41: 1850х858х869 | H41: 96663.65 | I41: =ROUND(H41*(1-$D$3)/Лист2!$A$6,0) -> 96664
D42: С комплектом корзинами (3 шт.) | H42: 100391.65 | I42: =ROUND(H42*(1-$D$3)/Лист2!$A$6,0) -> 100392
C43: Ларь-витрина низкотемпературный ЛВНР 2100 (ЛБР М 2100) | D43: С комплектом делителей (3 шт.) | G43: 2100х858х869 | H43: 100274.4 | I43: =ROUND(H43*(1-$D$3)/Лист2!$A$6,0) -> 100274
D44: С комплектом корзинами (4 шт.) | H44: 104533.4 | I44: =ROUND(H44*(1-$D$3)/Лист2!$A$6,0) -> 104533
C45: Ларь-витрина низкотемпературный ЛВНР 2500 (ЛБР М 2500) | D45: С комплектом делителей (4 шт.) | G45: 2500х858х869 | H45: 115811.05 | I45: =ROUND(H45*(1-$D$3)/Лист2!$A$6,0) -> 115811
D46: С комплектом корзинами (5 шт.) | H46: 120601.05 | I46: =ROUND(H46*(1-$D$3)/Лист2!$A$6,0) -> 120601
A47: 4 | B47: ЛВН двухрежимный RONDO с контроллером
A49: - Стандартная комплектация ЛВН Italfrost: - Корпус внешний - оцинкованный металл (RAL 9003); - Охлаждаемый объем - буклированный алюминий, цвет решеток/делителей RAL 9003; - Компрессор Embraco, хладагент R-290, - БЕЗ оттайки горячим газом, БЕЗ системы выпаривания конденсата; - Электронный контроллер CAREL; | E49: - БЕЗ верхнего бампера; - Система решеток по периметру охлаждаемого объема (1 разделитель, устанавливаемый возле агрегатного отсека во всю высоту охл.объема); - Возможен выбор температурного режима НТ/СТ (НТ -18..-24 ̊С/ СТ -2..+6 ̊С); - Цвет пластиковых элеметов RAL 7035 (крышка, окантовка стекла, бампер, ручки); - Деревянная обрешетка;
C51: Ларь-витрина низкотемпературный ЛВНР 1850 (ЛБТР М 1850) | D51: С комплектом делителей (2 шт.) | F51: -18..-24 ̊С | G51: 1850х858х869 | H51: 101748.8 | I51: =ROUND(H51*(1-$D$3)/Лист2!$A$6,0) -> 101749
D52: С комплектом корзинами (3 шт.) | H52: 105476.8 | I52: =ROUND(H52*(1-$D$3)/Лист2!$A$6,0) -> 105477
C53: Ларь-витрина низкотемпературный ЛВНР 1850 (ЛБР М 1850) | D53: С комплектом делителей (2 шт.) | G53: 1850х858х869 | H53: 98956.85 | I53: =ROUND(H53*(1-$D$3)/Лист2!$A$6,0) -> 98957
D54: С комплектом корзинами (3 шт.) | H54: 102684.85 | I54: =ROUND(H54*(1-$D$3)/Лист2!$A$6,0) -> 102685
C55: Ларь-витрина низкотемпературный ЛВНР 2100 (ЛБР М 2100) | D55: С комплектом делителей (3 шт.) | G55: 2100х858х869 | H55: 102550.8 | I55: =ROUND(H55*(1-$D$3)/Лист2!$A$6,0) -> 102551
D56: С комплектом корзинами (4 шт.) | H56: 106809.8 | I56: =ROUND(H56*(1-$D$3)/Лист2!$A$6,0) -> 106810
C57: Ларь-витрина низкотемпературный ЛВНР 2500 (ЛБР М 2500) | D57: С комплектом делителей (4 шт.) | G57: 2500х858х869 | H57: =H56+H76*4 -> 209565.8 | I57: =ROUND(H57*(1-$D$3)/Лист2!$A$6,0) -> 209566
D58: С комплектом корзинами (5 шт.) | H58: =H56+H77+H78*4 -> 263615.8 | I58: =ROUND(H58*(1-$D$3)/Лист2!$A$6,0) -> 263616
A59: 5 | B59: КОМПЛЕКТУЮЩИЕ
A61: Бампер (Определяется харакетристикой, либо для отдельного заказа)
C62: Комплект трехстороннего нижнего бампера L=1850 для ЛВН ЛБТ | H62: 1645 | I62: =ROUND(H62*(1-$D$3)/Лист2!$A$6,0) -> 1645
C63: Комплект трехстороннего верхнего бампера L=1850 для ЛВН ЛБТ | H63: 1727.25 | I63: =ROUND(H63*(1-$D$3)/Лист2!$A$6,0) -> 1727
C64: Комплект нижнего бампера L=1850 для ЛВН ЛБ | H64: 1367 | I64: =ROUND(H64*(1-$D$3)/Лист2!$A$6,0) -> 1367
C65: Комплект верхнего бампера L=1850 для ЛВН ЛБ | H65: 1494.15 | I65: =ROUND(H65*(1-$D$3)/Лист2!$A$6,0) -> 1494
C66: Комплект нижнего бампера L=2100 для ЛВН ЛБ | H66: 1423 | I66: =ROUND(H66*(1-$D$3)/Лист2!$A$6,0) -> 1423
C67: Комплект верхнего бампера L=2100 для ЛВН ЛБ | H67: 1494.15 | I67: =ROUND(H67*(1-$D$3)/Лист2!$A$6,0) -> 1494
C68: Комплект нижнего бампера L=2500 для ЛВН ЛБ | H68: 1548 | I68: =ROUND(H68*(1-$D$3)/Лист2!$A$6,0) -> 1548
C69: Комплект верхнего бампера L=2500 для ЛВН ЛБ | H69: 1625.4 | I69: =ROUND(H69*(1-$D$3)/Лист2!$A$6,0) -> 1625
A70: Разделители и корзины (полимерное покрытие, цвет - RAL 9003)
C71: Разделитель поперечный объема 1022.45.00.00 L=1850/2100/2500 для ЛБ М | H71: 802 | I71: =ROUND(H71*(1-$D$3)/Лист2!$A$6,0) -> 802
C72: Корзина увеличенная над агрегатным отсеком 1022.110.00.00-01 для ЛВН/ЛВС (ЛБ М) (Устанавливается над агрегатным отсеком, 1 шт. в ЛБ каждого типоразмера) | H72: 1333 | I72: =ROUND(H72*(1-$D$3)/Лист2!$A$6,0) -> 1333
C73: Корзина 1022.110.00.00 для ЛВН/ЛВС (ЛБ М) (в ЛБ длиной 2500 устанавливается 5 данных корзин, в 2100 - 4 корзины, в 1850 - 3 корзины) | H73: 1333 | I73: =ROUND(H73*(1-$D$3)/Лист2!$A$6,0) -> 1333
A74: Суперструктуры и опции
C75: Суперструктура пристенная 1022.61.00.00-02 для ЛВН/ЛВС (ЛБ М) 1850 | H75: 24557 | I75: =ROUND(H75*(1-$D$3)/Лист2!$A$6,0) -> 24557
C76: Суперструктура пристенная 1022.61.00.00 для ЛВН/ЛВС (ЛБ М) 2100 | H76: 25689 | I76: =ROUND(H76*(1-$D$3)/Лист2!$A$6,0) -> 25689
C77: Суперструктура пристенная 1022.61.00.00-01 для ЛВН/ЛВС (ЛБ М) 2500 | H77: 27290 | I77: =ROUND(H77*(1-$D$3)/Лист2!$A$6,0) -> 27290
C78: Суперструктура островная 1022.60.00.00-02 для ЛВН/ЛВС (ЛБ М) 1850 | H78: 32379 | I78: =ROUND(H78*(1-$D$3)/Лист2!$A$6,0) -> 32379
C79: Суперструктура островная 1022.60.00.00 для ЛВН/ЛВС (ЛБ М) 2100 | H79: 34547 | I79: =ROUND(H79*(1-$D$3)/Лист2!$A$6,0) -> 34547
C80: Суперструктура островная 1022.60.00.00-01 для ЛВН/ЛВС (ЛБ М) 2500 | H80: 37319 | I80: =ROUND(H80*(1-$D$3)/Лист2!$A$6,0) -> 37319
C82: Комплект подсветки прист 429.80.00.00-02 L=1850 для ЛБ М (LED, лампа Т5) | H82: 6910.3285 | I82: =ROUND(H82*(1-$D$3)/Лист2!$A$6,0) -> 6910
C83: Комплект подсветки прист 429.80.00.00 L=2100 для ЛБ М (LED, лампа Т5) | H83: 7274.03 | I83: =ROUND(H83*(1-$D$3)/Лист2!$A$6,0) -> 7274
C84: Комплект подсветки прист 429.80.00.00-01 L=2500 для ЛБ М (LED, лампа Т5) | H84: 7499 | I84: =ROUND(H84*(1-$D$3)/Лист2!$A$6,0) -> 7499
C85: Комплект подсветки остр суперстр 429.64.00.00-02 L=1850 для ЛБ М (LED, лампа Т5) | H85: 13121.856 | I85: =ROUND(H85*(1-$D$3)/Лист2!$A$6,0) -> 13122
C86: Комплект подсветки остр суперстр 429.64.00.00 L=2100 для ЛБ М (LED, лампа Т5) | H86: 13812.48 | I86: =ROUND(H86*(1-$D$3)/Лист2!$A$6,0) -> 13812
C87: Комплект подсветки остр суперстр 429.64.00.00-01 L=2500 для ЛБ М (LED, лампа Т5) | H87: 14388 | I87: =ROUND(H87*(1-$D$3)/Лист2!$A$6,0) -> 14388
C89: Комплект ценникодержателей прист 429.70.00.00-02 L=1850 для ЛБ М | H89: =H90*0.85 -> 481.95 | I89: =ROUND(H89*(1-$D$3)/Лист2!$A$6,0) -> 482
C90: Комплект ценникодержателей прист 429.70.00.00 L=2100 для ЛБ М | H90: 567 | I90: =ROUND(H90*(1-$D$3)/Лист2!$A$6,0) -> 567
C91: Комплект ценникодержателей прист 429.70.00.00-01 L=2500 для ЛБ М | H91: 567 | I91: =ROUND(H91*(1-$D$3)/Лист2!$A$6,0) -> 567
C92: Комплект ценникодержателей остр 429.66.00.00-02 L=1850 для ЛБ М | H92: 567 | I92: =ROUND(H92*(1-$D$3)/Лист2!$A$6,0) -> 567
C93: Комплект ценникодержателей остр 429.66.00.00 L=2100 для ЛБ М | H93: 1136 | I93: =ROUND(H93*(1-$D$3)/Лист2!$A$6,0) -> 1136
C94: Комплект ценникодержателей остр 429.66.00.00-01 L=2500 для ЛБ М | H94: 1136 | I94: =ROUND(H94*(1-$D$3)/Лист2!$A$6,0) -> 1136
C96: Комплект ограничителей прист 429.71.00.00-02 L=1850 для ЛБ М | H96: 1513 | I96: =ROUND(H96*(1-$D$3)/Лист2!$A$6,0) -> 1513
C97: Комплект ограничителей прист 429.71.00.00 L=2100 для ЛБ М | H97: 1513 | I97: =ROUND(H97*(1-$D$3)/Лист2!$A$6,0) -> 1513
C98: Комплект ограничителей прист 429.71.00.00-01 L=2500 для ЛБ М | H98: 1909 | I98: =ROUND(H98*(1-$D$3)/Лист2!$A$6,0) -> 1909
C99: Комплект ограничителей остр 429.68.00.00-02 L=1850 для ЛБ М | H99: 2601.5 | I99: =ROUND(H99*(1-$D$3)/Лист2!$A$6,0) -> 2602
C100: Комплект ограничителей остр 429.68.00.00 L=2100 для ЛБ М | H100: 3025 | I100: =ROUND(H100*(1-$D$3)/Лист2!$A$6,0) -> 3025
C101: Комплект ограничителей остр 429.68.00.00-01 L=2500 для ЛБ М | H101: 3810 | I101: =ROUND(H101*(1-$D$3)/Лист2!$A$6,0) -> 3810
C103: Соединительный комплект спина к спине остр 1022.62.00.00-02 L=1850 для ЛБ М | H103: 1275 | I103: =ROUND(H103*(1-$D$3)/Лист2!$A$6,0) -> 1275
C104: Соединительный комплект спина к спине остр 1022.62.00.00 L=2100 для ЛБ М | H104: 1307 | I104: =ROUND(H104*(1-$D$3)/Лист2!$A$6,0) -> 1307
C105: Соединительный комплект спина к спине остр 1022.62.00.00-01 L=2500 для ЛБ М | H105: 1481 | I105: =ROUND(H105*(1-$D$3)/Лист2!$A$6,0) -> 1481
C106: Воздуховод с площадкой под ценникодержатели низкий 1022.89.00.00-02 для ЛВН/ЛВС (ЛБ М) 1850 | H106: 3108 | I106: =ROUND(H106*(1-$D$3)/Лист2!$A$6,0) -> 3108
C107: Воздуховод с площадкой под ценникодержатели низкий 1022.89.00.00 для ЛВН/ЛВС (ЛБ М) 2100 | H107: 3127 | I107: =ROUND(H107*(1-$D$3)/Лист2!$A$6,0) -> 3127
C108: Воздуховод с площадкой под ценникодержатели низкий 1022.89.00.00-01 для ЛВН/ЛВС (ЛБ М) 2500 | H108: 3362 | I108: =ROUND(H108*(1-$D$3)/Лист2!$A$6,0) -> 3362
C109: Боковая заглушка к соед. комплекту «спина к спине» остр. 1022.111.00.00 для ЛВН/ЛВС (ЛБ М) | H109: 346 | I109: =ROUND(H109*(1-$D$3)/Лист2!$A$6,0) -> 346
C111: Компл 3-его уровн полок прист суперстр 404.99.00.00 L=1850 для ЛБТМ (G=370 мм) | H111: 3238 | I111: =ROUND(H111*(1-$D$3)/Лист2!$A$6,0) -> 3238
C112: Компл 3-его уровн полок прист суперстр 429.99.00.00 L=2100 для ЛБМ (G=370 мм) | H112: 3395 | I112: =ROUND(H112*(1-$D$3)/Лист2!$A$6,0) -> 3395
C113: Компл 3-его уровн полок прист суперстр 429.100.00.00 L=2500 для ЛБМ (G=370 мм) | H113: 3608 | I113: =ROUND(H113*(1-$D$3)/Лист2!$A$6,0) -> 3608
C114: Компл 3-его уровн полок остр суперстр 429.96.00.00 L=2100 для ЛБМ (G=370 мм) | H114: 5748 | I114: =ROUND(H114*(1-$D$3)/Лист2!$A$6,0) -> 5748
C115: Компл 3-его уровн полок остр суперстр 429.97.00.00 L=2500 для ЛБМ (G=370 мм) | H115: 6236 | I115: =ROUND(H115*(1-$D$3)/Лист2!$A$6,0) -> 6236
C116: Компл торц полок остр суперстр 429.102.00.00 L=2100/2500 для ЛБТМ | H116: 9388 | I116: =ROUND(H116*(1-$D$3)/Лист2!$A$6,0) -> 9388
C117: Компл торц полукр полок остр суперстр 429.101.00.00 L=2100/2500 для ЛБТМ | H117: 5583 | I117: =ROUND(H117*(1-$D$3)/Лист2!$A$6,0) -> 5583
G119: НАВЕРХ

Sheet Столы Italfrost с боковым
O1: На главную
A3: Ваша скидка: | C3: =Содержание!D2 -> 0 | N3: На главную
A4: НДС: | C4: =IF(Лист2!A1=TRUE,"С НДС","БЕЗ НДС") -> С НДС
A6: Охлаждаемые столы с боковым расположением агрегата
A7: № | B7: Внешний вид | C7: Наименование | D7: С бортом/ без борта | E7: Количество | G7: Стандарт Gastronorm GN 1/1 | H7: Общий объём, л | I7: Полезный объём, л | J7: Габаритные размеры, мм | M7: Базовая цена, руб. (с НДС) | N7: =Лист2!$A$5 -> Ваша цена, руб.
E8: Ящиков | F8: Дверей | J8: Длина | K8: Ширина | L8: Высота
A9: Холодильные столы с нержавеющей столешницей (температурный режим, °C +1…+10)
C10: Шкаф-стол холодильный СШC-0,2 GN-1400 | D10: С бортом | E10: 0 | F10: 2 | G10: + | H10: 305 | I10: 220 | J10: 1393 | K10: 700 | L10: 840 | M10: 78937.84 | N10: =ROUND(M10*(1-$C$3)/Лист2!$A$6,0) -> 78938
C11: Шкаф-стол холодильный СШC-0,2 GNВ-1400 | D11: Без борта
C12: Шкаф-стол холодильный СШС-0,2-1400 | D12: С бортом | E12: 0 | F12: 2 | G12: - | H12: 255 | I12: 200 | J12: 1393 | K12: 600 | L12: 840 | M12: 78514.64 | N12: =ROUND(M12*(1-$C$3)/Лист2!$A$6,0) -> 78515
C13: Шкаф-стол холодильный СШС-0,2 В-1400 | D13: Без борта
C14: Шкаф-стол холодильный СШС-0,3 GN-1850 | D14: С бортом | E14: 0 | F14: 3 | G14: + | H14: 465 | I14: 310 | J14: 1838 | K14: 700 | L14: 840 | M14: 93059.84 | N14: =ROUND(M14*(1-$C$3)/Лист2!$A$6,0) -> 93060
C15: Шкаф-стол холодильный СШС-0,3 GNВ-1850 | D15: Без борта
C16: Шкаф-стол холодильный СШС-0,3-1850 | D16: С бортом | E16: 0 | F16: 3 | G16: - | H16: 395 | I16: 260 | J16: 1838 | K16: 600 | L16: 840 | M16: 92634.8 | N16: =ROUND(M16*(1-$C$3)/Лист2!$A$6,0) -> 92635
C17: Шкаф-стол холодильный СШС-0,3 В-1850 | D17: Без борта
C18: Шкаф-стол холодильный СШС-0,4 GN-2300 | D18: С бортом | E18: 0 | F18: 4 | G18: + | H18: 620 | I18: 410 | J18: 2283 | K18: 700 | L18: 840 | M18: 112828.8 | N18: =ROUND(M18*(1-$C$3)/Лист2!$A$6,0) -> 112829
C19: Шкаф-стол холодильный СШС-0,4 GNВ-2300 | D19: Без борта
C20: Шкаф-стол холодильный СШС-0,4-2300 | D20: С бортом | E20: 0 | F20: 4 | G20: - | H20: 520 | I20: 340 | J20: 2283 | K20: 600 | L20: 840 | M20: 112405.6 | N20: =ROUND(M20*(1-$C$3)/Лист2!$A$6,0) -> 112406
C21: Шкаф-стол холодильный СШС-0,4 В-2300 | D21: Без борта
A22: Морозильные столы с нержавеющей столешницей (температурный режим, °C -20…-10)
C23: Шкаф-стол морозильный СШН-0,2 GN-1400 | D23: С бортом | E23: 0 | F23: 2 | G23: + | H23: 305 | I23: 220 | J23: 1393 | K23: 700 | L23: 840 | M23: 91647.64 | N23: =ROUND(M23*(1-$C$3)/Лист2!$A$6,0) -> 91648
C24: Шкаф-стол морозильный СШН-0,2 GNВ-1400 | D24: Без борта
C25: Шкаф-стол морозильный СШН-0,2-1400 | D25: С бортом | E25: 0 | F25: 2 | G25: - | H25: 255 | I25: 200 | J25: 1393 | K25: 600 | L25: 840 | M25: 91223.52 | N25: =ROUND(M25*(1-$C$3)/Лист2!$A$6,0) -> 91224
C26: Шкаф-стол морозильный СШН-0,2 В-1400 | D26: Без борта
C27: Шкаф-стол морозильный СШН-0,3 GN-1850 | D27: С бортом | E27: 0 | F27: 3 | G27: + | H27: 465 | I27: 310 | J27: 1838 | K27: 700 | L27: 840 | M27: 117066.32 | N27: =ROUND(M27*(1-$C$3)/Лист2!$A$6,0) -> 117066
C28: Шкаф-стол морозильный СШН-0,3 GNВ-1850 | D28: Без борта
C29: Шкаф-стол морозильный СШН-0,3-1850 | D29: С бортом | E29: 0 | F29: 3 | G29: - | H29: 395 | I29: 260 | J29: 1838 | K29: 600 | L29: 840 | M29: 116642.2 | N29: =ROUND(M29*(1-$C$3)/Лист2!$A$6,0) -> 116642
C30: Шкаф-стол морозильный СШН-0,3 В-1850 | D30: Без борта
C31: Шкаф-стол морозильный СШН-0,4 GN-2300 | D31: С бортом | E31: 0 | F31: 4 | G31: + | H31: 620 | I31: 410 | J31: 2283 | K31: 700 | L31: 840 | M31: 138247.48 | N31: =ROUND(M31*(1-$C$3)/Лист2!$A$6,0) -> 138247
C32: Шкаф-стол морозильный СШН-0,4 GNВ-2300 | D32: Без борта
C33: Шкаф-стол морозильный СШН-0,4-2300 | D33: С бортом | E33: 0 | F33: 4 | G33: - | H33: 520 | I33: 340 | J33: 2283 | K33: 600 | L33: 840 | M33: 137823.36 | N33: =ROUND(M33*(1-$C$3)/Лист2!$A$6,0) -> 137823
C34: Шкаф-стол морозильный СШН-0,4 В-2300 | D34: Без борта
A35: Модификации к холодильным/морозильным столам( добавить к стандартной стоимости изделия)
C36: Замена стандартных ножек на колеса, 2 из них с тормозом | M36: 8218.36 | N36: =ROUND(M36*(1-$C$3)/Лист2!$A$6,0) -> 8218
A37: Опции к холодильным/морозильным столам(поставляются отдельно)
C38: Решетка защитаная для агрега из нержавеющей стали (84312), артикул СО.906.57.00.00 | M38: 1867.6 | N38: =ROUND(M38*(1-$C$3)/Лист2!$A$6,0) -> 1868
C39: Полкодержатель слева (96480) для столов 700, артикул СО.979.03.0000.05 | M39: 336.72 | N39: =ROUND(M39*(1-$C$3)/Лист2!$A$6,0) -> 337
C40: Полкодержатель справа (96481) для столов 700, артикул СО.979.03.0000.05mir | M40: 336.72 | N40: =ROUND(M40*(1-$C$3)/Лист2!$A$6,0) -> 337
C41: Полкодержатель слева (106969) для столов 700, артикул СО.906.03.0000.05 | M41: 311.88 | N41: =ROUND(M41*(1-$C$3)/Лист2!$A$6,0) -> 312
C42: Полкодержатель справа (106970) для столов 700, артикул СО.906.03.0000.05mir | M42: 311.88 | N42: =ROUND(M42*(1-$C$3)/Лист2!$A$6,0) -> 312
C43: Полка решетчатая для столов 700, крашенная (100670), артикул СО.979.56.5000.01 | J43: 332 | K43: 570 | L43: 4(6) | M43: 1184.04 | N43: =ROUND(M43*(1-$C$3)/Лист2!$A$6,0) -> 1184
C44: Полка решетчатая для столов 600, крашенная (100671), артикул СО.906.56.5000.01 | J44: 332 | K44: 470 | L44: 4(6) | M44: 996.36 | N44: =ROUND(M44*(1-$C$3)/Лист2!$A$6,0) -> 996

Sheet Столы Italfrost с нижним
A2: Ваша скидка: | C2: =Содержание!D2 -> 0 | N2: На главную
A3: НДС: | C3: =IF(Лист2!A1=TRUE,"С НДС","БЕЗ НДС") -> С НДС
A5: Охлаждаемые столы с нижним расположением агрегата
A6: № | B6: Внешний вид | C6: Наименование | D6: С бортом/ без борта | E6: Количество | G6: Стандарт Gastronorm GN 1/1 | H6: Общий объём, л | I6: Полезный объём, л | J6: Габаритные размеры, мм | M6: Базовая цена, руб. (с НДС) | N6: =Лист2!$A$5 -> Ваша цена, руб.
E7: Ящиков | F7: Дверей | J7: Длина | K7: Ширина | L7: Высота
A8: Холодильные столы с нержавеющей столешницей (температурный режим, °C +1…+10)
C9: Шкаф-стол холодильный СШС-0,2 GN-1000 NDSBS | D9: С бортом | E9: 0 | F9: 2 | G9: + | H9: 245 | I9: 200 | J9: 1000 | K9: 700 | L9: 865 | M9: 72368.12 | N9: =ROUND(M9*(1-$C$2)/Лист2!$A$6,0) -> 72368
C10: Шкаф-стол холодильный СШС-0,2 GN-1000 NDSFS | D10: Без борта
C11: Шкаф-стол холодильный СШС-0,2-1000 NDSBS | D11: С бортом | E11: 0 | F11: 2 | G11: - | H11: 205 | I11: 165 | J11: 1000 | K11: 600 | L11: 865 | M11: 70104 | N11: =ROUND(M11*(1-$C$2)/Лист2!$A$6,0) -> 70104
C12: Шкаф-стол холодильный СШС-0,2-1000 NDSFS | D12: Без борта
C13: Шкаф-стол холодильный СШС-0,3 GN-1500 NDSBS | D13: С бортом | E13: 0 | F13: 3 | G13: + | H13: 375 | I13: 260 | J13: 1500 | K13: 700 | L13: 865 | M13: 86982.32 | N13: =ROUND(M13*(1-$C$2)/Лист2!$A$6,0) -> 86982
C14: Шкаф-стол холодильный СШС-0,3 GN-1500 NDSFS | D14: Без борта
C15: Шкаф-стол холодильный СШС-0,3-1500 NDSBS | D15: С бортом | E15: 0 | F15: 3 | G15: - | H15: 315 | I15: 215 | J15: 1500 | K15: 600 | L15: 865 | M15: 84717.28 | N15: =ROUND(M15*(1-$C$2)/Лист2!$A$6,0) -> 84717
C16: Шкаф-стол холодильный СШС-0,3-1500 NDSFS | D16: Без борта
A17: Морозильные столы с нержавеющей столешницей (температурный режим, °C -20…-10)
C18: Шкаф-стол морозильный СШН-0,2 GN-1000 NDSBS | D18: С бортом | E18: 0 | F18: 2 | G18: + | H18: 245 | I18: 200 | J18: 1000 | K18: 700 | L18: 865 | M18: 80906.64 | N18: =ROUND(M18*(1-$C$2)/Лист2!$A$6,0) -> 80907
C19: Шкаф-стол морозильный СШН-0,2 GN-1000 NDSFS | D19: Без борта
C20: Шкаф-стол морозильный СШН-0,2-1000 NDSBS | D20: С бортом | E20: 0 | F20: 2 | G20: - | H20: 205 | I20: 165 | J20: 1000 | K20: 600 | L20: 865 | M20: 78641.6 | N20: =ROUND(M20*(1-$C$2)/Лист2!$A$6,0) -> 78642
C21: Шкаф-стол морозильный СШН-0,2-1000 NDSFS | D21: Без борта
C22: Шкаф-стол морозильный СШН-0,3 GN-1500 NDSBS | D22: С бортом | E22: 0 | F22: 3 | G22: + | H22: 375 | I22: 260 | J22: 1500 | K22: 700 | L22: 865 | M22: 102087.8 | N22: =ROUND(M22*(1-$C$2)/Лист2!$A$6,0) -> 102088
C23: Шкаф-стол морозильный СШН-0,3 GN-1500 NDSFS | D23: Без борта
C24: Шкаф-стол морозильный СШН-0,3-1500 NDSBS | D24: С бортом | E24: 0 | F24: 3 | G24: - | H24: 315 | I24: 215 | J24: 1500 | K24: 600 | L24: 865 | M24: 99822.76 | N24: =ROUND(M24*(1-$C$2)/Лист2!$A$6,0) -> 99823
C25: Шкаф-стол морозильный СШН-0,3-1500 NDSFS | D25: Без борта
A26: Модификации к холодильным/морозильным столам( добавить к стандартной стоимости изделия)
C27: Замена стандартных ножек на колеса, 2 из них с тормозом | M27: 8218.36 | N27: =ROUND(M27*(1-$C$2)/Лист2!$A$6,0) -> 8218
A28: Опции к холодильным/морозильным столам(поставляются отдельно)
C29: Решетка защитаная для агрега из нержавеющей стали для 2-х секционного стола(135524), артикул СО.1499.57.00.00 | M29: 1992.72 | N29: =ROUND(M29*(1-$C$2)/Лист2!$A$6,0) -> 1993
C30: Решетка защитаная для агрега из нержавеющей стали для 3-х секционного стола(135527), артикул СО.1503.57.00.00 | M30: 2241.12 | N30: =ROUND(M30*(1-$C$2)/Лист2!$A$6,0) -> 2241
C31: Полкодержатель слева (96480) для столов 700, артикул СО.979.03.0000.05 | M31: 336.72 | N31: =ROUND(M31*(1-$C$2)/Лист2!$A$6,0) -> 337
C32: Полкодержатель справа (96481) для столов 700, артикул СО.979.03.0000.05mir | M32: 336.72 | N32: =ROUND(M32*(1-$C$2)/Лист2!$A$6,0) -> 337
C33: Полкодержатель слева (106969) для столов 700, артикул СО.906.03.0000.05 | M33: 311.88 | N33: =ROUND(M33*(1-$C$2)/Лист2!$A$6,0) -> 312
C34: Полкодержатель справа (106970) для столов 700, артикул СО.906.03.0000.05mir | M34: 311.88 | N34: =ROUND(M34*(1-$C$2)/Лист2!$A$6,0) -> 312
C35: Полка решетчатая для столов 700, крашенная (100670), артикул СО.979.56.5000.01 | J35: 332 | K35: 570 | L35: 4(6) | M35: 1184.04 | N35: =ROUND(M35*(1-$C$2)/Лист2!$A$6,0) -> 1184
C36: Полка решетчатая для столов 600, крашенная (100671), артикул СО.906.56.5000.01 | J36: 332 | K36: 470 | L36: 4(6) | M36: 996.36 | N36: =ROUND(M36*(1-$C$2)/Лист2!$A$6,0) -> 996

Sheet Витрины Cryspi БА
I1: На главную
B3: Ваша скидка: | D3: =Содержание!D2 -> 0
B4: НДС: | D4: =IF(Лист2!A1=TRUE,"С НДС","БЕЗ НДС") -> С НДС
B7: Витрины Cryspi без агрегата
A8: № | C8: Наименование | D8: Температурный режим, C° | E8: Площадь экспозиции, кв.м. | F8: Габариты без боковин, мм (L/W/H) | G8: Базовая цена, руб. (с НДС) | H8: =[6]Лист2!$A$5 -> Ваша цена, руб.
A10: 1 | B10: Витрины серии GAMMA-2, глубина выкладки 760 мм | G10: Опции Gamma-2
C11: Среднетемпературные витрины (без боковых панелей и боковых стекол)
C12: Gamma-2 1200 БА ББ | D12: 0…+7 | E12: 0.85 | F12: 1118х1093х1300 | G12: 56549.64 | H12: =ROUND(G12*(1-$D$3)/Лист2!$A$6,0) -> 56550
C13: Gamma-2 1500 БА ББ | D13: 0…+7 | E13: 1.1 | F13: 1418х1093х1300 | G13: 63488.28 | H13: =ROUND(G13*(1-$D$3)/Лист2!$A$6,0) -> 63488
C14: Gamma-2 1800 БА ББ | D14: 0…+7 | E14: 1.3 | F14: 1718х1093х1300 | G14: 74152.92 | H14: =ROUND(G14*(1-$D$3)/Лист2!$A$6,0) -> 74153
C15: Средне-низкотемпературные витрины (без боковых панелей и боковых стекол)
C16: Gamma-2 SN 1200 БА ББ | D16: -6…+6 | E16: 0.85 | F16: 1118х1093х1300 | G16: 65239.04 | H16: =ROUND(G16*(1-$D$3)/Лист2!$A$6,0) -> 65239
C17: Gamma-2 SN 1500 БА ББ | D17: -6…+6 | E17: 1.1 | F17: 1418х1093х1300 | G17: 71773.8 | H17: =ROUND(G17*(1-$D$3)/Лист2!$A$6,0) -> 71774
C18: Gamma-2 SN 1800 БА ББ | D18: -6…+6 | E18: 1.3 | F18: 1718х1093х1300 | G18: 87792.84 | H18: =ROUND(G18*(1-$D$3)/Лист2!$A$6,0) -> 87793
C19: Низкотемпературные витрины (без боковых панелей и боковых стекол)
C20: Gamma-2 М 1200 БА ББ | D20: от -18 | E20: 0.85 | F20: 1118х1093х1300 | G20: 71949.52 | H20: =ROUND(G20*(1-$D$3)/Лист2!$A$6,0) -> 71950
C21: Gamma-2 М 1500 БА ББ | D21: от -18 | E21: 1.1 | F21: 1418х1093х1300 | G21: 82380.48 | H21: =ROUND(G21*(1-$D$3)/Лист2!$A$6,0) -> 82380
C22: Gamma-2 М 1800 БА ББ | D22: от -18 | E22: 1.3 | F22: 1718х1093х1300 | G22: 92684.48 | H22: =ROUND(G22*(1-$D$3)/Лист2!$A$6,0) -> 92684
C23: Угловые среднетемпературные и нейтральные витрины, кассовые прилавки
C24: Gamma-2 OC 90 (угол внеш.) БА ББ | D24: 0…+7 | E24: 0.92 | F24: 1130х1130х1300 | G24: 90964.08 | H24: =ROUND(G24*(1-$D$3)/Лист2!$A$6,0) -> 90964
C25: Gamma-2 IC (угол внутр.) БА ББ | D25: 0…+7 | E25: 0.74 | F25: 1295х1295х1300 | G25: 97975.4 | H25: =ROUND(G25*(1-$D$3)/Лист2!$A$6,0) -> 97975
A26: 2 | B26: Витрины серии GAMMA Quadro LED, глубина выкладки 760 мм | G26: Опции Gamma Quadro
C27: Среднетемпературные витрины (без боковых панелей и боковых стекол)
C28: Gamma Quadro 1200 LED БА ББ | D28: 0…+7 | E28: 0.85 | F28: 1118х1093х1300 | G28: 71967 | H28: =ROUND(G28*(1-$D$3)/Лист2!$A$6,0) -> 71967
C29: Gamma Quadro 1500 LED БА ББ | D29: 0…+7 | E29: 1.1 | F29: 1418х1093х1300 | G29: 77591.88 | H29: =ROUND(G29*(1-$D$3)/Лист2!$A$6,0) -> 77592
C30: Gamma Quadro 1800 LED БА ББ | D30: 0…+7 | E30: 1.3 | F30: 1718х1093х1300 | G30: 90532.6 | H30: =ROUND(G30*(1-$D$3)/Лист2!$A$6,0) -> 90533
C31: Средне-низкотемпературные витрины (без боковых панелей и боковых стекол)
C32: Gamma Quadro SN 1200 LED БА ББ | D32: -6…+6 | E32: 0.85 | F32: 1118х1093х1300 | G32: 74915.6 | H32: =ROUND(G32*(1-$D$3)/Лист2!$A$6,0) -> 74916
C33: Gamma Quadro SN 1500 LED БА ББ | D33: -6…+6 | E33: 1.1 | F33: 1418х1093х1300 | G33: 87779.04 | H33: =ROUND(G33*(1-$D$3)/Лист2!$A$6,0) -> 87779
C34: Gamma Quadro SN 1800 LED БА ББ | D34: -6…+6 | E34: 1.3 | F34: 1718х1093х1300 | G34: 100970.92 | H34: =ROUND(G34*(1-$D$3)/Лист2!$A$6,0) -> 100971
C35: Низкотемпературные витрины (без боковых панелей и боковых стекол)
C36: Gamma Quadro M 1200 LED БА ББ | D36: от -18 | E36: 0.85 | F36: 1118х1093х1300 | G36: 86855.36 | H36: =ROUND(G36*(1-$D$3)/Лист2!$A$6,0) -> 86855
C37: Gamma Quadro M 1500 LED БА ББ | D37: от -18 | E37: 1.1 | F37: 1418х1093х1300 | G37: 100503.56 | H37: =ROUND(G37*(1-$D$3)/Лист2!$A$6,0) -> 100504
C38: Gamma Quadro M 1800 LED БА ББ | D38: от -18 | E38: 1.3 | F38: 1718х1093х1300 | G38: 118788.56 | H38: =ROUND(G38*(1-$D$3)/Лист2!$A$6,0) -> 118789
A39: 3 | B39: Кондитерские витрины Elegia premium
C40: Elegia Premium К 1240 БА | D40: +1…+10 | E40: 1.63 | F40: 1240х928х1400 | G40: 121065.56 | H40: =ROUND(G40*(1-$D$3)/Лист2!$A$6,0) -> 121066
C41: Elegia Premium К 940 БА | D41: +1…+10 | E41: 1.2 | F41: 940х928х1400 | G41: 105507.44 | H41: =ROUND(G41*(1-$D$3)/Лист2!$A$6,0) -> 105507
A42: 4 | B42: Витрины серии MAGNUM, глубина выкладки 860 мм | G42: Опции Magnum
C43: Среднетемпературные
C44: Magnum 1250 Д БА ББ | D44: 0…+7 | E44: 1.075 | F44: 1250х1100х1225 | G44: 90998.12 | H44: =ROUND(G44*(1-$D$3)/Лист2!$A$6,0) -> 90998
C45: Magnum 1880 Д БА ББ | D45: 0…+7 | E45: 1.62 | F45: 1880х1100х1225 | G45: 125930.52 | H45: =ROUND(G45*(1-$D$3)/Лист2!$A$6,0) -> 125931
C46: Magnum 2500 Д БА ББ | D46: 0…+7 | E46: 2.15 | F46: 2500х1100х1225 | G46: 148220.28 | H46: =ROUND(G46*(1-$D$3)/Лист2!$A$6,0) -> 148220
C47: Magnum 3750 Д БА ББ | D47: 0…+7 | E47: 3.22 | F47: 3750х1100х1225 | G47: 189980.92 | H47: =ROUND(G47*(1-$D$3)/Лист2!$A$6,0) -> 189981
C48: Средне-низкотемпературные
C49: Magnum SN 1250 Д БА ББ | D49: -6…+6 | E49: 1.075 | F49: 1250х1100х1225 | G49: 99155.76 | H49: =ROUND(G49*(1-$D$3)/Лист2!$A$6,0) -> 99156
C50: Magnum SN 1880 Д БА ББ | D50: -6…+6 | E50: 1.62 | F50: 1880х1100х1225 | G50: 133650.24 | H50: =ROUND(G50*(1-$D$3)/Лист2!$A$6,0) -> 133650
C51: Magnum SN 2500 Д БА ББ | D51: -6…+6 | E51: 2.15 | F51: 2500х1100х1225 | G51: 164094.88 | H51: =ROUND(G51*(1-$D$3)/Лист2!$A$6,0) -> 164095
C52: Magnum SN 3750 Д БА ББ | D52: -6…+6 | E52: 3.22 | F52: 3750х1100х1225 | G52: 216008.64 | H52: =ROUND(G52*(1-$D$3)/Лист2!$A$6,0) -> 216009
C53: Низкотемпературные
C54: Magnum F 1250 Д БА ББ | D54: -18...-15 | E54: 1.075 | F54: 1250х1100х1225 | G54: 110398.16 | H54: =ROUND(G54*(1-$D$3)/Лист2!$A$6,0) -> 110398
C55: Magnum F 1880 Д БА ББ | D55: -18...-15 | E55: 1.62 | F55: 1880х1100х1225 | G55: 156038.44 | H55: =ROUND(G55*(1-$D$3)/Лист2!$A$6,0) -> 156038
C56: Magnum F 2500 Д БА ББ | D56: -18...-15 | E56: 2.15 | F56: 2500х1100х1225 | G56: 179838.84 | H56: =ROUND(G56*(1-$D$3)/Лист2!$A$6,0) -> 179839
C57: Magnum F 3750 Д БА ББ | D57: -18...-15 | E57: 3.22 | F57: 3750х1100х1225 | G57: 283967.2 | H57: =ROUND(G57*(1-$D$3)/Лист2!$A$6,0) -> 283967
C58: Среднетемпературные с низким стеклом
C59: Magnum SG 1250 Д БА ББ | D59: 0…+7 | E59: 1.075 | F59: 1250х1100х895 | G59: 78018.76 | H59: =ROUND(G59*(1-$D$3)/Лист2!$A$6,0) -> 78019
C60: Magnum SG 1880 Д БА ББ | D60: 0…+7 | E60: 1.62 | F60: 1880х1100х895 | G60: 105227.76 | H60: =ROUND(G60*(1-$D$3)/Лист2!$A$6,0) -> 105228
C61: Magnum SG 2500 Д БА ББ | D61: 0…+7 | E61: 2.15 | F61: 2500х1100х895 | G61: 127295.8 | H61: =ROUND(G61*(1-$D$3)/Лист2!$A$6,0) -> 127296
C62: Magnum SG 3750 Д БА ББ | D62: 0…+7 | E62: 3.22 | F62: 3750х1100х895 | G62: 161784.76 | H62: =ROUND(G62*(1-$D$3)/Лист2!$A$6,0) -> 161785
C63: Угловые витрины
C64: Magnum OC 90 Д БА ББ | D64: 0…+7 | E64: 1.192 | F64: 1360х1360х1225 | G64: 165381.96 | H64: =ROUND(G64*(1-$D$3)/Лист2!$A$6,0) -> 165382
C65: Magnum ОC SG 90 Д БА ББ | D65: 0…+7 | E65: 1.192 | F65: 1360х1360х897 | G65: 128239.72 | H65: =ROUND(G65*(1-$D$3)/Лист2!$A$6,0) -> 128240
C66: Magnum IC 90 Д БА ББ | D66: 0…+7 | E66: 1.08 | F66: 1313х1313х1225 | G66: 160580.48 | H66: =ROUND(G66*(1-$D$3)/Лист2!$A$6,0) -> 160580
C67: Magnum IC SG 90 Д БА ББ | D67: 0…+7 | E67: 1.08 | F67: 1313х1313х897 | G67: 151262.72 | H67: =ROUND(G67*(1-$D$3)/Лист2!$A$6,0) -> 151263
F69: наверх

Sheet Опции для витрин
E1: В содержание
B3: Ваша скидка: | D3: =Содержание!D2 -> 0
B4: НДС: | D4: =IF(Лист2!A1=TRUE,"С НДС","БЕЗ НДС") -> С НДС
B7: Опции для витрин Cryspi
A8: № | B8: Название | C8: Базовая цена, руб. (с НДС) | D8: =[5]Лист2!$A$5 -> Ваша цена, руб.
E9: Комментарий
A10: 1 | B10: Octava | C10: Вернуться к прайсу Octava
B11: Разделитель передвижной низкий(оргстекл) 343.55.00.00 для ВПС/ВПСН Octava | C11: 1019.36 | D11: =ROUND(C11*(1-$D$3)/Лист2!$A$6,0) -> 1019
B12: Разделитель передвижной высокий(оргстекл) 343.56.00.00 для ВПС/ВПСН Octava | C12: 1783.88 | D12: =ROUND(C12*(1-$D$3)/Лист2!$A$6,0) -> 1784
B13: Комплект полки навесной для весов 343.54.00.00 для ВПС/ВПСН/ВПН Octava | C13: 2962.4 | D13: =ROUND(C13*(1-$D$3)/Лист2!$A$6,0) -> 2962
A14: 2 | B14: Gamma-2 | C14: Вернуться к прайсу Gamma-2
B15: Комплект боковин 337.40.00.00 для ВПС/ВПСН Gamma 2 | C15: 10226.72 | D15: =ROUND(C15*(1-$D$3)/Лист2!$A$6,0) -> 10227
B16: Комплект боковин 350.40.00.00 для ВПН Gamma-2 | C16: 10383.12 | D16: =ROUND(C16*(1-$D$3)/Лист2!$A$6,0) -> 10383
B17: Комплект боковин 354.41.00.00 для КНП Gamma-2 | C17: 8084.96 | D17: =ROUND(C17*(1-$D$3)/Лист2!$A$6,0) -> 8085
B18: Комплект боковин 391.40.00.00 для ВПВ Gamma-2 | C18: 11201 | D18: =ROUND(C18*(1-$D$3)/Лист2!$A$6,0) -> 11201
B19: Комплект боковины левой 337.40.01.00 для ВПС/ВПСН Gamma-2 | C19: 5113.36 | D19: =ROUND(C19*(1-$D$3)/Лист2!$A$6,0) -> 5113
B20: Комплект боковины правой 337.40.01.00-01 для ВПС/ВПСН Gamma-2 | C20: 5113.36 | D20: =ROUND(C20*(1-$D$3)/Лист2!$A$6,0) -> 5113
B21: Комплект боковины левой 350.40.01.00 для ВПН Gamma-2 | C21: 5192.48 | D21: =ROUND(C21*(1-$D$3)/Лист2!$A$6,0) -> 5192
B22: Комплект боковины правой 350.40.01.00-01 для ВПН Gamma-2 | C22: 5192.48 | D22: =ROUND(C22*(1-$D$3)/Лист2!$A$6,0) -> 5192
B23: Комплект герметичного разделителя 337.83.00.00 для ВПС/ВПСН/ВПН Gamma-2 | C23: 12374 | D23: =ROUND(C23*(1-$D$3)/Лист2!$A$6,0) -> 12374
B24: Комплект для рыбы и морепродуктов 865.60.00.00 для Gamma/Gamma Quadro 1200 | C24: 8518.28 | D24: =ROUND(C24*(1-$D$3)/Лист2!$A$6,0) -> 8518
B25: Комплект для рыбы и морепродуктов 865.60.00.00-01 для Gamma/Gamma Quadro 1500 | C25: 10773.2 | D25: =ROUND(C25*(1-$D$3)/Лист2!$A$6,0) -> 10773
B26: Комплект для рыбы и морепродуктов 865.60.00.00-02 для Gamma/Gamma Quadro 1800 | C26: 12692 | D26: =ROUND(C26*(1-$D$3)/Лист2!$A$6,0) -> 12692
B27: Полка навесная 337.46.00.00 L=1200 для ВПС/ВПСН/ВПН Gamma-2 | C27: 3786.72 | D27: =ROUND(C27*(1-$D$3)/Лист2!$A$6,0) -> 3787 | E27: Полка дополнительная для отдельно стоящей витрины
B28: Полка навесная 337.46.00.00-01 L=1500 для ВПС/ВПСН/ВПН Gamma-2 | C28: 4004.76 | D28: =ROUND(C28*(1-$D$3)/Лист2!$A$6,0) -> 4005 | E28: Полка дополнительная для отдельно стоящей витрины
B29: Полка навесная 337.46.00.00-02 L=1800 для ВПС/ВПСН/ВПН Gamma-2 | C29: 4226.48 | D29: =ROUND(C29*(1-$D$3)/Лист2!$A$6,0) -> 4226 | E29: Полка дополнительная для отдельно стоящей витрины
B30: Разделитель передвижной низкий 337.47.00.00 для ВПС/ВПСН Gamma-2 | C30: 506 | D30: =ROUND(C30*(1-$D$3)/Лист2!$A$6,0) -> 506 | E30: Из стекла!
B31: Разделитель передвижной низкий из оргстекла 337.48.00.00 для ВПС/ВПСН Gamma-2 | C31: 967.84 | D31: =ROUND(C31*(1-$D$3)/Лист2!$A$6,0) -> 968
B32: Разделитель передвижной высокий 337.49.00.00 для ВПС/ВПСН Gamma-2 | C32: 898.84 | D32: =ROUND(C32*(1-$D$3)/Лист2!$A$6,0) -> 899 | E32: Из стекла!
B33: Разделитель передвижной высокий из оргстекла 337.53.00.00 для ВПС/ВПСН Gamma-2 | C33: 3002.88 | D33: =ROUND(C33*(1-$D$3)/Лист2!$A$6,0) -> 3003
B34: Комплект соединительный 337.50.00.00 для ВПС/ВПСН/ВПН Gamma-2 | C34: 3818.92 | D34: =ROUND(C34*(1-$D$3)/Лист2!$A$6,0) -> 3819
B35: Комплект соединительный 391.50.00.00 для ВПВ Gamma-2 | C35: 6601.92 | D35: =ROUND(C35*(1-$D$3)/Лист2!$A$6,0) -> 6602
B36: Комплект полки навесной для весов 337.54.00.00 для ВПС/ВПСН/ВПН Gamma-2 | C36: 4691.08 | D36: =ROUND(C36*(1-$D$3)/Лист2!$A$6,0) -> 4691
B37: Перемычка 337.60.00.00 для ВПС/ВПСН/ВПН Gamma-2 | C37: 3481.28 | D37: =ROUND(C37*(1-$D$3)/Лист2!$A$6,0) -> 3481
B38: Доска навесная для нарезки 337.61.00.00 для ВПС/ВПСН/ВПН Gamma-2 | C38: 7486.04 | D38: =ROUND(C38*(1-$D$3)/Лист2!$A$6,0) -> 7486
B39: Полка дополнительная 337.70.00.00 L=1200 для ВПС/ВПСН/ВПН Gamma-2 | C39: 3736.12 | D39: =ROUND(C39*(1-$D$3)/Лист2!$A$6,0) -> 3736 | E39: Полка дополнительная (стыковка левым торцом)
B40: Полка дополнительная 337.70.00.00-01 L=1500 для ВПС/ВПСН/ВПН Gamma-2 | C40: 3955.08 | D40: =ROUND(C40*(1-$D$3)/Лист2!$A$6,0) -> 3955 | E40: Полка дополнительная (стыковка левым торцом)
B41: Полка дополнительная 337.70.00.00-02 L=1800 для ВПС/ВПСН/ВПН Gamma-2 | C41: 4174.96 | D41: =ROUND(C41*(1-$D$3)/Лист2!$A$6,0) -> 4175 | E41: Полка дополнительная (стыковка левым торцом)
B42: Полка дополнительная 337.70.00.00-03 L=1200 для ВПС/ВПСН/ВПН Gamma-2 | C42: 989.92 | D42: =ROUND(C42*(1-$D$3)/Лист2!$A$6,0) -> 990 | E42: Полка дополнительная (стыковка с двух сторон)
B43: Полка дополнительная 337.70.00.00-04 L=1500 для ВПС/ВПСН/ВПН Gamma-2 | C43: 1194.16 | D43: =ROUND(C43*(1-$D$3)/Лист2!$A$6,0) -> 1194 | E43: Полка дополнительная (стыковка с двух сторон)
B44: Полка дополнительная 337.70.00.00-05 L=1800 для ВПС/ВПСН/ВПН Gamma-2 | C44: 1473.84 | D44: =ROUND(C44*(1-$D$3)/Лист2!$A$6,0) -> 1474 | E44: Полка дополнительная (стыковка с двух сторон)
B45: Полка дополнительная 337.70.00.00-06 L=1200 для ВПС/ВПСН/ВПН Gamma-2 | C45: 3736.12 | D45: =ROUND(C45*(1-$D$3)/Лист2!$A$6,0) -> 3736 | E45: Полка дополнительная (стыковка правым торцом)
B46: Полка дополнительная 337.70.00.00-07 L=1500 для ВПС/ВПСН/ВПН Gamma-2 | C46: 3955.08 | D46: =ROUND(C46*(1-$D$3)/Лист2!$A$6,0) -> 3955 | E46: Полка дополнительная (стыковка правым торцом)
B47: Полка дополнительная 337.70.00.00-08 L=1800 для ВПС/ВПСН/ВПН Gamma-2 | C47: 4174.96 | D47: =ROUND(C47*(1-$D$3)/Лист2!$A$6,0) -> 4175 | E47: Полка дополнительная (стыковка правым торцом)
B48: Подиум одноступенчатый 337.80.00.00 L=1200 для ВПС/ВПСН Gamma-2 | C48: 2024.92 | D48: =ROUND(C48*(1-$D$3)/Лист2!$A$6,0) -> 2025 | E48: Комплект на витрину
B49: Подиум одноступенчатый 337.80.00.00-01 L=1500 для ВПС/ВПСН Gamma-2 | C49: 2411.32 | D49: =ROUND(C49*(1-$D$3)/Лист2!$A$6,0) -> 2411 | E49: Комплект на витрину
B50: Подиум одноступенчатый 337.80.00.00-02 L=1800 для ВПС/ВПСН Gamma-2 | C50: 3076.48 | D50: =ROUND(C50*(1-$D$3)/Лист2!$A$6,0) -> 3076 | E50: Комплект на витрину
B51: Подиум одноступенчатый 351.80.00.00 OC 90 для ВПС Gamma-2 | C51: 2546.56 | D51: =ROUND(C51*(1-$D$3)/Лист2!$A$6,0) -> 2547 | E51: Комплект на витрину
B52: Подиум двухступенчатый 337.81.00.00 L=1200 для ВПС/ВПСН Gamma-2 | C52: 4802.4 | D52: =ROUND(C52*(1-$D$3)/Лист2!$A$6,0) -> 4802 | E52: Комплект на витрину
B53: Подиум двухступенчатый 337.81.00.00-01L=1500 для ВПС/ВПСН Gamma-2 | C53: 5623.96 | D53: =ROUND(C53*(1-$D$3)/Лист2!$A$6,0) -> 5624 | E53: Комплект на витрину
B54: Подиум двухступенчатый 337.81.00.00-02 L=1800 для ВПС/ВПСН Gamma-2 | C54: 7259.72 | D54: =ROUND(C54*(1-$D$3)/Лист2!$A$6,0) -> 7260 | E54: Комплект на витрину
B55: Подиум двухступенчатый 351.81.00.00 OC 90 для ВПС Gamma-2 | C55: 5867.76 | D55: =ROUND(C55*(1-$D$3)/Лист2!$A$6,0) -> 5868 | E55: Комплект на витрину
B56: Монтажный набор (до 4 кВт) 1106.120.00.00S для ВПВ/ВПС/ВПСН/ВПН | C56: 8312.2 | D56: =ROUND(C56*(1-$D$3)/Лист2!$A$6,0) -> 8312
B57: Опора гастроемкостей для витрин 337.85.00.00 L=1200 для ВПС/ВПСН Gamma-2 | C57: 2485.84 | D57: =ROUND(C57*(1-$D$3)/Лист2!$A$6,0) -> 2486
B58: Опора гастроемкостей для витрин 337.85.00.00-01 L=1500 для ВПС/ВПСН Gamma-2 | C58: 2776.56 | D58: =ROUND(C58*(1-$D$3)/Лист2!$A$6,0) -> 2777
B59: Опора гастроемкостей для витрин 337.85.00.00-02 L=1800 для ВПС/ВПСН Gamma-2 | C59: 4102.28 | D59: =ROUND(C59*(1-$D$3)/Лист2!$A$6,0) -> 4102
A60: 3 | B60: Gamma Quadro | C60: Вернуться к прайсу Gamma Q
B61: Комплект боковин 643.40.00.00 для ВПС/ВПСН GAMMA-2 Quadro | C61: 10722.6 | D61: =ROUND(C61*(1-$D$3)/Лист2!$A$6,0) -> 10723
B62: Комплект боковин 665.40.00.00 для ВПН GAMMA-2 Quadro | C62: 10887.28 | D62: =ROUND(C62*(1-$D$3)/Лист2!$A$6,0) -> 10887
B63: Комплект герметичного разделителя 643.83.00.00 для ВПС/ВПН/ВПСН GAMMA-2 Quadro | C63: 12973.84 | D63: =ROUND(C63*(1-$D$3)/Лист2!$A$6,0) -> 12974
B64: Комплект соединительный 643.50.00.00 для ВПС/ВПН/ВПСН GAMMA-2 Quadro | C64: 2760.92 | D64: =ROUND(C64*(1-$D$3)/Лист2!$A$6,0) -> 2761
B65: Разделитель передвижной высокий (стекло) 643.43.00.00 для ВПС/ВПН/ВПСН GAMMA-2 Quadro | C65: 1278.8 | D65: =ROUND(C65*(1-$D$3)/Лист2!$A$6,0) -> 1279
B66: Разделитель передвижной низкий (оргстекло) 643.42.00.00 для ВПС/ВПН/ВПСН GAMMA-2 Quadro | C66: 1061.68 | D66: =ROUND(C66*(1-$D$3)/Лист2!$A$6,0) -> 1062
B67: Разделитель передвижной низкий (стекло) 643.41.00.00 для ВПС/ВПН/ВПСН GAMMA-2 Quadro | C67: 680.8 | D67: =ROUND(C67*(1-$D$3)/Лист2!$A$6,0) -> 681
B68: Полка дополнительная 643.46.00.00 L=1200 для ВПС/ВПН/ВПСН GAMMA-2 Quadro | C68: 3338.68 | D68: =ROUND(C68*(1-$D$3)/Лист2!$A$6,0) -> 3339
B69: Полка дополнительная 643.46.00.00-01 L=1500 для ВПС/ВПН/ВПСН GAMMA-2 Quadro | C69: 3630.32 | D69: =ROUND(C69*(1-$D$3)/Лист2!$A$6,0) -> 3630
B70: Полка дополнительная 643.46.00.00-02 L=1800 для ВПС/ВПН/ВПСН GAMMA-2 Quadro | C70: 3903.56 | D70: =ROUND(C70*(1-$D$3)/Лист2!$A$6,0) -> 3904
A71: 4 | B71: Magnum / Magnum ECO | C71: Вернуться к прайсу Magnum
B72: Боковина левая 312.05.00.00M для КНП Magnum | C72: 5531.04 | D72: =ROUND(C72*(1-$D$3)/[7]Лист2!$A$6,0) -> 5531
B73: Боковина правая 312.05.00.00-01M для КНП Magnum | C73: 5531.04 | D73: =ROUND(C73*(1-$D$3)/[7]Лист2!$A$6,0) -> 5531
B74: Комплект боковины левой 433.50.1000.00M для ВПС/ВПСН Magnum | C74: 6239.44 | D74: =ROUND(C74*(1-$D$3)/[7]Лист2!$A$6,0) -> 6239
B75: Комплект боковины правой 433.50.2000.00M для ВПС/ВПСН Magnum | C75: 6239.44 | D75: =ROUND(C75*(1-$D$3)/[7]Лист2!$A$6,0) -> 6239
B76: Комплект боковин 433.50.0000.00M для ВПС/ВПСН Magnum | C76: 12477.96 | D76: =ROUND(C76*(1-$D$3)/[7]Лист2!$A$6,0) -> 12478
B77: Комплект боковины левой 302.50.01.00M для ВПН Magnum | C77: 7544.92 | D77: =ROUND(C77*(1-$D$3)/[7]Лист2!$A$6,0) -> 7545
B78: Комплект боковины правой 302.50.02.00M для ВПН Magnum | C78: 7544.92 | D78: =ROUND(C78*(1-$D$3)/[7]Лист2!$A$6,0) -> 7545
B79: Комплект боковин 302.50.00.00M для ВПН Magnum | C79: 15088 | D79: =ROUND(C79*(1-$D$3)/[7]Лист2!$A$6,0) -> 15088
B80: Комплект боковины левой 276.50.01.00M для ВПС Magnum SG | C80: 6239.44 | D80: =ROUND(C80*(1-$D$3)/[7]Лист2!$A$6,0) -> 6239
B81: Комплект боковины правой 276.50.02.00M для ВПС Magnum SG | C81: 6239.44 | D81: =ROUND(C81*(1-$D$3)/[7]Лист2!$A$6,0) -> 6239
B82: Комплект боковин 276.50.00.00M для ВПС Magnum SG | C82: 12477.96 | D82: =ROUND(C82*(1-$D$3)/[7]Лист2!$A$6,0) -> 12478
B83: Комплект боковины левой 676.50.01.00 для ВПС/ВПСН Magnum Eco | C83: 6237.6 | D83: =ROUND(C83*(1-$D$3)/[7]Лист2!$A$6,0) -> 6238
B84: Комплект боковины правой 676.50.02.00 для ВПС/ВПСН Magnum Eco | C84: 6237.6 | D84: =ROUND(C84*(1-$D$3)/[7]Лист2!$A$6,0) -> 6238
B85: Доска навесная для весов 263.69.00.00M L=420 Magnum | C85: 7187.96 | D85: =ROUND(C85*(1-$D$3)/[7]Лист2!$A$6,0) -> 7188
B86: Доска навесная для нарезки 263.71.00.00 L=420 Magnum | C86: 9839.4 | D86: =ROUND(C86*(1-$D$3)/[7]Лист2!$A$6,0) -> 9839
B87: Комплект бампера 433.72.0000.00M L=1250 Magnum | C87: 3438.96 | D87: =ROUND(C87*(1-$D$3)/[7]Лист2!$A$6,0) -> 3439
B88: Комплект бампера 433.72.0000.00-01M L=1880 Magnum | C88: 5071.04 | D88: =ROUND(C88*(1-$D$3)/[7]Лист2!$A$6,0) -> 5071
B89: Комплект бампера 433.72.0000.00-02M L=2500 Magnum | C89: 5517.24 | D89: =ROUND(C89*(1-$D$3)/[7]Лист2!$A$6,0) -> 5517
B90: Комплект бампера 433.72.0000.00-03M L=3750 Magnum | C90: 7598.28 | D90: =ROUND(C90*(1-$D$3)/[7]Лист2!$A$6,0) -> 7598
B91: Комплект бампера 434.72.0000.00M Magnum OС 90 | C91: 10196.36 | D91: =ROUND(C91*(1-$D$3)/[7]Лист2!$A$6,0) -> 10196
B92: Комплект бампера 436.72.0000.00M Magnum IС 90 | C92: 8943.32 | D92: =ROUND(C92*(1-$D$3)/[7]Лист2!$A$6,0) -> 8943
B93: Вставка (для соед бампер в линию) ЛР 050.60.00.01 для ВПС/ВПСН/ВПН Magnum | C93: 322.92 | D93: =ROUND(C93*(1-$D$3)/[7]Лист2!$A$6,0) -> 323
B94: Комплект гидроамортизаторов 263.67.00.00M L=1250 Magnum | C94: 7094.12 | D94: =ROUND(C94*(1-$D$3)/[7]Лист2!$A$6,0) -> 7094
B95: Комплект гидроамортизаторов 263.67.00.00-01M L=1880 Magnum | C95: 13385.08 | D95: =ROUND(C95*(1-$D$3)/[7]Лист2!$A$6,0) -> 13385
B96: Комплект гидроамортизаторов 263.67.00.00-02M L=2500 Magnum | C96: 13385.08 | D96: =ROUND(C96*(1-$D$3)/[7]Лист2!$A$6,0) -> 13385
B97: Комплект гидроамортизаторов 263.67.00.00-03M L=3750 Magnum | C97: 19527.92 | D97: =ROUND(C97*(1-$D$3)/[7]Лист2!$A$6,0) -> 19528
B98: Комплект гидроамортизаторов 268.67.00.00M Magnum IС 90 | C98: 12651.84 | D98: =ROUND(C98*(1-$D$3)/[7]Лист2!$A$6,0) -> 12652
B99: Комплект гидроамортизаторов 267.67.00.00M Magnum OС 90 | C99: 12651.84 | D99: =ROUND(C99*(1-$D$3)/[7]Лист2!$A$6,0) -> 12652
B100: Комплект для рыбы и морепродуктов 263.70.00.00M L=1250 Magnum | C100: 14145.92 | D100: =ROUND(C100*(1-$D$3)/[7]Лист2!$A$6,0) -> 14146
B101: Комплект для рыбы и морепродуктов 263.70.00.00-01M L=1880 Magnum | C101: 21892.32 | D101: =ROUND(C101*(1-$D$3)/[7]Лист2!$A$6,0) -> 21892
B102: Комплект соединительный 263.55.00.00M для ВПС/ВПСН/ВПН Magnum | C102: 1495.92 | D102: =ROUND(C102*(1-$D$3)/[7]Лист2!$A$6,0) -> 1496
B103: Комплект соединительный 276.55.00.00M для ВПС Magnum SG | C103: 1495.92 | D103: =ROUND(C103*(1-$D$3)/[7]Лист2!$A$6,0) -> 1496
B104: Комплект соединительный ( для установки витрин в линию) для ВПС/ВПСН/ВПН Magnum Eco | C104: 1495.92 | D104: =ROUND(C104*(1-$D$3)/[7]Лист2!$A$6,0) -> 1496
B105: Комплект шторок ночных 433.62.0000.00M L=1250 Magnum | C105: 2783.92 | D105: =ROUND(C105*(1-$D$3)/[7]Лист2!$A$6,0) -> 2784
B106: Комплект шторок ночных 433.62.0000.00-01M L=1880 Magnum | C106: 4168.52 | D106: =ROUND(C106*(1-$D$3)/[7]Лист2!$A$6,0) -> 4169
B107: Комплект шторок ночных 433.62.0000.00-02M L=2500 Magnum | C107: 5571.52 | D107: =ROUND(C107*(1-$D$3)/[7]Лист2!$A$6,0) -> 5572
B108: Комплект шторок ночных 433.62.0000.00-03M L=3750 Magnum | C108: 8346.24 | D108: =ROUND(C108*(1-$D$3)/[7]Лист2!$A$6,0) -> 8346
B109: Комплект шторок ночных 434.62.0000.00M Magnum OС 90 | C109: 2809.68 | D109: =ROUND(C109*(1-$D$3)/[7]Лист2!$A$6,0) -> 2810
B110: Комплект шторок ночных 436.62.0000.00M Magnum IC 90 | C110: 3791.32 | D110: =ROUND(C110*(1-$D$3)/[7]Лист2!$A$6,0) -> 3791
B111: Комплект шторок ночных 276.62.00.00M L=1250 Magnum SG | C111: 4443.6 | D111: =ROUND(C111*(1-$D$3)/[7]Лист2!$A$6,0) -> 4444
B112: Комплект шторок ночных 276.62.00.00-01M L=1880 Magnum SG | C112: 6659.88 | D112: =ROUND(C112*(1-$D$3)/[7]Лист2!$A$6,0) -> 6660
B113: Комплект шторок ночных 276.62.00.00-02M L=2500 Magnum SG | C113: 8890.88 | D113: =ROUND(C113*(1-$D$3)/[7]Лист2!$A$6,0) -> 8891
B114: Комплект шторок ночных 276.62.00.00-03M L=3750 Magnum SG | C114: 13319.76 | D114: =ROUND(C114*(1-$D$3)/[7]Лист2!$A$6,0) -> 13320
B115: Комплект шторок ночных 295.70.00.00M Magnum ОC SG 90 | C115: 6159.4 | D115: =ROUND(C115*(1-$D$3)/[7]Лист2!$A$6,0) -> 6159
B116: Комплект шторок ночных 297.70.00.00M Magnum IC SG 90 | C116: 5517.24 | D116: =ROUND(C116*(1-$D$3)/[7]Лист2!$A$6,0) -> 5517
B117: Комплект подиума двухступ(нерж) 433.73.0000.00 L=1250 для ВПС/ВПСН/ВПН Magnum | C117: 3755.44 | D117: =ROUND(C117*(1-$D$3)/[7]Лист2!$A$6,0) -> 3755 | E117: ступенька на экспозиционную полку в витрине
B118: Комплект подиума двухступ(нерж) 433.73.0000.00-01 L=1880 для ВПС/ВПСН/ВПН Magnum | C118: 4756.4 | D118: =ROUND(C118*(1-$D$3)/[7]Лист2!$A$6,0) -> 4756 | E118: ступенька на экспозиционную полку в витрине
B119: Комплект подиума двухступ(нерж) 433.73.0000.00-02 L=2500 для ВПС/ВПСН/ВПН Magnum | C119: 7511.8 | D119: =ROUND(C119*(1-$D$3)/[7]Лист2!$A$6,0) -> 7512 | E119: ступенька на экспозиционную полку в витрине
B120: Комплект подиума двухступ(нерж) 433.73.0000.00-03 L=3750 для ВПС/ВПСН/ВПН Magnum | C120: 11270 | D120: =ROUND(C120*(1-$D$3)/[7]Лист2!$A$6,0) -> 11270 | E120: ступенька на экспозиционную полку в витрине
B121: Комплект подиума трехступ(нерж) 433.74.0000.00 L=1250 для ВПС/ВПСН/ВПН Magnum | C121: 8239.52 | D121: =ROUND(C121*(1-$D$3)/[7]Лист2!$A$6,0) -> 8240 | E121: 2 ступеньки (низкая и высокая) на экспозиционную полку в витрине
B122: Комплект подиума трехступ(нерж) 433.74.0000.00-01 L=1880 для ВПС/ВПСН/ВПН Magnum | C122: 10432.8 | D122: =ROUND(C122*(1-$D$3)/[7]Лист2!$A$6,0) -> 10433 | E122: 2 ступеньки (низкая и высокая) на экспозиционную полку в витрине
B123: Комплект подиума трехступ(нерж) 433.74.0000.00-02 L=2500 для ВПС/ВПСН/ВПН Magnum | C123: 16480.88 | D123: =ROUND(C123*(1-$D$3)/[7]Лист2!$A$6,0) -> 16481 | E123: 2 ступеньки (низкая и высокая) на экспозиционную полку в витрине
B124: Комплект подиума трехступ(нерж) 433.74.0000.00-03 L=3750 для ВПС/ВПСН/ВПН Magnum | C124: 24722.24 | D124: =ROUND(C124*(1-$D$3)/[7]Лист2!$A$6,0) -> 24722 | E124: 2 ступеньки (низкая и высокая) на экспозиционную полку в витрине
B125: Подиум трехступенчатый 268.59.00.00M Magnum IС 90 | C125: 7869.68 | D125: =ROUND(C125*(1-$D$3)/[7]Лист2!$A$6,0) -> 7870
B126: Подиум трехступенчатый 267.59.00.00M Magnum OC 90 | C126: 9447.48 | D126: =ROUND(C126*(1-$D$3)/[7]Лист2!$A$6,0) -> 9447
B127: Комплект герметичного разделителя 433.52.0000.00M Magnum | C127: 14869.96 | D127: =ROUND(C127*(1-$D$3)/[7]Лист2!$A$6,0) -> 14870
B128: Комплект герметичного разделителя 449.52.0000.00M Magnum SG | C128: 11460.762 | D128: =ROUND(C128*(1-$D$3)/[7]Лист2!$A$6,0) -> 11461
B129: Комплект герметичного разделителя 676.52.00.00 для ВПС/ВПСН/ВПН Magnum Eco | C129: 12063.96 | D129: =ROUND(C129*(1-$D$3)/[7]Лист2!$A$6,0) -> 12064
B130: Разделитель передвижной 263.66.00.00M Magnum | C130: 1345.96 | D130: =ROUND(C130*(1-$D$3)/[7]Лист2!$A$6,0) -> 1346
B131: Разделитель передвижной низкий 263.68.00.00M Magnum | C131: 1086.52 | D131: =ROUND(C131*(1-$D$3)/[7]Лист2!$A$6,0) -> 1087
B132: Упаковка усиленная 263.21.00.00M L=1250 Magnum | C132: 6343.4 | D132: =ROUND(C132*(1-$D$3)/[7]Лист2!$A$6,0) -> 6343
B133: Упаковка усиленная 263.21.00.00-01M L=1880 Magnum | C133: 7314 | D133: =ROUND(C133*(1-$D$3)/[7]Лист2!$A$6,0) -> 7314
B134: Упаковка усиленная 263.21.00.00-02M L=2500 Magnum | C134: 8763.92 | D134: =ROUND(C134*(1-$D$3)/[7]Лист2!$A$6,0) -> 8764
B135: Упаковка усиленная 263.21.00.00-03M L=3750 Magnum | C135: 10844.96 | D135: =ROUND(C135*(1-$D$3)/[7]Лист2!$A$6,0) -> 10845
B136: ТЭН оттайки испарителя 294.65.00.00M L=1250 для ВПС Magnum | C136: 2977.12 | D136: =ROUND(C136*(1-$D$3)/[7]Лист2!$A$6,0) -> 2977
B137: ТЭН оттайки испарителя 294.65.00.00-01M L=1880 для ВПС Magnum | C137: 4269.72 | D137: =ROUND(C137*(1-$D$3)/[7]Лист2!$A$6,0) -> 4270
B138: ТЭН оттайки испарителя 294.65.00.00-02M L=2500 для ВПС Magnum | C138: 4240.28 | D138: =ROUND(C138*(1-$D$3)/[7]Лист2!$A$6,0) -> 4240
B139: ТЭН оттайки испарителя 294.65.00.00-03M L=3750 для ВПС Magnum | C139: 6371.92 | D139: =ROUND(C139*(1-$D$3)/[7]Лист2!$A$6,0) -> 6372
B140: ТЭН оттайки испарителя 292.65.00.00M для ВПС Magnum IС 90 | C140: 2988.16 | D140: =ROUND(C140*(1-$D$3)/[7]Лист2!$A$6,0) -> 2988
B141: ТЭН оттайки испарителя 282.65.00.00M для ВПС Magnum ОС 90 | C141: 2988.16 | D141: =ROUND(C141*(1-$D$3)/[7]Лист2!$A$6,0) -> 2988
B142: Комплект полки дополнительной 433.80.00.00 L=1250 для ВПС/ВПСН/ВПН Magnum | C142: 6176.88 | D142: =ROUND(C142*(1-$D$3)/[7]Лист2!$A$6,0) -> 6177
B143: Комплект полки дополнительной 433.80.00.00-01 L=1880 для ВПС/ВПСН/ВПН Magnum | C143: 9185.28 | D143: =ROUND(C143*(1-$D$3)/[7]Лист2!$A$6,0) -> 9185
B144: Комплект полки дополнительной 433.80.00.00-02 L=2500 для ВПС/ВПСН/ВПН Magnum | C144: 9616.76 | D144: =ROUND(C144*(1-$D$3)/[7]Лист2!$A$6,0) -> 9617
B145: Комплект полки дополнительной 433.80.00.00-03 L=3750 для ВПС/ВПСН/ВПН Magnum | C145: 12819.28 | D145: =ROUND(C145*(1-$D$3)/[7]Лист2!$A$6,0) -> 12819
B146: Полка навесная 676.55.00.00 L=1250 для ВПС/ВПСН/ВПН Magnum Eco | C146: 4498.8 | D146: =ROUND(C146*(1-$D$3)/[7]Лист2!$A$6,0) -> 4499
B147: Полка навесная 676.55.00.00-01 L=1880 для ВПС/ВПСН/ВПН Magnum Eco | C147: 5890.76 | D147: =ROUND(C147*(1-$D$3)/[7]Лист2!$A$6,0) -> 5891
B148: Полка навесная 676.55.00.00-02 L=2500 для ВПС/ВПСН/ВПН Magnum Eco | C148: 7302.96 | D148: =ROUND(C148*(1-$D$3)/[7]Лист2!$A$6,0) -> 7303
B149: Полка навесная 676.55.00.00-03 L=3750 для ВПС/ВПСН/ВПН Magnum Eco | C149: 8955.28 | D149: =ROUND(C149*(1-$D$3)/[7]Лист2!$A$6,0) -> 8955
A150: 5 | B150: MAGNUM Quadro | C150: Вернуться к прайсу Magnum Q
B151: Комплект общей подсветки для Magnum Quadro L=1250 мм | C151: 1948.280878 | D151: =C151*(1-$D$3) -> 1948.280878 | E151: Спектр освещения определяется характеристикой (пятый символ, "1" - 6000К, "2" - 4000К, "3" - 3000 К, "М" - мясной)
B152: Комплект общей подсветки для Magnum Quadro L=1875 мм | C152: 2898.535087 | D152: =C152*(1-$D$3) -> 2898.535087
B153: Комплект общей подсветки для Magnum Quadro L=2500 мм | C153: 2898.535087 | D153: 2898.535087
B154: Комплект общей подсветки для Magnum Quadro OC90 | C154: 2922.421318 | D154: 2922.421318
B155: Комплект общей подсветки для Magnum Quadro IC90 | C155: 1753.452791 | D155: 1753.452791
B156: Комплект декоративной фронтальной панели металлической узкой L=1250 мм | C156: 2821.89113 | D156: 2821.89113 | E156: Восьмой символ характеристики - ВХХХХ, где ХХХХ цвет со структурой, пример - В7016гл
B157: Комплект декоративной фронтальной панели металлической узкой L=1875 мм | C157: 4027.291539 | D157: 4027.291539
B158: Комплект декоративной фронтальной панели металлической узкой L=2500 мм | C158: 4800.698737 | D158: 4800.698737
B159: Комплект декоративной фронтальной панели металлической узкой OC90 | C159: 4812.125655 | D159: 4812.125655
B160: Комплект декоративной фронтальной панели металлической узкой IC90 | C160: 2962.985687 | D160: 2962.985687
B161: Комплект декоративной фронтальной панели металлической узкой с отбойником L=1250 мм | C161: 4515.025808 | D161: 4515.025808 | E161: Восьмой символ характеристики - DХХХХ, где ХХХХ цвет со структурой, пример - D7016гл
B162: Комплект декоративной фронтальной панели металлической узкой с отбойником L=1875 мм | C162: 6443.666462 | D162: 6443.666462
B163: Комплект декоративной фронтальной панели металлической узкой с отбойником L=2500 мм | C163: 7681.11798 | D163: 7681.11798
B164: Комплект декоративной фронтальной панели металлической узкой с отбойником OC90 | C164: 7699.401047 | D164: 7699.401047
B165: Комплект декоративной фронтальной панели металлической узкой с отбойником IC90 | C165: 4740.777099 | D165: 4740.777099
B166: Комплект декоративной фронтальной панели металлической широкой L=1250 мм | C166: 3047.642421 | D166: 3047.642421 | E166: Восьмой символ характеристики - AХХХХ, где ХХХХ цвет со структурой, пример - A7016гл
B167: Комплект декоративной фронтальной панели металлической широкой L=1875 мм | C167: 4349.474862 | D167: 4349.474862
B168: Комплект декоративной фронтальной панели металлической широкой L=2500 мм | C168: 5184.754636 | D168: 5184.754636
B169: Комплект декоративной фронтальной панели металлической широкой для OC90 | C169: 5197.095707 | D169: 5197.095707
B170: Комплект декоративной фронтальной панели металлической широкой для IC90 | C170: 3200.024542 | D170: 3200.024542
B171: Комплект декоративной фронтальной панели металлической широкой с отбойником L=1250 мм | C171: 4876.227873 | D171: 4876.227873 | E171: Восьмой символ характеристики - СХХХХ, где ХХХХ цвет со структурой, пример - С7016гл
B172: Комплект декоративной фронтальной панели металлической широкой с отбойником L=1875 мм | C172: 6959.159779 | D172: 6959.159779
B173: Комплект декоративной фронтальной панели металлической широкой с отбойником L=2500 мм | C173: 8295.607418 | D173: 8295.607418
B174: Комплект декоративной фронтальной панели металлической широкой с отбойником для OC90 | C174: 8315.353131 | D174: 8315.353131
B175: Комплект декоративной фронтальной панели металлической широкой с отбойником для IC90 | C175: 5120.039266 | D175: 5120.039266
B176: Комплект декоративной фронтальной панели металлической узкой L=1250 мм, ЛДСП | C176: 5079.404034 | D176: 5079.404034 | E176: Расшифровка характеристик ЛДСП (нажать)
B177: Комплект декоративной фронтальной панели металлической узкой L=1875 мм, ЛДСП | C177: 7249.12477 | D177: 7249.12477
B178: Комплект декоративной фронтальной панели металлической узкой L=2500 мм, ЛДСП | C178: 8641.257727 | D178: 8641.257727
B179: Комплект декоративной фронтальной панели металлической узкой OC90, ЛДСП | C179: 8661.826178 | D179: 8661.826178
B180: Комплект декоративной фронтальной панели металлической узкой IC90, ЛДСП | C180: 5333.374236 | D180: 5333.374236
B181: Комплект декоративной фронтальной панели металлической узкой с отбойником L=1250 мм, ЛДСП | C181: 6772.538712 | D181: 6772.538712 | E181: Расшифровка характеристик ЛДСП (нажать)
B182: Комплект декоративной фронтальной панели металлической узкой с отбойником L=1875 мм, ЛДСП | C182: 9665.499693 | D182: 9665.499693
B183: Комплект декоративной фронтальной панели металлической узкой с отбойником L=2500 мм, ЛДСП | C183: 11521.67697 | D183: 11521.67697
B184: Комплект декоративной фронтальной панели металлической узкой с отбойником OC90, ЛДСП | C184: 11549.10157 | D184: 11549.10157
B185: Комплект декоративной фронтальной панели металлической узкой с отбойником IC90, ЛДСП | C185: 7111.165648 | D185: 7111.165648
B186: Комплект декоративной фронтальной панели металлической широкой L=1250 мм, ЛДСП | C186: 5485.756357 | D186: 5485.756357 | E186: Расшифровка характеристик ЛДСП (нажать)
B187: Комплект декоративной фронтальной панели металлической широкой L=1875 мм, ЛДСП | C187: 7829.054751 | D187: 7829.054751
B188: Комплект декоративной фронтальной панели металлической широкой L=2500 мм, ЛДСП | C188: 9332.558345 | D188: 9332.558345
B189: Комплект декоративной фронтальной панели металлической широкой для OC90, ЛДСП | C189: 9354.772272 | D189: 9354.772272
B190: Комплект декоративной фронтальной панели металлической широкой для IC90, ЛДСП | C190: 5760.044175 | D190: 5760.044175
B191: Комплект декоративной фронтальной панели металлической широкой с отбойником L=1250 мм, ЛДСП | C191: 7314.341809 | D191: 7314.341809 | E191: Расшифровка характеристик ЛДСП (нажать)
B192: Комплект декоративной фронтальной панели металлической широкой с отбойником L=1875 мм, ЛДСП | C192: 10438.73967 | D192: 10438.73967
B193: Комплект декоративной фронтальной панели металлической широкой с отбойником L=2500 мм, ЛДСП | C193: 12443.41113 | D193: 12443.41113
B194: Комплект декоративной фронтальной панели металлической широкой с отбойником для OC90, ЛДСП | C194: 12473.0297 | D194: 12473.0297
B195: Комплект декоративной фронтальной панели металлической широкой с отбойником для IC90, ЛДСП | C195: 7680.0589 | D195: 7680.0589
B196: Система выпаривания конденсата для Magnum Quadro L=1250 мм | C196: 3220 | D196: 3220 | E196: Применение выпаривателя определяется характеристикой (шестой символ, "V0" - без выпаривателя, "V1" - выпариватель применен)
B197: Система выпаривания конденсата для Magnum Quadro L=1875 мм | C197: 5474 | D197: 5474
B198: Система выпаривания конденсата для Magnum Quadro L=2500 мм | C198: 7212.8 | D198: 7212.8
B199: Система выпаривания конденсата для Magnum Quadro OC90 | C199: 5474 | D199: 5474
B200: Система выпаривания конденсата для Magnum Quadro IC90 | C200: 2898 | D200: 2898
B201: Комплект боковины левой под узкую фронтальную панель Magnum Quadro | C201: 6563.483611 | D201: 6563.483611 | E201: 1007.48.00.00
B202: Комплект боковины правой под узкую фронтальную панель Magnum Quadro | C202: 6563.483611 | D202: 6563.483611 | E202: 1007.48.00.00mir
B203: Комплект боковины левой под узкую фронтальную панель Magnum Quadro Self | C203: 6249.745729 | D203: 6249.745729 | E203: 1013.48.00.00
... 32 more rows

Sheet Опции для горок
E1: В содержание
B3: Ваша скидка: | D3: =Содержание!D2 -> 0
B4: НДС: | D4: =IF(Лист2!A1=TRUE,"С НДС","БЕЗ НДС") -> С НДС
A7: Опции для витрин Cryspi
A8: Solo L7, Solo L9
A9: Обязательные опции для базовой комплектации Solo. Дополнительные опции для гастрономической комплектации Solo. | H9: вернуться к прайсу стеллажей
A10: Общее освещение
A11: Нейтральный свет (4000-4500К) подходит всем товарным категориям (не искажает натуральный цвет продуктов). Тёплый свет (2700-3000К) подходит категории "Фрукты, овощи, сыры" (категория выглядит ярче, насыщеннее). Мясной свет подходит категории "Мясо, мясная гастрономия" (категория выглядит ярче, насыщеннее)
A12: 1 | B12: Комплект общей подсветки стеллажа Т8 1004.15.02.00-01 L=1250 для Solo L | C12: Спектр освещения определяется характеристикой (третий символ, "1" - 3000К, "2" - 4000К, "М" - мясной) | F12: 1948.280878 | G12: =ROUND(F12*(1-$D$3)/Лист2!$A$6,0) -> 1948
A13: 2 | B13: Комплект общей подсветки стеллажа Т8 1004.15.02.00-02 L=1500 для Solo L | F13: 2585.433043 | G13: =ROUND(F13*(1-$D$3)/Лист2!$A$6,0) -> 2585
A14: 3 | B14: Комплект общей подсветки стеллажа Т8 1004.15.02.00-03 L=1875 для Solo L | F14: 2898.535087 | G14: =ROUND(F14*(1-$D$3)/Лист2!$A$6,0) -> 2899
A15: 4 | B15: Комплект общей подсветки стеллажа Т8 1004.15.02.00-04 L=2500 для Solo L | F15: 2898.535087 | G15: =ROUND(F15*(1-$D$3)/Лист2!$A$6,0) -> 2899
A16: Дополнительные опции для Solo
A17: Вертикальная подсветка для DG
A18: =A15+1 -> 5 | B18: Комплект вертикальной подсветки Т8 1004.95.00.00-01 L=1250 для Solo L DG | C18: 1004.95.00.00-01 | D18: Спектр освещения определяется отдельной опцией в заказе, спектр определяется характеристикой ("1"- 3000К, "2" - 4000К, "М" мясной) | F18: 3896.561757 | G18: =ROUND(F18*(1-$D$3)/Лист2!$A$6,0) -> 3897
A19: =A18+1 -> 6 | B19: Комплект вертикальной подсветки Т8 1004.95.00.00-02 L=1500 для Solo L DG | C19: 1004.95.00.00-02 | F19: 5455.18646 | G19: =ROUND(F19*(1-$D$3)/Лист2!$A$6,0) -> 5455
A20: =A19+1 -> 7 | B20: Комплект вертикальной подсветки Т8 1004.95.00.00-03 L=1875 для Solo L DG | C20: 1004.95.00.00-03 | F20: 6234.498811 | G20: =ROUND(F20*(1-$D$3)/Лист2!$A$6,0) -> 6234
A21: =A20+1 -> 8 | B21: Комплект вертикальной подсветки Т8 1004.95.00.00-04 L=2500 для Solo L DG | C21: 1004.95.00.00-04 | F21: 7793.123514 | G21: =ROUND(F21*(1-$D$3)/Лист2!$A$6,0) -> 7793
A23: =A21+1 -> 9 | B23: Система выпаривания конденсата для стеллажа Solo длиной 1250 мм | C23: Применение выпаривателя определяется характеристикой (восьмой символ, "0" -без выпаривателя, "V" - выпариватель применен) | F23: 3220 | G23: =ROUND(F23*(1-$D$3)/Лист2!$A$6,0) -> 3220
A24: =A23+1 -> 10 | B24: Система выпаривания конденсата для стеллажа Solo длиной 1500 мм | F24: 4508 | G24: =ROUND(F24*(1-$D$3)/Лист2!$A$6,0) -> 4508
A25: =A24+1 -> 11 | B25: Система выпаривания конденсата для стеллажа Solo длиной 1875 мм | F25: 5474 | G25: =ROUND(F25*(1-$D$3)/Лист2!$A$6,0) -> 5474
A26: 12 | B26: Система выпаривания конденсата для стеллажа Solo длиной 2500 мм | F26: 7212.8 | G26: =ROUND(F26*(1-$D$3)/Лист2!$A$6,0) -> 7213
A27: Подсветка полок (универсальная для полок разной глубины - 300, 400, 500 мм) Нейтральный свет (4000-4500К) подходит всем товарным категориям (не искажает натуральный цвет продуктов). Тёплый свет (2700-3000К) подходит категории "Фрукты, овощи, сыры" (категория выглядит ярче, насыщеннее). Мясной свет подходит категории "Мясо, мясная гастрономия" (категория выглядит ярче, насыщеннее)
A28: =A26+1 -> 13 | B28: Комплект подсветки полок (3 ряда) Т8 1004.99.00.00-01 L=1250 для Solo L | C28: 1004.99.00.00-01 | D28: Спектр освещения определяется характеристикой (третий символ, "1" - 3000К, "2" - 4000К, "М" - мясной) | F28: 4995.68375 | G28: =ROUND(F28*(1-$D$3)/Лист2!$A$6,0) -> 4996
A29: =A28+1 -> 14 | B29: Комплект подсветки полок (3 ряда) Т8 1004.99.00.00-02 L=1500 для Solo L | C29: 1004.99.00.00-02 | F29: 8365.036391 | G29: =ROUND(F29*(1-$D$3)/Лист2!$A$6,0) -> 8365
A30: 15 | B30: Комплект подсветки полок (3 ряда) Т8 1004.99.00.00-03 L=1875 для Solo L | C30: 1004.99.00.00-03 | F30: 9049.175677 | G30: =ROUND(F30*(1-$D$3)/Лист2!$A$6,0) -> 9049
A31: 16 | B31: Комплект подсветки полок (3 ряда) Т8 1004.99.00.00-04 L=2500 для Solo L | C31: 1004.99.00.00-04 | F31: 13098.66679 | G31: =ROUND(F31*(1-$D$3)/Лист2!$A$6,0) -> 13099
A32: 17 | B32: Комплект подсветки полок (4 ряда) Т8 1004.100.00.00-01 L=1250 для Solo L | C32: 1004.100.00.00-01 | F32: 5742.16523 | G32: =ROUND(F32*(1-$D$3)/Лист2!$A$6,0) -> 5742
A33: 18 | B33: Комплект подсветки полок (4 ряда) Т8 1004.100.00.00-02 L=1500 для Solo L | C33: 1004.100.00.00-02 | F33: 9614.984358 | G33: =ROUND(F33*(1-$D$3)/Лист2!$A$6,0) -> 9615
A34: 19 | B34: Комплект подсветки полок (4 ряда) Т8 1004.100.00.00-03 L=1875 для Solo L | C34: 1004.100.00.00-03 | F34: 10401.35135 | G34: =ROUND(F34*(1-$D$3)/Лист2!$A$6,0) -> 10401
A35: 20 | B35: Комплект подсветки полок (4 ряда) Т8 1004.100.00.00-03 L=2500 для Solo L | C35: 1004.100.00.00-04 | F35: 15055.93884 | G35: =ROUND(F35*(1-$D$3)/Лист2!$A$6,0) -> 15056
A36: 21 | B36: Комплект подсветки полок (5 рядов) Т8 1004.101.00.00-01 L=1250 для Solo L | C36: 1004.101.00.00-01 | F36: 6775.754971 | G36: =ROUND(F36*(1-$D$3)/Лист2!$A$6,0) -> 6776
A37: 22 | B37: Комплект подсветки полок (5 рядов) Т8 1004.101.00.00-02 L=1500 для Solo L | C37: 1004.101.00.00-02 | F37: 11345.68154 | G37: =ROUND(F37*(1-$D$3)/Лист2!$A$6,0) -> 11346
A38: 23 | B38: Комплект подсветки полок (5 рядов) Т8 1004.101.00.00-03 L=1875 для Solo L | C38: 1004.101.00.00-03 | F38: 12273.5946 | G38: =ROUND(F38*(1-$D$3)/Лист2!$A$6,0) -> 12274
A39: 24 | B39: Комплект подсветки полок (5 рядов) Т8 1004.101.00.00-03 L=2500 для Solo L | C39: 1004.101.00.00-04 | F39: 17766.00783 | G39: =ROUND(F39*(1-$D$3)/Лист2!$A$6,0) -> 17766
A40: 25 | B40: Комплект подсветки полок (6 рядов) Т8 1004.102.00.00-01 L=1250 для Solo L | C40: 1004.102.00.00-01 | F40: 7724.360667 | G40: =ROUND(F40*(1-$D$3)/Лист2!$A$6,0) -> 7724
A41: 26 | B41: Комплект подсветки полок (6 рядов) Т8 1004.102.00.00-02 L=1500 для Solo L | C41: 1004.102.00.00-02 | F41: 12934.07696 | G41: =ROUND(F41*(1-$D$3)/Лист2!$A$6,0) -> 12934
A42: 27 | B42: Комплект подсветки полок (6 рядов) Т8 1004.102.00.00-03 L=1875 для Solo L | C42: 1004.102.00.00-03 | F42: 13991.89784 | G42: =ROUND(F42*(1-$D$3)/Лист2!$A$6,0) -> 13992
A43: 28 | B43: Комплект подсветки полок (6 рядов) Т8 1004.102.00.00-03 L=2500 для Solo L | C43: 1004.102.00.00-04 | F43: 20253.24893 | G43: =ROUND(F43*(1-$D$3)/Лист2!$A$6,0) -> 20253
A44: Дополнительные опции для Solo
A45: =A43+1 -> 29 | B45: Комплект боковины глухой левой для Solo L9 | C45: 1014.40.00.00 | D45: Наличие и тип боковины определяется характеристикой (левая боковина 9 символ, правая боковина 10 символ). Боковина не применяется когда стеллаж в линии - "0". Боковина глухая - "G" | F45: 10335.1696 | G45: =ROUND(F45*(1-$D$3)/Лист2!$A$6,0) -> 10335
A46: =A45+1 -> 30 | B46: Комплект боковины глухой правой для Solo L9 | C46: 1014.40.00.00mir | F46: 10335.1696 | G46: =ROUND(F46*(1-$D$3)/Лист2!$A$6,0) -> 10335
A47: 31 | B47: Комплект боковины глухой левой для Solo L7 | C47: 1004.40.00.00 | F47: 9750.16 | G47: =ROUND(F47*(1-$D$3)/Лист2!$A$6,0) -> 9750
A48: 32 | B48: Комплект боковины глухой правой для Solo L7 | C48: 1004.40.00.00mir | F48: 9750.16 | G48: =ROUND(F48*(1-$D$3)/Лист2!$A$6,0) -> 9750
A50: =A48+1 -> 33 | B50: Компл боковины глух лев с зерк для Solo L9 | C50: 1014.37.00.00 | D50: Наличие и тип боковины определяется характеристикой (левая боковина 9 символ, правая боковина 10 символ). Боковина не применяется когда стеллаж в линии - "0". Боковина глухая с зеркалом - "Z". | F50: 11414.44 | G50: =ROUND(F50*(1-$D$3)/Лист2!$A$6,0) -> 11414
A51: =A50+1 -> 34 | B51: Компл боковины глух прав с зерк для Solo L9 | C51: 1014.37.00.00mir | F51: 11414.44 | G51: =ROUND(F51*(1-$D$3)/Лист2!$A$6,0) -> 11414
A52: 35 | B52: Компл боковины глух лев с зерк для Solo L7 | C52: 1004.37.00.00 | F52: 10498.12 | G52: =ROUND(F52*(1-$D$3)/Лист2!$A$6,0) -> 10498
A53: 36 | B53: Компл боковины глух прав с зерк для Solo L7 | C53: 1004.37.00.00mir | F53: 10498.12 | G53: =ROUND(F53*(1-$D$3)/Лист2!$A$6,0) -> 10498
A55: =A53+1 -> 37 | B55: Компл боковины со стеклопак лев для Solo L9 | C55: 1014.41.00.00 | D55: Наличие и тип боковины определяется характеристикой (левая боковина 9 символ, правая боковина 10 символ). Боковина не применяется когда стеллаж в линии - "0". Боковина панорамная - "S". | F55: 11669.5836 | G55: =ROUND(F55*(1-$D$3)/Лист2!$A$6,0) -> 11670
A56: =A55+1 -> 38 | B56: Компл боковины со стеклопак прав для Solo L9 | C56: 1014.41.00.00mir | F56: 11669.5836 | G56: =ROUND(F56*(1-$D$3)/Лист2!$A$6,0) -> 11670
A57: 39 | B57: Компл боковины со стеклопак лев для Solo L7 | C57: 1004.41.00.00 | F57: 10706.04 | G57: =ROUND(F57*(1-$D$3)/Лист2!$A$6,0) -> 10706
A58: 40 | B58: Компл боковины со стеклопак прав для Solo L7 | C58: 1004.41.00.00mir | F58: 10706.04 | G58: =ROUND(F58*(1-$D$3)/Лист2!$A$6,0) -> 10706
A60: =A58+1 -> 41 | B60: Компл герметичн разделителя (оргст) для Solo L9 | C60: 1014.44.00.00 | F60: 13705.186 | G60: =ROUND(F60*(1-$D$3)/Лист2!$A$6,0) -> 13705
A61: =A60+1 -> 42 | B61: Компл герметичн разделителя (оргст) для Solo L7 | C61: 1004.44.00.00 | F61: 11726.90767 | G61: =ROUND(F61*(1-$D$3)/Лист2!$A$6,0) -> 11727
A63: =A61+1 -> 43 | B63: Компл зеркал герметичн разделителя для Solo L9 | C63: 1014.45.00.00 | F63: 18902.32 | G63: =ROUND(F63*(1-$D$3)/Лист2!$A$6,0) -> 18902
A64: =A63+1 -> 44 | B64: Компл зеркал герметичн разделителя для Solo L7 | C64: 1004.45.00.00 | F64: 18486.48 | G64: =ROUND(F64*(1-$D$3)/Лист2!$A$6,0) -> 18486
A66: =A64+1 -> 45 | B66: Комплект соединительный в линию для Solo L | C66: 1004.60.00.00 | F66: 1987.2 | G66: =ROUND(F66*(1-$D$3)/Лист2!$A$6,0) -> 1987
A68: 69 | B68: Полка навесная с кронштейнами (ОЦ) 1250х500 929.67.00.00-01 для Solo для исп 1250, 2500 | C68: 929.67.00.00-01 | F68: 2122.44 | G68: =ROUND(F68*(1-$D$3)/Лист2!$A$6,0) -> 2122
A69: =A68+1 -> 70 | B69: Полка навесная с кронштейнами (ОЦ) 1500х500 1014.67.00.00-02 для Solo для исп 1500 | C69: 1014.67.00.00-02 | F69: 2548.4 | G69: =ROUND(F69*(1-$D$3)/Лист2!$A$6,0) -> 2548
A70: =A69+1 -> 71 | B70: Полка навесная с кронштейнами (ОЦ) 937х500 1015.67.00.00-03 для Solo для исп. 1875 | C70: 1015.67.00.00-03 | F70: 1784.8 | G70: =ROUND(F70*(1-$D$3)/Лист2!$A$6,0) -> 1785
A71: 72 | B71: Полка навесная с кронштейнами (ОЦ) 1250х400 811.68.00.00 для Rimini для исп.1250,2500 | C71: 811.68.00.00 | F71: 1656.92 | G71: =ROUND(F71*(1-$D$3)/Лист2!$A$6,0) -> 1657
A72: 73 | B72: Полка навесная с кронштейнами (ОЦ) 1500х400 1004.68.00.00-02 для Solo L 1500 | C72: 1004.68.00.00-02 | F72: 1991.8 | G72: =ROUND(F72*(1-$D$3)/Лист2!$A$6,0) -> 1992
A73: 74 | B73: Полка навесная с кронштейнами (ОЦ) 937х400 811.68.00.00-01 для Solo для исп. 1875 | C73: 811.68.00.00-01 | F73: 1531.8 | G73: =ROUND(F73*(1-$D$3)/Лист2!$A$6,0) -> 1532
A74: 75 | B74: Ценникодержатель съемный,L=1250, T-TH 0100125, прозрачный | C74: T-TH 0100125 | F74: 98.44 | G74: =ROUND(F74*(1-$D$3)/Лист2!$A$6,0) -> 98
A75: 76 | B75: Ценникодержатель съемный, L=1500, T-TH 0100150, прозрачный | C75: н№15085.3 | F75: 136.16 | G75: =ROUND(F75*(1-$D$3)/Лист2!$A$6,0) -> 136
A76: 77 | B76: Ценникодержатель съемный, L=925, прозрачный | C76: н№15085.2 | F76: 68.08 | G76: =ROUND(F76*(1-$D$3)/Лист2!$A$6,0) -> 68
A78: =A76+1 -> 78 | B78: Решетка фруктовая (базовая), 932х635 мм. для Rimini H9/L9, Solo L9 | C78: 781.75.00.00 | F78: 3001.96 | G78: =ROUND(F78*(1-$D$3)/Лист2!$A$6,0) -> 3002
A79: =A78+1 -> 79 | B79: Решетка базовая (фруктовая) 750х635 мм. для Solo L9 | C79: 1014.75.00.00-02 | F79: 2701.764 | G79: =ROUND(F79*(1-$D$3)/Лист2!$A$6,0) -> 2702
A80: =A79+1 -> 80 | B80: Решетка фруктовая (базовая), 1245x635 мм. для Rimini H9/L9 | C80: 781.75.00.00-01 | F80: 3321.2 | G80: =ROUND(F80*(1-$D$3)/Лист2!$A$6,0) -> 3321
A81: 81 | B81: Решетка базовая (фруктовая) 932х455 мм. для Rimini H7/L7 | C81: 798.75.00.00 | F81: 2254.92 | G81: =ROUND(F81*(1-$D$3)/Лист2!$A$6,0) -> 2255
A82: 82 | B82: Решетка базовая (фруктовая) 750х635 мм. для Solo L7 | C82: 1004.75.00.00-02 | F82: 2029.428 | G82: =ROUND(F82*(1-$D$3)/Лист2!$A$6,0) -> 2029
A83: 83 | B83: Решетка базовая (фруктовая) 1245х455 мм. для Rimini H7/L7, Solo L7 | C83: 798.75.00.00-01 | F83: 2552.08 | G83: =ROUND(F83*(1-$D$3)/Лист2!$A$6,0) -> 2552
A85: =A83+1 -> 84 | B85: Комплект зеркала наклон(с кронш) (1250) 1014.53.00.00-01 L=1250 для Solo L9 | C85: 1014.53.00.00-01 | F85: 2673.248305 | G85: =ROUND(F85*(1-$D$3)/Лист2!$A$6,0) -> 2673
A86: =A85+1 -> 85 | B86: Комплект зеркала наклон(с кронш) (1500) 1014.53.00.00-02 L=1500 для Solo L9 | C86: 1014.53.00.00-02 | F86: 3341.560381 | G86: =ROUND(F86*(1-$D$3)/Лист2!$A$6,0) -> 3342
A87: =A86+1 -> 86 | B87: Комплект зеркала наклон(с кронш) (937) 1014.53.00.00-03 L=1875 для Solo L9 | C87: 1014.53.00.00-03 | F87: 2291.189794 | G87: =ROUND(F87*(1-$D$3)/Лист2!$A$6,0) -> 2291
A88: 87 | B88: Комплект заглушек для зеркала наклонного 1014.52.00.00 для Solo L9 | C88: 1014.52.00.00 | F88: 694.4406979 | G88: =ROUND(F88*(1-$D$3)/Лист2!$A$6,0) -> 694
A89: 88 | B89: Комплект зеркала наклон(с кронш) (1250) 1004.53.00.00-01 L=1250 для Solo L7 | C89: 1004.53.00.00-01 | F89: 2389.324798 | G89: =ROUND(F89*(1-$D$3)/Лист2!$A$6,0) -> 2389
A90: 89 | B90: Комплект зеркала наклон(с кронш) (1500) 1004.53.00.00-02 L=1500 для Solo L7 | C90: 1004.53.00.00-02 | F90: 2986.655997 | G90: =ROUND(F90*(1-$D$3)/Лист2!$A$6,0) -> 2987
A91: 90 | B91: Комплект зеркала наклон(с кронш) (937) 1004.53.00.00-03 L=1875 для Solo L7 | C91: 1004.53.00.00-03 | F91: 2050.852343 | G91: =ROUND(F91*(1-$D$3)/Лист2!$A$6,0) -> 2051
A92: 91 | B92: Комплект заглушек для зеркала наклонного 757.52.00.00 для Solo L7 | C92: 1004.52.00.00 | F92: 509.7984387 | G92: =ROUND(F92*(1-$D$3)/Лист2!$A$6,0) -> 510
A94: =A92+1 -> 92 | B94: Разделитель объема для полок(500) 1004.115.00.00 для Solo L | C94: 1004.115.00.00 | F94: 2657.88 | G94: =ROUND(F94*(1-$D$3)/Лист2!$A$6,0) -> 2658
A95: =A94+1 -> 93 | B95: Разделитель объема для полок(400) 1004.116.00.00 для Solo L | C95: 1004.116.00.00 | F95: 1844.6 | G95: =ROUND(F95*(1-$D$3)/Лист2!$A$6,0) -> 1845
A96: 94 | B96: Делитель передвижной H=150 (500) оргст 646.51.00.01-01 L=1250/2500 для стеллажей Italfrigo, Solo | C96: 646.51.00.01-01 | F96: 617.6701626 | G96: =ROUND(F96*(1-$D$3)/Лист2!$A$6,0) -> 618
A97: 95 | B97: Делитель передвижной H=150 (400) оргст 646.51.00.01 L=1250/2500 для стеллажей Italfrigo, Solo | C97: 646.51.00.01 | F97: 539.12 | G97: =ROUND(F97*(1-$D$3)/Лист2!$A$6,0) -> 539
A98: 96 | B98: Фронтальный ограничитель 40мм (1250) оргст 646.54.00.03 L=1250/2500 для для Solo | C98: 646.54.00.03 | F98: 619.16 | G98: =ROUND(F98*(1-$D$3)/Лист2!$A$6,0) -> 619
A99: 97 | B99: Фронтальный ограничитель Н=40мм, L=1500 (оргст) 1004.54.00.03-02 L=1500 для стеллажей Solo | C99: 646.54.00.03-02 | F99: 773.95 | G99: =ROUND(F99*(1-$D$3)/Лист2!$A$6,0) -> 774
A100: 98 | B100: Фронтальный ограничитель 40мм (937) оргст 646.54.00.03-01 L=1875 для Solo | C100: 646.54.00.03-01 | F100: 289.8 | G100: =ROUND(F100*(1-$D$3)/Лист2!$A$6,0) -> 290
A101: 99 | B101: Фронтальный ограничитель Н=60мм, L=1250 (оргст) 646.54.00.04 L=1250/2500 для Rimini/Lazio, Solo | C101: 646.54.00.04 | F101: 907.12 | G101: =ROUND(F101*(1-$D$3)/Лист2!$A$6,0) -> 907
A102: 100 | B102: Фронтальный ограничитель Н=60мм, L=1500 (оргст) 1004.54.00.04-02 L=1500 для Solo | C102: 646.54.00.04-02 | F102: 1133.9 | G102: =ROUND(F102*(1-$D$3)/Лист2!$A$6,0) -> 1134
A103: 101 | B103: Фронтальный ограничитель Н=60мм, L=937 (оргст) 646.54.00.04-01 L=1875 для Rimini/Lazio, Solo | C103: 646.54.00.04-01 | F103: 734.16 | G103: =ROUND(F103*(1-$D$3)/Лист2!$A$6,0) -> 734
A104: 102 | B104: Ограничитель проволочный(ОЦ, полимерное покрытие) 1235х57мм 781.76.00.01 | C104: 781.76.00.01 | F104: 273.24 | G104: =ROUND(F104*(1-$D$3)/Лист2!$A$6,0) -> 273
A105: 103 | B105: Ограничитель проволочный(ОЦ, полимерное покрытие) 926х57мм 781.76.00.01-01, Solo | C105: 781.76.00.01-01 | F105: 218.96 | G105: =ROUND(F105*(1-$D$3)/Лист2!$A$6,0) -> 219
A106: 104 | B106: Ограничитель проволочный(ОЦ, полимерное покрытие) 1500х57мм 1004.76.00.01-02 | C106: 781.76.00.01-02 | F106: 341.55 | G106: =ROUND(F106*(1-$D$3)/Лист2!$A$6,0) -> 342
A108: =A106+1 -> 105 | B108: Комплект отбойника фронтального (пластик) L=1250 | C108: 646.56.00.00 | F108: 828.8354113 | G108: =ROUND(F108*(1-$D$3)/Лист2!$A$6,0) -> 829
A109: =A108+1 -> 106 | B109: Комплект отбойника фронтального (пластик) L=1875 | C109: 646.56.00.00-01 | F109: 1200.38232 | G109: =ROUND(F109*(1-$D$3)/Лист2!$A$6,0) -> 1200
A110: =A109+1 -> 107 | B110: Комплект отбойника фронтального (пластик) L=2500 | C110: 646.56.00.00-02 | F110: 1569.330998 | G110: =ROUND(F110*(1-$D$3)/Лист2!$A$6,0) -> 1569
A111: 108 | B111: Комплект отбойника фронтального (пластик) L=3750 | C111: 646.56.00.00-03 | F111: 2309.826585 | G111: =ROUND(F111*(1-$D$3)/Лист2!$A$6,0) -> 2310
A112: 109 | B112: Комплект отбойника фронтального (пластик) L=1500 | C112: 646.56.00.00-04 | F112: 1117.8 | G112: =ROUND(F112*(1-$D$3)/Лист2!$A$6,0) -> 1118
A113: 110 | B113: Торцевой элемент НБИЛГ 7.116.007 н№950.28 | C113: н№950.28 | F113: 264.96 | G113: =ROUND(F113*(1-$D$3)/Лист2!$A$6,0) -> 265
A114: 111 | B114: Комплект отбойника фронтального 15х30 (труба нерж.) L=1250 | C114: 781.55.00.00 | F114: 1657.670823 | G114: =ROUND(F114*(1-$D$3)/Лист2!$A$6,0) -> 1658
A115: 112 | B115: Комплект отбойника фронтального 15х30 (труба нерж.) L=1875 | C115: 781.55.00.00-01 | F115: 2400.76464 | G115: =ROUND(F115*(1-$D$3)/Лист2!$A$6,0) -> 2401
A116: 113 | B116: Комплект отбойника фронтального 15х30 (труба нерж) L=2500 | C116: 781.55.00.00-02 | F116: 3138.661996 | G116: =ROUND(F116*(1-$D$3)/Лист2!$A$6,0) -> 3139
A117: 114 | B117: Комплект отбойника фронтального 15х30 (труба нерж) L=3750 | C117: 781.55.00.00-03 | F117: 4619.65317 | G117: =ROUND(F117*(1-$D$3)/Лист2!$A$6,0) -> 4620
A118: 115 | B118: Комплект отбойника фронтального 15х30 (труба нерж) L=1500 | C118: 781.55.00.00-04 | F118: 2232.139504 | G118: =ROUND(F118*(1-$D$3)/Лист2!$A$6,0) -> 2232
A120: 119 | B120: Комплект подвесов для колбасы(две штанг + 4 блока крюков) 1004.59.00.00-01 L=1250, 2500 25 шаг | C120: 1004.59.00.00-01 | F120: 5984.6 | G120: =ROUND(F120*(1-$D$3)/Лист2!$A$6,0) -> 5985
A121: =A120+1 -> 120 | B121: Комплект подвесов для колбасы(две штанг + 8 блока крюков) 1004.59.00.00-02 L=1500, 25 шаг | C121: 1004.59.00.00-02 | F121: 7779.98 | G121: =ROUND(F121*(1-$D$3)/Лист2!$A$6,0) -> 7780
A122: =A121+1 -> 121 | B122: Комплект подвесов для колбасы(две штанг + 4 блока крюков) 1004.59.00.00-03 L=937, 25 шаг | C122: 1004.59.00.00-03 | F122: 5173.16 | G122: =ROUND(F122*(1-$D$3)/Лист2!$A$6,0) -> 5173
A123: 122 | B123: Штанга для навески крюков 1004.57.00.00-01 L=1250, 15х30 мм. 25 шаг | C123: 646.57.00.00 | F123: 2235.6 | G123: =ROUND(F123*(1-$D$3)/Лист2!$A$6,0) -> 2236
A124: 123 | B124: Штанга для навески крюков 1004.57.00.00-02 L=1500, 15х30 мм. 25 шаг | C124: 1004.57.00.00-02 | F124: 2906.28 | G124: =ROUND(F124*(1-$D$3)/Лист2!$A$6,0) -> 2906
A125: 124 | B125: Штанга для навески крюков 1004.57.00.00-03 L=937, 15х30 мм. 25 шаг | C125: 1004.57.00.00-03 | F125: 1814.24 | G125: =ROUND(F125*(1-$D$3)/Лист2!$A$6,0) -> 1814
A126: 125 | B126: Крючок на штангу одинарный хромированный с ценникодержателем, 400 мм / диаметр 8,0 мм | C126: н№15074.32 | F126: 592.2487557 | G126: =ROUND(F126*(1-$D$3)/Лист2!$A$6,0) -> 592
A127: 126 | B127: Крючок на штангу одинарный хромированный с ценникодержателем, 500 мм / диаметр 10,0 мм | C127: н№15074.33 | F127: 719.9886834 | G127: =ROUND(F127*(1-$D$3)/Лист2!$A$6,0) -> 720
A128: Solo L9 Light
A129: Обязательные опции для базовой комплектации Solo. Дополнительные опции для гастрономической комплектации Solo. | H129: вернуться к прайсу стеллажей
A130: Общее освещение
A131: Нейтральный свет (4000-4500К) подходит всем товарным категориям (не искажает натуральный цвет продуктов). Тёплый свет (2700-3000К) подходит категории "Фрукты, овощи, сыры" (категория выглядит ярче, насыщеннее). Мясной свет подходит категории "Мясо, мясная гастрономия" (категория выглядит ярче, насыщеннее)
A132: 4 | B132: Комплект общей подсветки стеллажа Т8 1121.15.02.00-01 L=1250 для Solo L9 Light | C132: Спектр освещения определяется характеристикой (третий символ, "1" - 3000К, "2" - 4000К, "М" - мясной) | F132: 1948.280878 | G132: =ROUND(F132*(1-$D$3)/Лист2!$A$6,0) -> 1948
A133: =A132+1 -> 5 | B133: Комплект общей подсветки стеллажа Т8 1121.15.02.00-02 L=1500 для Solo L9 Light | F133: 2585.433043 | G133: =ROUND(F133*(1-$D$3)/Лист2!$A$6,0) -> 2585
A134: =A133+1 -> 6 | B134: Комплект общей подсветки стеллажа Т8 1121.15.02.00-03 L=1875 для Solo L9 Light | F134: 2898.535087 | G134: =ROUND(F134*(1-$D$3)/Лист2!$A$6,0) -> 2899
A135: Дополнительные опции для Solo
A136: 7 | B136: Система выпаривания конденсата для стеллажа Solo L9 Light длиной 1250 мм | C136: Применение выпаривателя определяется характеристикой (восьмой символ, "0" -без выпаривателя, "V" - выпариватель применен) | F136: 3220 | G136: =ROUND(F136*(1-$D$3)/Лист2!$A$6,0) -> 3220
A137: =A136+1 -> 8 | B137: Система выпаривания конденсата для стеллажа Solo L9 Light длиной 1500 мм | F137: 4508 | G137: =ROUND(F137*(1-$D$3)/Лист2!$A$6,0) -> 4508
A138: =A137+1 -> 9 | B138: Система выпаривания конденсата для стеллажа Solo L9 Light длиной 1875 мм | F138: 5474 | G138: =ROUND(F138*(1-$D$3)/Лист2!$A$6,0) -> 5474
A139: Подсветка полок (универсальная для полок разной глубины - 300, 400, 500 мм) Нейтральный свет (4000-4500К) подходит всем товарным категориям (не искажает натуральный цвет продуктов). Тёплый свет (2700-3000К) подходит категории "Фрукты, овощи, сыры" (категория выглядит ярче, насыщеннее). Мясной свет подходит категории "Мясо, мясная гастрономия" (категория выглядит ярче, насыщеннее)
A140: 10 | B140: Комплект подсветки полок (3 ряда) Т8 1121.99.00.00-01 L=1250 для Solo L9 Light | C140: 1121.99.00.00-01 | D140: Спектр освещения определяется характеристикой (третий символ, "1" - 3000К, "2" - 4000К, "М" - мясной) | F140: 4995.68375 | G140: =ROUND(F140*(1-$D$3)/Лист2!$A$6,0) -> 4996
A141: =A140+1 -> 11 | B141: Комплект подсветки полок (3 ряда) Т8 1121.99.00.00-02 L=1500 для Solo L9 Light | C141: 1121.99.00.00-02 | F141: 8365.036391 | G141: =ROUND(F141*(1-$D$3)/Лист2!$A$6,0) -> 8365
A142: 12 | B142: Комплект подсветки полок (3 ряда) Т8 1121.99.00.00-03 L=1875 для Solo L9 Light | C142: 1121.99.00.00-03 | F142: 9049.175677 | G142: =ROUND(F142*(1-$D$3)/Лист2!$A$6,0) -> 9049
A143: 13 | B143: Комплект подсветки полок (4 ряда) Т8 1121.100.00.00-01 L=1250 для Solo L9 Light | C143: 1121.100.00.00-01 | F143: 5742.16523 | G143: =ROUND(F143*(1-$D$3)/Лист2!$A$6,0) -> 5742
A144: 14 | B144: Комплект подсветки полок (4 ряда) Т8 1121.100.00.00-02 L=1500 для Solo L9 Light | C144: 1121.100.00.00-02 | F144: 9614.984358 | G144: =ROUND(F144*(1-$D$3)/Лист2!$A$6,0) -> 9615
A145: 15 | B145: Комплект подсветки полок (4 ряда) Т8 1121.100.00.00-03 L=1875 для Solo L9 Light | C145: 1121.100.00.00-03 | F145: 10401.35135 | G145: =ROUND(F145*(1-$D$3)/Лист2!$A$6,0) -> 10401
A146: 16 | B146: Комплект подсветки полок (5 рядов) Т8 1121.101.00.00-01 L=1250 для Solo L9 Light | C146: 1121.101.00.00-01 | F146: 6775.754971 | G146: =ROUND(F146*(1-$D$3)/Лист2!$A$6,0) -> 6776
A147: 17 | B147: Комплект подсветки полок (5 рядов) Т8 1121.101.00.00-02 L=1500 для Solo L9 Light | C147: 1121.101.00.00-02 | F147: 11345.68154 | G147: =ROUND(F147*(1-$D$3)/Лист2!$A$6,0) -> 11346
A148: 18 | B148: Комплект подсветки полок (5 рядов) Т8 1121.101.00.00-03 L=1875 для Solo L9 Light | C148: 1121.101.00.00-03 | F148: 12273.5946 | G148: =ROUND(F148*(1-$D$3)/Лист2!$A$6,0) -> 12274
A149: Дополнительные опции для Solo
A150: =A148+1 -> 19 | B150: Комплект боковины глухой левой для Solo L9 Light | C150: 1121.40.00.00 | D150: Наличие и тип боковины определяется характеристикой (левая боковина 9 символ, правая боковина 10 символ). Боковина не применяется когда стеллаж в линии - "0". Боковина глухая - "G" | F150: 7751.3772 | G150: =ROUND(F150*(1-$D$3)/Лист2!$A$6,0) -> 7751
A151: =A150+1 -> 20 | B151: Комплект боковины глухой правой для Solo L9 Light | C151: 1121.40.00.00mir | F151: 7751.3772 | G151: =ROUND(F151*(1-$D$3)/Лист2!$A$6,0) -> 7751
A153: 21 | B153: Компл боковины глух лев с зерк для Solo L9 Light | C153: 1121.37.00.00 | D153: Наличие и тип боковины определяется характеристикой (левая боковина 9 символ, правая боковина 10 символ). Боковина не применяется когда стеллаж в линии - "0". Боковина глухая с зеркалом - "Z". | F153: 8560.83 | G153: =ROUND(F153*(1-$D$3)/Лист2!$A$6,0) -> 8561
A154: =A153+1 -> 22 | B154: Компл боковины глух прав с зерк для Solo L9 Light | C154: 1121.37.00.00mir | F154: 8560.83 | G154: =ROUND(F154*(1-$D$3)/Лист2!$A$6,0) -> 8561
A156: 23 | B156: Компл боковины со стеклопак лев для Solo L9 Light | C156: 1121.41.00.00 | D156: Наличие и тип боковины определяется характеристикой (левая боковина 9 символ, правая боковина 10 символ). Боковина не применяется когда стеллаж в линии - "0". Боковина панорамная - "S". | F156: 8752.1877 | G156: =ROUND(F156*(1-$D$3)/Лист2!$A$6,0) -> 8752
A157: =A156+1 -> 24 | B157: Компл боковины со стеклопак прав для Solo L9 Light | C157: 1121.41.00.00mir | F157: 8752.1877 | G157: =ROUND(F157*(1-$D$3)/Лист2!$A$6,0) -> 8752
A159: 25 | B159: Компл герметичн разделителя (оргст) для Solo L9 Light | C159: 1121.44.00.00 | F159: 11649.4081 | G159: =ROUND(F159*(1-$D$3)/Лист2!$A$6,0) -> 11649
A161: 26 | B161: Компл зеркал герметичн разделителя для Solo L9 Light | C161: 1121.45.00.00 | F161: 13231.624 | G161: =ROUND(F161*(1-$D$3)/Лист2!$A$6,0) -> 13232
A163: 27 | B163: Комплект соединительный в линию для Solo L9 Light | C163: 1121.60.00.00 | F163: 1788.48 | G163: =ROUND(F163*(1-$D$3)/Лист2!$A$6,0) -> 1788
A165: 28 | B165: Полка навесная с кронштейнами 1250х500 1121.67.00.00-01 для Solo L9 Light для исп 1250 | C165: 1121.67.00.00-01 | F165: 1485.708 | G165: =ROUND(F165*(1-$D$3)/Лист2!$A$6,0) -> 1486
A166: =A165+1 -> 29 | B166: Полка навесная с кронштейнами 1500х500 1121.67.00.00-02 для Solo L9 Light для исп 1500 | C166: 1121.67.00.00-02 | F166: 1783.88 | G166: =ROUND(F166*(1-$D$3)/Лист2!$A$6,0) -> 1784
A167: =A166+1 -> 30 | B167: Полка навесная с кронштейнами 937х500 1121.67.00.00-03 для Solo L9 Light для исп 1875 | C167: 1121.67.00.00-03 | F167: 1249.36 | G167: =ROUND(F167*(1-$D$3)/Лист2!$A$6,0) -> 1249
A168: 31 | B168: Ценникодержатель съемный,L=1250, T-TH 0100125, прозрачный | C168: T-TH 0100125 | F168: 98.44 | G168: =ROUND(F168*(1-$D$3)/Лист2!$A$6,0) -> 98
A169: 32 | B169: Ценникодержатель съемный, L=1500, T-TH 0100150, прозрачный | C169: н№15085.3 | F169: 136.16 | G169: =ROUND(F169*(1-$D$3)/Лист2!$A$6,0) -> 136
A170: 33 | B170: Ценникодержатель съемный, L=925, прозрачный | C170: н№15085.2 | F170: 68.08 | G170: =ROUND(F170*(1-$D$3)/Лист2!$A$6,0) -> 68
A172: =A170+1 -> 34 | B172: Решетка фруктовая (базовая), 932х635 мм. для Rimini H9/L9, Solo L9 | C172: 781.75.00.00 | F172: 3001.96 | G172: =ROUND(F172*(1-$D$3)/Лист2!$A$6,0) -> 3002
A173: =A172+1 -> 35 | B173: Решетка базовая (фруктовая) 750х635 мм. для Solo L9 | C173: 1014.75.00.00-02 | F173: 2701.764 | G173: =ROUND(F173*(1-$D$3)/Лист2!$A$6,0) -> 2702
A174: =A173+1 -> 36 | B174: Решетка фруктовая (базовая), 1245x635 мм. для Rimini H9/L9 | C174: 781.75.00.00-01 | F174: 3321.2 | G174: =ROUND(F174*(1-$D$3)/Лист2!$A$6,0) -> 3321
A176: 37 | B176: Комплект зеркала наклон(с кронш) (1250)1121.53.00.00-01 L=1250 для Solo L9 Light | C176: 1121.53.00.00-01 | F176: 2673.248305 | G176: =ROUND(F176*(1-$D$3)/Лист2!$A$6,0) -> 2673
A177: =A176+1 -> 38 | B177: Комплект зеркала наклон(с кронш) (1500)1121.53.00.00-02 L=1500 для Solo L9 Light | C177: 1121.53.00.00-02 | F177: 3341.560381 | G177: =ROUND(F177*(1-$D$3)/Лист2!$A$6,0) -> 3342
A178: =A177+1 -> 39 | B178: Комплект зеркала наклон(с кронш) (937) 1121.53.00.00-03 L=1875 для Solo L9 Light | C178: 1121.53.00.00-03 | F178: 2291.189794 | G178: =ROUND(F178*(1-$D$3)/Лист2!$A$6,0) -> 2291
A179: 40 | B179: Комплект заглушек для зеркала наклонного 1121.52.00.00 для Solo L9 Light | C179: 1121.52.00.00 | F179: 694.4406979 | G179: =ROUND(F179*(1-$D$3)/Лист2!$A$6,0) -> 694
A181: 41 | B181: Разделитель объема для полок(500) 1121.116.00.00 для Solo L9 Light | C181: 1121.116.00.00 | F181: 2392.092 | G181: =ROUND(F181*(1-$D$3)/Лист2!$A$6,0) -> 2392
A182: =A181+1 -> 42 | B182: Разделитель объема для полок(400) 1121.116.00.00 для Solo L9 Light | C182: 1121.116.00.00 | F182: 1660.14 | G182: =ROUND(F182*(1-$D$3)/Лист2!$A$6,0) -> 1660
A183: 43 | B183: Делитель передвижной H=150 (500) оргст 646.51.00.01-01 L=1250/2500 для стеллажей Italfrigo, Solo | C183: 646.51.00.01-01 | F183: 617.6701626 | G183: =ROUND(F183*(1-$D$3)/Лист2!$A$6,0) -> 618
A184: 44 | B184: Фронтальный ограничитель 40мм (1250) оргст 646.54.00.03 L=1250/2500 для для Solo | C184: 646.54.00.03 | F184: 619.16 | G184: =ROUND(F184*(1-$D$3)/Лист2!$A$6,0) -> 619
A185: 45 | B185: Фронтальный ограничитель Н=40мм, L=1500 (оргст) 1004.54.00.03-02 L=1500 для стеллажей Solo | C185: 1004.54.00.03-02 | F185: 773.95 | G185: =ROUND(F185*(1-$D$3)/Лист2!$A$6,0) -> 774
A186: 46 | B186: Фронтальный ограничитель 40мм (937) оргст 646.54.00.03-01 L=1875 для Solo | C186: 646.54.00.03-01 | F186: 289.8 | G186: =ROUND(F186*(1-$D$3)/Лист2!$A$6,0) -> 290
A187: 47 | B187: Фронтальный ограничитель Н=60мм, L=1250 (оргст) 646.54.00.04 L=1250/2500 для Rimini/Lazio, Solo | C187: 646.54.00.04 | F187: 907.12 | G187: =ROUND(F187*(1-$D$3)/Лист2!$A$6,0) -> 907
A188: 48 | B188: Фронтальный ограничитель Н=60мм, L=1500 (оргст) 1004.54.00.04-02 L=1500 для Solo | C188: 646.54.00.04-02 | F188: 1133.9 | G188: =ROUND(F188*(1-$D$3)/Лист2!$A$6,0) -> 1134
A189: 49 | B189: Фронтальный ограничитель Н=60мм, L=937 (оргст) 646.54.00.04-01 L=1875 для Rimini/Lazio, Solo | C189: 646.54.00.04-01 | F189: 734.16 | G189: =ROUND(F189*(1-$D$3)/Лист2!$A$6,0) -> 734
A190: 50 | B190: Ограничитель проволочный(ОЦ, полимерное покрытие) 1235х57мм 781.76.00.01 | C190: 781.76.00.01 | F190: 273.24 | G190: =ROUND(F190*(1-$D$3)/Лист2!$A$6,0) -> 273
A191: 51 | B191: Ограничитель проволочный(ОЦ, полимерное покрытие) 926х57мм 781.76.00.01-01, Solo | C191: 781.76.00.01-01 | F191: 218.96 | G191: =ROUND(F191*(1-$D$3)/Лист2!$A$6,0) -> 219
A192: 52 | B192: Ограничитель проволочный(ОЦ, полимерное покрытие) 1500х57мм 1004.76.00.01-02 | C192: 781.76.00.01-02 | F192: 341.55 | G192: =ROUND(F192*(1-$D$3)/Лист2!$A$6,0) -> 342
A194: =A192+1 -> 53 | B194: Комплект отбойника фронтального (пластик) L=1250 | C194: 646.56.00.00 | F194: 828.8354113 | G194: =ROUND(F194*(1-$D$3)/Лист2!$A$6,0) -> 829
A195: =A194+1 -> 54 | B195: Комплект отбойника фронтального (пластик) L=1875 | C195: 646.56.00.00-01 | F195: 1200.38232 | G195: =ROUND(F195*(1-$D$3)/Лист2!$A$6,0) -> 1200
A196: =A195+1 -> 55 | B196: Комплект отбойника фронтального (пластик) L=2500 | C196: 646.56.00.00-02 | F196: 1569.330998 | G196: =ROUND(F196*(1-$D$3)/Лист2!$A$6,0) -> 1569
A197: 56 | B197: Комплект отбойника фронтального (пластик) L=3750 | C197: 646.56.00.00-03 | F197: 2309.826585 | G197: =ROUND(F197*(1-$D$3)/Лист2!$A$6,0) -> 2310
A198: 57 | B198: Комплект отбойника фронтального (пластик) L=1500 | C198: 646.56.00.00-04 | F198: 1117.8 | G198: =ROUND(F198*(1-$D$3)/Лист2!$A$6,0) -> 1118
A199: 58 | B199: Торцевой элемент НБИЛГ 7.116.007 н№950.28 | C199: н№950.28 | F199: 264.96 | G199: =ROUND(F199*(1-$D$3)/Лист2!$A$6,0) -> 265
A200: 59 | B200: Комплект отбойника фронтального 15х30 (труба нерж.) L=1250 | C200: 781.55.00.00 | F200: 1657.670823 | G200: =ROUND(F200*(1-$D$3)/Лист2!$A$6,0) -> 1658
A201: 60 | B201: Комплект отбойника фронтального 15х30 (труба нерж.) L=1875 | C201: 781.55.00.00-01 | F201: 2400.76464 | G201: =ROUND(F201*(1-$D$3)/Лист2!$A$6,0) -> 2401
A202: 61 | B202: Комплект отбойника фронтального 15х30 (труба нерж) L=2500 | C202: 781.55.00.00-02 | F202: 3138.661996 | G202: =ROUND(F202*(1-$D$3)/Лист2!$A$6,0) -> 3139
A203: 62 | B203: Комплект отбойника фронтального 15х30 (труба нерж) L=3750 | C203: 781.55.00.00-03 | F203: 4619.65317 | G203: =ROUND(F203*(1-$D$3)/Лист2!$A$6,0) -> 4620
A204: 63 | B204: Комплект отбойника фронтального 15х30 (труба нерж) L=1500 | C204: 781.55.00.00-04 | F204: 2232.139504 | G204: =ROUND(F204*(1-$D$3)/Лист2!$A$6,0) -> 2232
A206: 64 | B206: Комплект подвесов для колбасы(две штанг + 4 блока крюков) 781.59.00.00-01 L=1250, 2500 | C206: 781.59.00.00-01 | F206: 5984.6 | G206: =ROUND(F206*(1-$D$3)/Лист2!$A$6,0) -> 5985
A207: =A206+1 -> 65 | B207: Комплект подвесов для колбасы(две штанг + 8 блока крюков) 781.59.00.00-02 L=1500 | C207: 781.59.00.00-02 | F207: 7779.98 | G207: =ROUND(F207*(1-$D$3)/Лист2!$A$6,0) -> 7780
A208: =A207+1 -> 66 | B208: Комплект подвесов для колбасы(две штанг + 4 блока крюков) 781.59.00.00-03 L=937 | C208: 781.59.00.00-03 | F208: 5173.16 | G208: =ROUND(F208*(1-$D$3)/Лист2!$A$6,0) -> 5173
A209: 67 | B209: Штанга для навески крюков 646.57.00.00 L=1250, 15х30 мм. | C209: 646.57.00.00 | F209: 2235.6 | G209: =ROUND(F209*(1-$D$3)/Лист2!$A$6,0) -> 2236
A210: 68 | B210: Штанга для навески крюков 1121.57.00.00-02 L=1500, 15х30 мм. | C210: 1121.57.00.00-02 | F210: 2906.28 | G210: =ROUND(F210*(1-$D$3)/Лист2!$A$6,0) -> 2906
A211: 69 | B211: Штанга для навески крюков 646.57.00.00-01 L=937, 15х30 мм. | C211: 646.57.00.00-01 | F211: 1814.24 | G211: =ROUND(F211*(1-$D$3)/Лист2!$A$6,0) -> 1814
A212: 70 | B212: Крючок на штангу одинарный хромированный с ценникодержателем, 400 мм / диаметр 8,0 мм | C212: н№15074.32 | F212: 592.2487557 | G212: =ROUND(F212*(1-$D$3)/Лист2!$A$6,0) -> 592
A213: 71 | B213: Крючок на штангу одинарный хромированный с ценникодержателем, 500 мм / диаметр 10,0 мм | C213: н№15074.33 | F213: 719.9886834 | G213: =ROUND(F213*(1-$D$3)/Лист2!$A$6,0) -> 720
A214: Solo SML
A215: Обязательные опции для базовой комплектации Solo SML. Дополнительные опции для гастрономической комплектации Solo SML. | H215: вернуться к прайсу стеллажей
A216: Общее освещение
A217: Нейтральный свет (4000-4500К) подходит всем товарным категориям (не искажает натуральный цвет продуктов). Тёплый свет (2700-3000К) подходит категории "Фрукты, овощи, сыры" (категория выглядит ярче, насыщеннее). Мясной свет подходит категории "Мясо, мясная гастрономия" (категория выглядит ярче, насыщеннее)
A218: 5 | B218: Комплект общей подсветки стеллажа Т8 1004.15.02.00-01 L=1250 для Solo L | C218: Спектр освещения определяется характеристикой (третий символ, "1" - 3000К, "2" - 4000К, "М" - мясной) | F218: 1948.280878 | G218: =ROUND(F218*(1-$D$3)/Лист2!$A$6,0) -> 1948
A219: 6 | B219: Комплект общей подсветки стеллажа Т8 1004.15.02.00-03 L=1875 для Solo L | F219: 2898.535087 | G219: =ROUND(F219*(1-$D$3)/Лист2!$A$6,0) -> 2899
A220: Подсветка полок (универсальная для полок разной глубины - 300, 400, 500 мм) Нейтральный свет (4000-4500К) подходит всем товарным категориям (не искажает натуральный цвет продуктов). Тёплый свет (2700-3000К) подходит категории "Фрукты, овощи, сыры" (категория выглядит ярче, насыщеннее). Мясной свет подходит категории "Мясо, мясная гастрономия" (категория выглядит ярче, насыщеннее)
A221: 9 | B221: Комплект подсветки полок (3 ряда) Т8 1004.99.00.00-01 L=1250 для Solo L | C221: 1004.99.00.00-01 | D221: Спектр освещения определяется характеристикой (третий символ, "1" - 3000К, "2" - 4000К, "М" - мясной) | F221: 4463.744034 | G221: =ROUND(F221*(1-$D$3)/Лист2!$A$6,0) -> 4464
A222: 10 | B222: Комплект подсветки полок (3 ряда) Т8 1004.99.00.00-03 L=1875 для Solo L | C222: 1004.99.00.00-03 | F222: 8967.342925 | G222: =ROUND(F222*(1-$D$3)/Лист2!$A$6,0) -> 8967
A223: Дополнительные опции для Rimini
A224: 11 | B224: Комплект боковины со стеклопакет лев 929.41.00.00 для ВПВ SOLO SML | C224: 929.41.00.00 | F224: 12389.64 | G224: =ROUND(F224*(1-$D$3)/Лист2!$A$6,0) -> 12390
A225: =A224+1 -> 12 | B225: Комплект боковины со стеклопакет прав 929.41.00.00mir для ВПВ SOLO SML | C225: 929.41.00.00mir | F225: 12389.64 | G225: =ROUND(F225*(1-$D$3)/Лист2!$A$6,0) -> 12390
A227: 13 | B227: Комплект соединительный в линию 929.60.00.00 для стеллажей SOLO SML | C227: 929.60.00.00 | F227: 1344.12 | G227: =ROUND(F227*(1-$D$3)/Лист2!$A$6,0) -> 1344
... 39 more rows

Sheet Расчет нестанд.RAL
M1: В содержание
C2: Таблица расчета нестандартных RAL.
B4: Лари Itlafrost | C4: 1. Стандартный цвет корпуса - RAL9003; Корона - серая; Внутреннний объем - буклированный алюминий;
C6: 2. На заказ - краска нестандартного RAL с повышающим коэффициентом +1,5% к цене (см.список нестандартных RAL).
C7: 3. RAL, не вошедшие в список, являются заказными. Цена по запросу.
B9: Ларь-бонеты и суперструктуры | C9: 1. Стандартный цвет корпуса - RAL9003; Делители/корзины/решетки - RAL9003; Внутренний объем - буклированный алюминий.
C11: 2. На заказ - краска нестандартного RAL с повышающим коэффициентом +1,5% к цене (см.список нестандартных RAL). Покраска в нестандартный цвет суперструктуры - наценка на глянцевую краску +3%, на матовую и структурную краску +8%;
C12: 3. RAL, не вошедшие в список, являются заказными. Цена по запросу.
B14: Octava | C14: 1. Стандартная цветовая гамма (без изменения цены): пунцовый красный (RAL3002), синий (RAL5005), светло-зеленый (RAL 6018), желтый (RAL 1021), серый антрацит (RAL 7016). | K14: Нестандартные цвета RAL
K15: RAL | L15: Вид поверхности
C16: 2. На заказ - краска нестандартного RAL с повышающим коэффициентом +3% к цене (см.список нестандартных RAL). | K16: 1001 | L16: гладкая глянцевая
C17: 3. RAL, не вошедшие в список, являются заказными. Цена по запросу. | K17: 1013 | L17: гладкая глянцевая
K18: 1015 | L18: гладкая глянцевая
B19: Gamma | C19: 1. Стандартная цветовая гамма (без изменения цены): темно-вишневый(RAL 3004), пунцовый красный (RAL3002), синий (RAL5005), светло зеленый (RAL 6018), желтый (RAL 1021), серый антрацит (RAL 7016). | K19: 1018 | L19: гладкая глянцевая
K20: 1021 | L20: гладкая глянцевая
C21: 2. Специальное исполнение под увеличенную загрузку витрины для мясных комбинатов +7% к цене. | K21: 3000 | L21: гладкая глянцевая
C22: 3. На заказ - краска нестандартного RAL с повышающим коэффициентом +3% к цене (см.список нестандартных RAL). | K22: 3002 | L22: гладкая глянцевая
C23: 4. RAL, не вошедшие в список, являются заказными. Цена по запросу. | K23: 3004 | L23: гладкая глянцевая
K24: 5002 | L24: гладкая глянцевая
B25: Gamma Quadro | C25: 1. Стандартная цветовая гамма (без изменения цены): белый/серый антрацит (RAL 9016/7016), темно-вишневый(RAL 3004), пунцовый красный (RAL3002), синий (RAL5005), светло зеленый (RAL 6018), желтый (RAL 1021), серый антрацит (RAL 7016). Поставляется с маркировкой LX (исполнение люкс). | K25: 5005 | L25: гладкая глянцевая
K26: 5010 | L26: гладкая глянцевая
K27: 6018 | L27: гладкая глянцевая
C28: 2. На заказ - краска нестандартного RAL с повышающим коэффициентом +3% к цене (см.список нестандартных RAL). | K28: 7021 | L28: гладкая глянцевая
C29: 3. RAL, не вошедшие в список, являются заказными. Цена по запросу. | K29: 7035 | L29: гладкая глянцевая
K30: 7042 | L30: гладкая глянцевая
B31: Magnum | C31: 1. Стандартная цветовая гамма (без изменения цены): серый антрацит (RAL 7016), темно-вишневый(RAL 3004), пунцовый красный (RAL3002), синий (RAL5005), светло зеленый (RAL 6018), желтый (RAL 1021). | K31: 8011 | L31: гладкая глянцевая
K32: 8016 | L32: гладкая глянцевая
C33: 2. На заказ - краска нестандартного RAL с повышающим коэффициентом +3% к цене (см.список нестандартных RAL). | K33: 9001 | L33: гладкая глянцевая
C34: 3. RAL, не вошедшие в список, являются заказными. Цена по запросу. | K34: 9003 | L34: гладкая глянцевая
K35: 9005 | L35: гладкая глянцевая
B36: Magnum Quadro | C36: 1. Покраска в нестандартный цвет наружных панелей; Замена нерж.метал на крашен.оцинк. металл во внутреннем объеме - наценка к стоимости витрины 3 %. | K36: 9006 | L36: гладкая глянцевая
K37: 9016 | L37: гладкая глянцевая
C38: 2. Срок производства витрины при покраске в нестандартный цвет может увеличится. На 7 дней и более.
C39: Список стандартных цветов
B41: Elegia | C41: 1. Стандартная цветовая гамма (без изменения цены): бежевый (RAL1001), коричневый (RAL8002), ДСП орех.
C43: 2. На заказ - краска нестандартного RAL с повышающим коэффициентом +3% к цене (см.список нестандартных RAL).
C44: 3. Краска RAL 3486 с повышающим коэффициентом +8% к цене.
C45: 4. Нестандартные ДСП с повышающим коэффициентом: Витрины +1% к цене, Прилавки КНП +8% к цене.
B47: Elegia Quadro | C47: 1. Стандартная цветовая гамма: молочно-белый/черный (RAL 9010/9005).
C48: 2. На заказ - краска нестандартного RAL без дополнительной наценки (см.список нестандартных RAL).
C49: 3. RAL, не вошедшие в список, являются заказными. Цена по запросу.
B51: SOLO | C51: 1. Стандартная цветовая гамма (без изменения цены): белый/серый антрацит (RAL 9016/7016), темно-вишневый(RAL 3004), пунцовый красный (RAL3002), синий (RAL5005), светло зеленый (RAL 6018), светло-серый (RAL7035); черный (RAL9005)
C53: 2. На заказ - стеллаж нестандартного RAL +2% к цене.
C55: 3. RAL, не вошедшие в список, являются заказными. Цена по запросу.
B57: UNIT | C57: 1. Стандартная цветовая гамма (без изменения цены): белый/серый антрацит (RAL 9016/7016), темно-вишневый(RAL 3004), пунцовый красный (RAL3002), синий (RAL5005), светло зеленый (RAL 6018), светло-серый (RAL7035); черный (RAL9005).
C59: 2. На заказ - стеллаж нестандартного RAL +2% к цене.
C61: 3. RAL, не вошедшие в список, являются заказными. Цена по запросу.
G63: НАВЕРХ

Sheet Цвет стандарт
C1: Стандартные цвета для Magnum Quadro, Solo (L7, L9, Light, SML), Unit, Adagio;
M2: В содержание
B3: RAL 7016 | E3: RAL 9016
B11: RAL 7035 | E11: RAL 8007
B19: RAL 5005 | E19: RAL 6018
B27: RAL 3004 | E27: RAL 9005
B35: RAL 3002 | E35: RAL 5018 (Действительно только для Magnum Quadro)
B42: Производитель порошковых красок "AkzoNobel"
B44: Структура красок: глянец
B45: За дополнительную плату могут быть
B46: другие цвета красок, краски с другой структурой (матовая).
B47: В структуры шагрень и муар производитель не красит оборудование в виду их
B48: непрактичности (сложно с покрытия без специальных средств удалять загрязнения).
B52: Расшифровка характеристик ЛДСП | H52: Гикори коричневый, Н3732 | K52: Дуб Сонома
B53: Тип фронталальной панели | C53: Символ | D53: Расшифровка
B54: Фронтальная панель широкая, ЛДСП | C54: Е | D54: Гикори коричневый, Н3732
C55: F | D55: Дуб Уайт-Ривер, серо-коричневый Н1313
C56: G | D56: Дуб Сонома
B57: Фронтальная панель узкая, ЛДСП | C57: H | D57: Гикори коричневый, Н3732
C58: K | D58: Дуб Уайт-Ривер, серо-коричневый Н1313 | H58: Дуб Уайт-Ривер, серо-коричневый Н1313
C59: L | D59: Дуб Сонома
B60: Фронтальная панель широкая, ЛДСП с отбойником | C60: M | D60: Гикори коричневый, Н3732
C61: N | D61: Дуб Уайт-Ривер, серо-коричневый Н1313
C62: Q | D62: Дуб Сонома
B63: Фронтальная панель узкая, ЛДСП с отбойником | C63: R | D63: Гикори коричневый, Н3732
C64: S | D64: Дуб Уайт-Ривер, серо-коричневый Н1313
C65: U | D65: Дуб Сонома

Sheet Брендирование
K2: В содержание
A6: ПРАЙС-ЛИСТ. ДОПЛАТА ЗА БРЕНДИРОВАНИЕ ЛАРЕЙ ITALFROST
G7: НДС: | I7: =IF([2]Лист2!A1=TRUE,"С НДС","БЕЗ НДС") -> С НДС
B8: 2021-11-21 | H8: Размер вашей скидки | I8: =Содержание!D2 -> 0
A9: № | B9: Изображение | C9: Оклейка | E9: Размеры стикера, мм | H9: =CONCATENATE([2]ВАЛЮТЫ!B11," С НДС") -> Базовая цена, руб. С НДС | I9: =[2]Лист2!A5 -> Ваша цена, руб. | J9: Назад на страницу ларей
E10: Фронт | F10: Боковины | G10: Спина
A11: 1 | B11: Морозильные лари с гнутыми раздвижными стеклами
C12: CF(T)200C | D12: 1 сторона | E12: 840х710 | F12: 640х800 | G12: 840х800 | H12: 1004.916061 | I12: =ROUND(H12*(1-I8)/Лист2!$A$6,0) -> 1005
D13: 3 стороны | H13: 2234.255063 | I13: =ROUND(H13*(1-I8)/Лист2!$A$6,0) -> 2234
D14: 4 стороны | H14: 3321.459536 | I14: =ROUND(H14*(1-I8)/Лист2!$A$6,0) -> 3321
C15: CF(T)300C | D15: 1 сторона | E15: 1040х710 | F15: 640х800 | G15: 1040х800 | H15: 1169.492885 | I15: =ROUND(H15*(1-I8)/Лист2!$A$6,0) -> 1169
D16: 3 стороны | H16: 2406.312652 | I16: =ROUND(H16*(1-I8)/Лист2!$A$6,0) -> 2406
D17: 4 стороны | H17: 3683.02983 | I17: =ROUND(H17*(1-I8)/Лист2!$A$6,0) -> 3683
C18: CF(T)400C | D18: 1 сторона | E18: 1240х710 | F18: 640х800 | G18: 1240х800 | H18: 1344.044061 | I18: =ROUND(H18*(1-I8)/Лист2!$A$6,0) -> 1344
D19: 3 стороны | H19: 2493.58824 | I19: =ROUND(H19*(1-I8)/Лист2!$A$6,0) -> 2494
D20: 4 стороны | H20: 4054.574478 | I20: =ROUND(H20*(1-I8)/Лист2!$A$6,0) -> 4055
C21: CF(T)500C | D21: 1 сторона | E21: 1460х710 | F21: 640х800 | G21: 1460х800 | H21: 1533.556768 | I21: =ROUND(H21*(1-I8)/Лист2!$A$6,0) -> 1534
D22: 3 стороны | H22: 2770.376535 | I22: =ROUND(H22*(1-I8)/Лист2!$A$6,0) -> 2770
D23: 4 стороны | H23: 4451.055008 | I23: =ROUND(H23*(1-I8)/Лист2!$A$6,0) -> 4451
C24: CF(T)600C | D24: 1 сторона | E24: 1680х710 | F24: 640х800 | G24: 1680х800 | H24: 1723.069474 | I24: =ROUND(H24*(1-I8)/Лист2!$A$6,0) -> 1723
D25: 3 стороны | H25: 2949.914888 | I25: =ROUND(H25*(1-I8)/Лист2!$A$6,0) -> 2950
D26: 4 стороны | H26: 4855.016303 | I26: =ROUND(H26*(1-I8)/Лист2!$A$6,0) -> 4855
A27: 2 | B27: Морозильные лари с прямыми раздвижными стеклами
C28: CF(T)200F | D28: 1 сторона | E28: 840х810 | F28: 640х810 | G28: 840х810 | H28: 1104.65959 | I28: =ROUND(H28*(1-$I$8)/[2]СОДЕРЖАНИЕ!$C$6/[2]Лист2!$A$6,0) -> 1105
D29: 3 стороны | H29: 2348.960122 | I29: =ROUND(H29*(1-$I$8)/[2]СОДЕРЖАНИЕ!$C$6/[2]Лист2!$A$6,0) -> 2349
D30: 4 стороны | H30: 3453.619712 | I30: =ROUND(H30*(1-$I$8)/[2]СОДЕРЖАНИЕ!$C$6/[2]Лист2!$A$6,0) -> 3454
C31: CF(T)300F | D31: 1 сторона | E31: 1040х810 | F31: 640х810 | G31: 1040х810 | H31: 1301.653061 | I31: =ROUND(H31*(1-$I$8)/[2]СОДЕРЖАНИЕ!$C$6/[2]Лист2!$A$6,0) -> 1302
D32: 3 стороны | H32: 2545.953593 | I32: =ROUND(H32*(1-$I$8)/[2]СОДЕРЖАНИЕ!$C$6/[2]Лист2!$A$6,0) -> 2546
D33: 4 стороны | H33: 3842.619478 | I33: =ROUND(H33*(1-$I$8)/[2]СОДЕРЖАНИЕ!$C$6/[2]Лист2!$A$6,0) -> 3843
C34: CF(T)400F | D34: 1 сторона | E34: 1240х810 | F34: 640х810 | G34: 1240х810 | H34: 1491.165768 | I34: =ROUND(H34*(1-$I$8)/[2]СОДЕРЖАНИЕ!$C$6/[2]Лист2!$A$6,0) -> 1491
D35: 3 стороны | H35: 2742.947064 | I35: =ROUND(H35*(1-$I$8)/[2]СОДЕРЖАНИЕ!$C$6/[2]Лист2!$A$6,0) -> 2743
D36: 4 стороны | H36: 4229.125655 | I36: =ROUND(H36*(1-$I$8)/[2]СОДЕРЖАНИЕ!$C$6/[2]Лист2!$A$6,0) -> 4229
C37: CF(T)500F | D37: 1 сторона | E37: 1460х810 | F37: 640х810 | G37: 1460х810 | H37: 1705.614356 | I37: =ROUND(H37*(1-$I$8)/[2]СОДЕРЖАНИЕ!$C$6/[2]Лист2!$A$6,0) -> 1706
D38: 3 стороны | H38: 2959.889241 | I38: =ROUND(H38*(1-$I$8)/[2]СОДЕРЖАНИЕ!$C$6/[2]Лист2!$A$6,0) -> 2960
D39: 4 стороны | H39: 4655.529244 | I39: =ROUND(H39*(1-$I$8)/[2]СОДЕРЖАНИЕ!$C$6/[2]Лист2!$A$6,0) -> 4656
C40: CF(T)600F | D40: 1 сторона | E40: 1680Х810 | F40: 640х810 | G40: 1680х810 | H40: 1920.062945 | I40: =ROUND(H40*(1-$I$8)/[2]СОДЕРЖАНИЕ!$C$6/[2]Лист2!$A$6,0) -> 1920
D41: 3 стороны | H41: 3174.33783 | I41: =ROUND(H41*(1-$I$8)/[2]СОДЕРЖАНИЕ!$C$6/[2]Лист2!$A$6,0) -> 3174
D42: 4 стороны | H42: 5094.400774 | I42: =ROUND(H42*(1-$I$8)/[2]СОДЕРЖАНИЕ!$C$6/[2]Лист2!$A$6,0) -> 5094
A43: 3 | B43: Низкотемпературная надстройка над ларем 400 л. Verona
D44: 1 сторона (верхний баннер, фронтальная часть) | E44: - | F44: - | G44: - | H44: 4657.5 | I44: =ROUND(H44*(1-$I$8)/[2]СОДЕРЖАНИЕ!$C$6/[2]Лист2!$A$6,0) -> 4658
D45: 3 стороны (верхний баннер (фронтальная часть) + 2 боковины) | H45: 7917.75 | I45: =ROUND(H45*(1-$I$8)/[2]СОДЕРЖАНИЕ!$C$6/[2]Лист2!$A$6,0) -> 7918
A48: Примечание: | C48: Пленка толщиной 100 мкр + ламинация толщиной 80 мкр. Качество 720 dpi.

Sheet Лист1 (hidden)

Sheet Лист2 (hidden)
A1: TRUE
A2: Базовая цена, руб.
A3: Базовая цена, руб. б/НДС
A4: =IF(A1=TRUE,"руб.","руб. б/НДС") -> руб.
A5: =CONCATENATE("Ваша цена, ",A4) -> Ваша цена, руб.
A6: =IF(A1=TRUE,1,1.2) -> 1
A7: =IF(A1=TRUE,1,1.2) -> 1
